Workbook

Sheet Sociétaires
A1: N° | B1: Ref | C1: Titre | D1: Nom de naissance | E1: Prénom | F1: Nom d'usage | G1: date de naissance | H1: lieu naissance | I1: Adresse | J1: CP | K1: Ville | L1: Pays | M1: Email | N1: Téléphone | O1: Déclare | P1: Nb de parts | Q1: PS | R1: Moy payement | T1: Année | U1: Lieu | V1: Remarque | Y1: Validation | Z1: Notes | AA1: catégtorie | AB1: Cadeaux | AC1: Total parts | AD1: Nom représentant | AE1: Prénom representant | AF1: date naissance | AG1: Lieu | AH1: adresse | AI1: cp | AJ1: ville | AK1: Pays | AL1: email | AM1: tel
P2: =SUM(P3:P688) -> 2810 | Q2: =SUM(Q3:Q688) -> 140500 | AC2: =SUM(AC3:AC1000) -> 0
A3: 1 | B3: FA-01 | C3: Monsieur | E3: Jean-Paul | J3: 31670 | K3: Labège | L3: France | P3: 10 | Q3: =P3*50 -> 500 | T3: 2017-06-07 | Z3: Retraité | AA3: 1 | AC3: =IF(ISBLANK(A3),"",SUMIFS(Q:Q,D:D,D3,E:E,E3)) -> 0
A4: 2 | B4: FA-02 | C4: Madame | E4: Dominique | J4: 31670 | K4: Labège | L4: France | P4: 10 | Q4: 500 | T4: 2017-06-07 | Z4: Retraitée | AA4: 1 | AC4: 0
A5: 3 | B5: FA-03 | C5: Madame | E5: Béatrice | J5: 31670 | K5: Labège | L5: France | P5: 2 | Q5: 100 | T5: 2017-06-07 | AA5: 6 | AC5: 0
B6: FA-03.1 | C6: Madame | E6: Béatrice | P6: 2 | Q6: 100 | T6: 2017-07-27
B7: PS-03 | C7: Madame | E7: Béatrice | P7: 2 | Q7: 100 | T7: 2017-06-27
B8: PS-03.1 | C8: Madame | E8: Béatrice | P8: 2 | Q8: 100 | T8: 2017-11-28
B9: PS-03.2 | C9: Madame | E9: Béatrice | P9: 2 | Q9: 100 | T9: 2020-06-17
A10: 4 | B10: FA-04 | C10: Monsieur | E10: Christian | J10: 31670 | K10: Labège | L10: France | P10: 1 | Q10: 50 | T10: 2017-06-07 | AA10: 1 | AC10: 0
A11: 5 | B11: FA-05 | C11: Monsieur | E11: Jean Marie | J11: 31670 | K11: Labège | L11: France | P11: 2 | Q11: 100 | T11: 2017-06-07 | AA11: 6 | AC11: 0
B12: PS-05.01 | C12: Monsieur | E12: JEAN MARIE | J12: 31670 | K12: LABEGE | L12: France | O12: déclare être déjà sociétaire et souhaite acquérir de nouvelles parts de la Société Coopérative d'Intérêt Collectif ICEA et, pour ce faire, déclare souscrire au capital de la Société Coopérative d'Intérêt Collectif ICEA | P12: 2 | Q12: 100 | R12: Par virement à IBAN: FR76 1027 8022 9200 0201 8000 148 BIC: CMCIFR2A | S12: J'accepte d'être convoqué(e) aux assemblées par courrier électronique, que la coopérative ICEA ait recours à la transmission par voie électronique en lieu et place de l'envoi postal lors de l'exécution des formalités de convocation, d'envoi de documents d'informations, de vote à distance et de documents administratifs et plus généralement d'être destinataire d’informations et de communication institutionnelles de la part de ma coopérative. Cette autorisation a comme seul objectif de faciliter la gestion d’ICEA : limiter les frais de gestion et économiser le papier. En aucun cas les informations communiquées ne seront transmises à un tiers. Je reconnais que la présente souscription, d'un caractère purement privé, n'a pas lieu dans le cadre d'une offre de titres. Je reconnais avoir pris connaissance de la notice ci-contre. J'accepte les statuts de la coopérative, disponible sur https://icea-enr.fr | T12: 2020-03-22 | U12: Labege | V12: . | W12: 2 | X12: 100 | Y12: oui | Z12: click
A13: 6 | B13: FA-06 | C13: Monsieur | E13: Bertrand | J13: 31320 | K13: Castanet Tolosan | L13: France | P13: 10 | Q13: =P13*50 -> 500 | T13: 2017-06-07 | AA13: 1 | AC13: 0
A14: 7 | B14: FA-07 | C14: Madame | E14: Michelle | J14: 40130 | K14: Capbreton | L14: France | P14: 10 | Q14: 500 | T14: 2017-06-07 | AA14: 6 | AC14: 0
A15: 8 | B15: FA-08 | C15: Monsieur | E15: Guy | J15: 40130 | K15: Capbreton | L15: France | P15: 10 | Q15: 500 | T15: 2017-06-07 | Z15: Retraité | AA15: 6 | AC15: 0
A16: 9 | B16: FA-09 | C16: Monsieur | E16: Philippe | J16: 31320 | K16: Castanet Tolosan | L16: France | P16: 10 | Q16: 500 | T16: 2017-06-07 | Z16: Retraité | AA16: 6 | AC16: 0
A17: 10 | B17: FA-10 | C17: Madame | E17: Dominique | J17: 31320 | K17: Castanet Tolosan | L17: France | P17: 10 | Q17: 500 | T17: 2017-06-07 | Z17: Retraité | AA17: 6 | AC17: 0
A18: 11 | B18: FA-11 | C18: Monsieur | E18: Philippe | J18: 31320 | K18: Castanet Tolosan | L18: France | P18: 6 | Q18: 300 | T18: 2017-06-07 | AA18: 6 | AC18: 0
A19: 12 | B19: FA-12 | C19: Madame | E19: Christine | J19: 31320 | K19: Castanet Tolosan | L19: France | P19: 6 | Q19: 300 | T19: 2017-06-07 | AA19: 6 | AC19: 0
A20: 13 | B20: FA-13 | C20: Madame | E20: Rozenn | J20: 31450 | K20: Labastide de Beauvoir | L20: France | P20: 10 | Q20: 500 | T20: 2017-06-07 | AA20: 1 | AC20: 0
A21: 14 | B21: FA-14 | C21: Monsieur | E21: Philippe | J21: 31450 | K21: Labastide de Beauvoir | L21: France | P21: 10 | Q21: 500 | T21: 2017-06-07 | AA21: 6 | AC21: 0
A22: 15 | B22: FA-15 | C22: Monsieur | E22: Claude | J22: 31130 | K22: Balma | L22: France | P22: 10 | Q22: 500 | T22: 2017-06-07 | Z22: Retraité | AA22: 6 | AC22: 0
A23: 16 | B23: FA-16 | C23: Madame | E23: Michèle | J23: 31130 | K23: Balma | L23: France | P23: 10 | Q23: 500 | T23: 2017-06-07 | Z23: Retraitée | AA23: 6 | AC23: 0
A24: 17 | B24: FA-17 | C24: Monsieur | E24: Jean-Paul | J24: 31320 | K24: Castanet Tolosan | L24: France | P24: 2 | Q24: 100 | T24: 2017-06-07 | AA24: 6 | AC24: 0
B25: FA-20 | C25: Monsieur | E25: André | J25: 31670 | K25: Labège | L25: France | P25: 6 | Q25: 300 | T25: 2017-06-07 | Z25: Retraité | AA25: 1
A26: 18 | B26: FA-21 | C26: Monsieur | E26: Eric | J26: 31320 | K26: Castanet Tolosan | L26: France | P26: 10 | Q26: 500 | T26: 2017-06-07 | AA26: 6 | AC26: 0
A27: 19 | B27: FA-22 | C27: Madame | E27: Corinne | J27: 31320 | K27: Castanet Tolosan | L27: France | P27: 10 | Q27: 500 | T27: 2017-06-07 | AA27: 6 | AC27: 0
A28: 20 | B28: FA-23 | C28: Monsieur | E28: David | J28: 31320 | K28: Castanet Tolosan | L28: France | P28: 10 | Q28: 500 | T28: 2017-06-07 | Z28: Chef de Projet Informatique | AA28: 1 | AC28: 0
A29: 21 | B29: FA-24 | C29: Monsieur | E29: Florian | J29: 31320 | K29: Castanet Tolosan | L29: France | P29: 10 | Q29: 500 | T29: 2017-06-07 | AA29: 6 | AC29: 0 | AE29: David | AF29: 1969-11-13 | AG29: Villeneuve sur Lot (47) | AI29: 31320 | AJ29: Castanet- Tolosan
A30: 22 | B30: FA-25 | C30: Madame | E30: Marion | J30: 31320 | K30: Castanet Tolosan | L30: France | P30: 10 | Q30: 500 | T30: 2017-06-07 | AA30: 6 | AC30: 0 | AE30: David | AF30: 1969-11-13 | AG30: Villeneuve sur Lot (47) | AI30: 31320 | AJ30: Castanet- Tolosan
A31: 23 | B31: FA-26 | C31: Monsieur | E31: Alain | J31: 31750 | K31: Escalquens | L31: France | P31: 2 | Q31: 100 | T31: 2017-06-07 | AA31: 1 | AC31: 0
B32: PS-26 | C32: Monsieur | E32: Alain | P32: 2 | Q32: 100 | T32: 2017-10-29
B33: PS26.1 | C33: Monsieur | E33: Alain | P33: 6 | Q33: 300 | T33: 2019-07-12
A34: 24 | B34: FA-27 | C34: Monsieur | E34: Serge | J34: 31670 | K34: Labège | L34: France | P34: 2 | Q34: 100 | T34: 2017-06-07 | Z34: Retraité | AA34: 6 | AC34: 0
A35: 25 | B35: FA-28 | C35: Monsieur | E35: Pascal | J35: 31670 | K35: Labège | L35: France | P35: 10 | Q35: 500 | T35: 2017-06-07 | Z35: Chargé de Communication | AA35: 6 | AC35: =IF(ISBLANK(A35),"",SUMIFS(Q:Q,D:D,D35,E:E,E35)) -> 0
A36: 26 | B36: FA-29 | C36: Madame | E36: Mireille | J36: 31670 | K36: Labège | L36: France | P36: 10 | Q36: 500 | T36: 2017-06-07 | Z36: Assistante Recherche | AA36: 6 | AC36: 0
A37: 27 | B37: FA-30 | C37: Madame | E37: Marion | J37: 656 | K37: Oslo | L37: Norvege | P37: 10 | Q37: 500 | T37: 2017-06-07 | AA37: 6 | AC37: 0
A38: 28 | B38: FA-31 | C38: Monsieur | E38: Laurent | J38: 33000 | K38: Bordeaux | L38: France | P38: 10 | Q38: 500 | T38: 2017-06-07 | AA38: 6 | AC38: 0
A39: 29 | B39: FA-32 | C39: Madame | E39: Anne | J39: 31670 | K39: Labège | L39: France | P39: 4 | Q39: 200 | T39: 2017-06-07 | AA39: 6 | AC39: 0
A40: 30 | B40: FA-33 | C40: Monsieur | E40: Francis | J40: 31450 | K40: Donneville | L40: France | P40: 2 | Q40: 100 | T40: 2017-06-07 | AA40: 6 | AC40: 0
A41: 31 | B41: FA-34 | C41: Madame | E41: Brigitte | J41: 31450 | K41: Donneville | L41: France | P41: 10 | Q41: 500 | T41: 2017-06-07 | Z41: Adjoint Donneville | AA41: 6 | AC41: 0
A42: 32 | B42: FA-35 | C42: Madame | E42: Josephine | J42: 31450 | K42: Donneville | L42: France | P42: 2 | Q42: 100 | T42: 2017-06-07 | AA42: 6 | AC42: 0
A43: 33 | B43: FA-36 | C43: Madame | E43: Odile | J43: 31450 | K43: Montgiscard | L43: France | P43: 10 | Q43: 500 | T43: 2017-06-07 | AA43: 6 | AC43: 0
A44: 34 | B44: FA-37 | C44: Association | E44: Monsieur le président | J44: 40400 | K44: Saint Yaguen | L44: France | P44: 20 | Q44: 1000 | T44: 2017-06-07 | Z44: SIRET : 82.141.082.600.019 RNA : W313012708 | AA44: 7 | AC44: 0 | AE44: Joel | AF44: 1958-06-25 | AG44: Sidi bel Abbes
A45: 35 | B45: FA-38 | C45: Monsieur | E45: Simon | J45: 31320 | K45: Castanet Tolosan | L45: France | P45: 2 | Q45: 100 | T45: 2017-06-07 | AA45: 6 | AC45: 0
B46: PS38-01 | C46: Monsieur | E46: Simon | J46: 31320 | K46: CastanetTolosan | L46: France | O46: déclare être déjà sociétaire et souhaite acquérir de nouvelles parts de la Société Coopérative d'Intérêt Collectif ICEA et, pour ce faire, déclare souscrire au capital de la Société Coopérative d'Intérêt Collectif ICEA | P46: 8 | Q46: 400 | R46: Par virement à IBAN: FR76 1027 8022 9200 0201 8000 148 BIC: CMCIFR2A | S46: J'accepte d'être convoqué(e) aux assemblées par courrier électronique, que la coopérative ICEA ait recours à la transmission par voie électronique en lieu et place de l'envoi postal lors de l'exécution des formalités de convocation, d'envoi de documents d'informations, de vote à distance et de documents administratifs et plus généralement d'être destinataire d’informations et de communication institutionnelles de la part de ma coopérative. Cette autorisation a comme seul objectif de faciliter la gestion d’ICEA : limiter les frais de gestion et économiser le papier. En aucun cas les informations communiquées ne seront transmises à un tiers. Je reconnais que la présente souscription, d'un caractère purement privé, n'a pas lieu dans le cadre d'une offre de titres.Je reconnais que la présente souscription, d'un caractère purement privé, n'a pas lieu dans le cadre d'une offre de titres. Je reconnais avoir pris connaissance du DIS et j'accepte les statuts de la coopérative, disponibles sur https://icea-enr.fr | T46: 2020-10-08 | U46: Castanet Tolosan | V46: . | W46: 8 | X46: 400 | Y46: oui | Z46: click
A47: 36 | B47: FA-39 | C47: Monsieur | E47: Marc | J47: 31670 | K47: Labège | L47: France | P47: 10 | Q47: =P47*50 -> 500 | T47: 2017-06-07 | Z47: Kinésithérapeute | AA47: 1 | AC47: 0
A48: 37 | B48: FA-40 | C48: Madame | E48: Anais | J48: 31300 | K48: Toulouse | L48: France | P48: 10 | Q48: 500 | T48: 2017-06-07 | AA48: 6 | AC48: 0
A49: 38 | B49: FA-41 | C49: Monsieur | E49: Jean-Marc | J49: 69008 | K49: Lyon | L49: France | P49: 10 | Q49: 500 | T49: 2017-06-07 | AA49: 1 | AC49: 0
A50: 39 | B50: FA-42 | C50: Madame | E50: Pascale | J50: 31670 | K50: Labège | L50: France | P50: 10 | Q50: 500 | T50: 2017-06-07 | AA50: 1 | AC50: 0
A51: 40 | B51: FA-43 | C51: Monsieur | E51: Eric | J51: 31670 | K51: Labège | L51: France | P51: 10 | Q51: 500 | T51: 2017-06-07 | Z51: Consultant | AA51: 1 | AC51: 0
A52: 41 | B52: FA-44 | C52: Madame | E52: Mona | J52: 31670 | K52: Labège | L52: France | P52: 10 | Q52: 500 | T52: 2017-06-07 | AA52: 6 | AC52: 0
A53: 42 | B53: FA-45 | C53: Monsieur | E53: Jean | J53: 31450 | K53: Donneville | L53: France | P53: 2 | Q53: 100 | T53: 2017-06-07 | AA53: 6 | AC53: 0
B54: PS-45.01 | C54: Monsieur | E54: JEAN | J54: 31450 | K54: DONNEVILLE | L54: France | O54: déclare être déjà sociétaire et souhaite acquérir de nouvelles parts de la Société Coopérative d'Intérêt Collectif ICEA et, pour ce faire, déclare souscrire au capital de la Société Coopérative d'Intérêt Collectif ICEA | P54: 2 | Q54: 100 | R54: Par virement à IBAN: FR76 1027 8022 9200 0201 8000 148 BIC: CMCIFR2A | S54: J'accepte d'être convoqué(e) aux assemblées par courrier électronique, que la coopérative ICEA ait recours à la transmission par voie électronique en lieu et place de l'envoi postal lors de l'exécution des formalités de convocation, d'envoi de documents d'informations, de vote à distance et de documents administratifs et plus généralement d'être destinataire d’informations et de communication institutionnelles de la part de ma coopérative. Cette autorisation a comme seul objectif de faciliter la gestion d’ICEA : limiter les frais de gestion et économiser le papier. En aucun cas les informations communiquées ne seront transmises à un tiers. Je reconnais que la présente souscription, d'un caractère purement privé, n'a pas lieu dans le cadre d'une offre de titres. Je reconnais avoir pris connaissance de la notice ci-contre. J'accepte les statuts de la coopérative, disponible sur https://icea-enr.fr | T54: 2020-04-30 | U54: DONNEVILLE | V54: . | W54: 2 | X54: 100 | Y54: oui | Z54: click
A55: 43 | B55: FA-46 | C55: Madame | E55: Sandrine | J55: 31570 | K55: Lanta | L55: France | P55: 10 | Q55: =P55*50 -> 500 | T55: 2017-06-07 | AA55: 6 | AC55: 0
A56: 44 | B56: FA-47 | C56: Monsieur | E56: Christian | J56: 31320 | K56: Aureville | L56: France | P56: 10 | Q56: 500 | T56: 2017-06-07 | AA56: 1 | AC56: 0
A57: 45 | B57: FA-48 | C57: Monsieur | E57: Bernard | J57: 31450 | K57: Donneville | L57: France | P57: 4 | Q57: 200 | T57: 2017-06-07 | AA57: 6 | AC57: 0
A58: 46 | B58: FA-49 | C58: Monsieur | E58: Emmanuel | J58: 31440 | K58: Bachos | L58: France | P58: 10 | Q58: 500 | T58: 2017-06-07 | AA58: 6 | AC58: 0
A59: 47 | B59: PS-50 | C59: Monsieur | E59: Michel | J59: 31670 | K59: Labège | L59: France | P59: 10 | Q59: 500 | T59: 2017-06-07 | AA59: 6 | AC59: 0
A60: 48 | B60: PS-51 | C60: Madame | E60: Florence | J60: 31670 | K60: Labège | L60: France | P60: 10 | Q60: 500 | T60: 2017-06-07 | AA60: 6 | AC60: 0
A61: 49 | B61: PS-52 | C61: Madame | E61: Hélène | J61: 31750 | K61: Escalquens | L61: France | P61: 10 | Q61: 500 | T61: 2017-06-07 | AA61: 1 | AC61: 0
A62: 50 | B62: PS-53 | C62: Monsieur | E62: Roger | J62: 31750 | K62: Escalquens | L62: France | P62: 10 | Q62: 500 | T62: 2017-06-07 | AA62: 1 | AC62: 0
A63: 51 | B63: PS-54 | C63: Monsieur | E63: Gerald | J63: 31670 | K63: Labège | L63: France | P63: 10 | Q63: 500 | T63: 2017-06-07 | U63: Labège | AA63: 1 | AC63: 0
B64: PS-54.1 | C64: Monsieur | E64: Gerald | J64: 31671 | K64: Labège | L64: France | P64: 4 | Q64: =P64*50 -> 200 | T64: 2021-04-17 | U64: Labège | AA64: 1
A65: 52 | B65: PS-55 | C65: Monsieur | E65: Eric | J65: 31320 | K65: Castanet Tolosan | L65: France | P65: 10 | Q65: 500 | T65: 2017-07-10 | Y65: click | Z65: 2eme souscription en ligne | AA65: 1 | AC65: 0
B66: PS-55.01 | C66: Monsieur | E66: Eric | P66: 10 | Q66: 500 | T66: 2019-08-31 | AA66: 1
B67: PS-55.02 | C67: Monsieur | E67: Eric | J67: 31320 | K67: CASTANETTOLOSAN | L67: France | O67: déclare être déjà sociétaire et souhaite acquérir de nouvelles parts de la Société Coopérative d'Intérêt Collectif ICEA et, pour ce faire, déclare souscrire au capital de la Société Coopérative d'Intérêt Collectif ICEA | P67: 20 | Q67: 1000 | R67: Par virement à IBAN: FR76 1027 8022 9200 0201 8000 148 BIC: CMCIFR2A | S67: J'accepte d'être convoqué(e) aux assemblées par courrier électronique, que la coopérative ICEA ait recours à la transmission par voie électronique en lieu et place de l'envoi postal lors de l'exécution des formalités de convocation, d'envoi de documents d'informations, de vote à distance et de documents administratifs et plus généralement d'être destinataire d’informations et de communication institutionnelles de la part de ma coopérative. Cette autorisation a comme seul objectif de faciliter la gestion d’ICEA : limiter les frais de gestion et économiser le papier. En aucun cas les informations communiquées ne seront transmises à un tiers. Je reconnais que la présente souscription, d'un caractère purement privé, n'a pas lieu dans le cadre d'une offre de titres. Je reconnais avoir pris connaissance de la notice ci-contre. J'accepte les statuts de la coopérative, disponible sur https://icea-enr.fr | T67: 2020-07-04 | U67: CASTANET TOLOSAN | V67: . | W67: 1900-01-20 | X67: 1000 | Y67: oui | Z67: click | AA67: 1 | AC67: =IF(ISBLANK(A67),"",SUMIFS(Q:Q,D:D,D67,E:E,E67)) -> 
A68: 53 | B68: PS-56 | C68: Monsieur | E68: Pascal | J68: 31450 | K68: Ayguesvives | L68: France | P68: 4 | Q68: =P68*50 -> 200 | T68: 2017-07-10 | Z68: Adloint Ayguesvives | AA68: 6 | AC68: 0
B69: PS-56.01 | C69: Monsieur | E69: Pascal | P69: 2 | Q69: =P69*50 -> 100 | T69: 2018-05-25
B70: PS-56.02 | C70: Monsieur | E70: Pascal | J70: 31450 | K70: AYGUESVIVES | L70: France | O70: déclare être déjà sociétaire et souhaite acquérir de nouvelles parts de la Société Coopérative d'Intérêt Collectif ICEA et, pour ce faire, déclare souscrire au capital de la Société Coopérative d'Intérêt Collectif ICEA | P70: 4 | Q70: 200 | R70: Par virement à IBAN: FR76 1027 8022 9200 0201 8000 148 BIC: CMCIFR2A | S70: J'accepte d'être convoqué(e) aux assemblées par courrier électronique, que la coopérative ICEA ait recours à la transmission par voie électronique en lieu et place de l'envoi postal lors de l'exécution des formalités de convocation, d'envoi de documents d'informations, de vote à distance et de documents administratifs et plus généralement d'être destinataire d’informations et de communication institutionnelles de la part de ma coopérative. Cette autorisation a comme seul objectif de faciliter la gestion d’ICEA : limiter les frais de gestion et économiser le papier. En aucun cas les informations communiquées ne seront transmises à un tiers. Je reconnais que la présente souscription, d'un caractère purement privé, n'a pas lieu dans le cadre d'une offre de titres. Je reconnais avoir pris connaissance de la notice ci-contre. J'accepte les statuts de la coopérative, disponible sur https://icea-enr.fr | T70: 2019-12-03 | U70: Ayguesvives | V70: . | W70: 4 | X70: 200 | Y70: oui | Z70: click
A71: 54 | B71: PS-57 | C71: Monsieur | E71: Bernard | J71: 31670 | K71: Labège | L71: France | P71: 10 | Q71: =P71*50 -> 500 | T71: 2017-09-03 | AA71: 6 | AC71: 0
A72: 55 | B72: PS-58 | C72: Madame | E72: Andree | J72: 31470 | K72: St Lys | L72: France | P72: 2 | Q72: 100 | T72: 2017-09-05 | AA72: 6 | AC72: 0
A73: 56 | B73: PS-59 | C73: Madame | E73: Aurelie | J73: 31750 | K73: Escalquens | L73: France | P73: 2 | Q73: 100 | T73: 2017-09-15 | AA73: 6 | AC73: 0
A74: 57 | B74: PS-60 | C74: Société | E74: JMPChauffage | J74: 31750 | K74: Escalquens | L74: France | P74: 4 | Q74: 200 | T74: 2017-10-10 | Z74: 44843898600037 | AA74: 7 | AC74: 0 | AE74: Frederic
A75: 58 | B75: PS-61 | C75: Monsieur | E75: Gérard | J75: 31450 | K75: Montbrun-Lauragais | L75: France | P75: 10 | Q75: 500 | T75: 2017-10-26 | AA75: 6 | AC75: 0
A76: 59 | B76: PS-62 | C76: Madame | E76: Marie Thérese | J76: 31520 | K76: Ramonville St A | L76: France | O76: * déclare être déjà sociétaire et souhaite acquérir de nouvelles parts de la Société Coopérative d'Intérêt Collectif ICEA et, pour ce faire, déclare souscrire au capital de la Société Coopérative d'Intérêt Collectif ICEA | P76: 10 | Q76: 500 | S76: * J'accepte d'être convoqué(e) aux assemblées par courrier électronique, que la coopérative ICEA ait recours à la transmission par voie électronique en lieu et place de l'envoi postal lors de l'exécution des formalités de convocation, d'envoi de documents d'informations, de vote à distance et de documents administratifs et plus généralement d'être destinataire d’informations et de communication institutionnelles de la part de ma coopérative. Cette autorisation a comme seul objectif de faciliter la gestion d’ICEA : limiter les frais de gestion et économiser le papier. En aucun cas les informations communiquées ne seront transmises à un tiers. Je reconnais que la présente souscription, d'un caractère purement privé, n'a pas lieu dans le cadre d'une offre de titres. Je reconnais avoir pris connaissance de la notice ci-contre. J'accepte les statuts de la coopérative, disponible sur http://icea-enr.fr | T76: 2017-10-29 | U76: * RAMONVILLE | W76: * 20 | X76: * 1000 | Y76: * oui | AA76: 6 | AC76: 0
B77: PS-62.01 | C77: Madame | E77: Marie Thérese | P77: 20 | Q77: 1000 | R77: Par chèque à l'ordre d'ICEA à envoyerICEA 815 la pyrénéenne - Le prologue -31670Labège | T77: 2018-12-05
A78: 60 | B78: PS-63 | C78: Monsieur | E78: Philippe | J78: 31750 | K78: Escalquens | L78: France | P78: 100 | Q78: 5000 | T78: 2017-11-05 | AA78: 6 | AC78: 0
A79: 61 | B79: PS-64 | C79: Madame | E79: Thérese | J79: 31320 | K79: Castanet Tolosan | L79: France | P79: 10 | Q79: 500 | T79: 2017-11-06 | AA79: 6 | AC79: 0
A80: 62 | B80: PS-65 | C80: Madame | E80: Nathalie | J80: 31450 | K80: Ayguesvives | L80: France | P80: 2 | Q80: 100 | T80: 2017-11-15 | AA80: 6 | AC80: 0
A81: 63 | B81: PS-66 | C81: Madame | E81: Elsa | J81: 31000 | K81: Toulouse | L81: France | P81: 2 | Q81: 100 | T81: 2017-11-18 | AA81: 6 | AC81: 0
A82: 64 | B82: PS-67 | C82: Madame | E82: Martine | J82: 31670 | K82: Labège | L82: France | P82: 2 | Q82: 100 | T82: 2017-11-18 | AA82: 6 | AC82: 0
A83: 65 | B83: PS-68 | C83: Monsieur | E83: Laurent | J83: 31320 | K83: Aureville | L83: France | P83: 2 | Q83: 100 | T83: 2017-11-29 | AA83: 6 | AC83: 0
A84: 66 | B84: PS-69 | C84: Madame | E84: Monique | J84: 31320 | K84: Aureville | L84: France | P84: 4 | Q84: 200 | T84: 2017-11-29 | AA84: 6 | AC84: 0
A85: 67 | B85: PS-70 | C85: Monsieur | E85: Paul | J85: 31320 | K85: Aureville | L85: France | P85: 10 | Q85: 500 | T85: 2017-11-29 | AA85: 6 | AC85: 0
A86: 68 | B86: PS-71 | C86: Madame | E86: Jeanne | J86: 31450 | K86: Ayguesvives | L86: France | P86: 10 | Q86: 500 | T86: 2017-11-29 | AA86: 6 | AC86: 0
A87: 69 | B87: PS-72 | C87: Monsieur | E87: Jean | J87: 31450 | K87: Ayguesvives | L87: France | P87: 10 | Q87: 500 | T87: 2017-11-29 | AA87: 6 | AC87: 0
A88: 70 | B88: PS-73 | C88: Monsieur | E88: Michel | J88: 31750 | K88: Escalquens | L88: France | P88: 2 | Q88: 100 | T88: 2017-12-03 | AA88: 6 | AC88: 0
A89: 71 | B89: PS-74 | C89: Madame | E89: Pierrette | J89: 31670 | K89: Labège | L89: France | P89: 1 | Q89: 50 | T89: 2017-12-02 | AA89: 6 | AC89: 0
A90: 72 | B90: PS-75 | C90: Monsieur | E90: Gaël | J90: 31570 | K90: Lanta | L90: France | P90: 10 | Q90: 500 | T90: 2017-12-02 | AA90: 6 | AC90: 0
A91: 73 | B91: PS-76 | C91: Monsieur | E91: Pauline | J91: 31570 | K91: Lanta | L91: France | P91: 10 | Q91: 500 | T91: 2017-12-02 | AA91: 6 | AC91: 0
A92: 74 | B92: PS-77 | C92: Monsieur | E92: Renaud | J92: 31670 | K92: Labège | L92: France | P92: 10 | Q92: 500 | T92: 2017-12-05 | AA92: 6 | AC92: 0
A93: 75 | B93: PS-78 | C93: Collectivité | E93: Monsieur le Maire | J93: 31670 | K93: Labège | L93: France | P93: 10 | Q93: 500 | T93: 2017-12-05 | AA93: 3 | AC93: 0
A94: 76 | B94: PS-79 | C94: Monsieur | E94: Farid | J94: 31670 | K94: Labège | L94: France | P94: 1 | Q94: 50 | T94: 2017-12-09 | AA94: 6 | AC94: 0
A95: 77 | B95: PS-80 | C95: Monsieur | E95: Joel | J95: 31670 | K95: Labège | L95: France | P95: 4 | Q95: 200 | T95: 2017-12-09 | AA95: 6 | AC95: 0
B96: PS-80.01 | C96: Monsieur | E96: Joel | P96: 8 | Q96: 400 | T96: 2020-09-30
B97: PS-81 | C97: Monsieur | E97: SARL | J97: 31670 | K97: Labège | L97: France | P97: 8 | Q97: 400 | T97: 2017-12-09 | Z97: Joel Olivier | AA97: 7 | AE97: Joel | AF97: 1946-07-14 | AG97: Juillé(79) | AI97: 31670 | AJ97: Labège
B98: PS-80.01 | C98: Monsieur | E98: SARL | P98: -8 | Q98: -400 | T98: 2020-09-30
A99: 78 | B99: PS-82 | C99: Madame | E99: Danielle | J99: 31450 | K99: Corronsac | L99: France | P99: 2 | Q99: 100 | T99: 2017-12-06 | AA99: 6 | AC99: =IF(ISBLANK(A99),"",SUMIFS(Q:Q,D:D,D99,E:E,E99)) -> 0
A100: 79 | B100: PS-83 | C100: Monsieur | E100: Remi | J100: 31200 | K100: Toulouse | L100: France | P100: 10 | Q100: 500 | T100: 2017-12-08 | AA100: 6 | AC100: 0
A101: 80 | B101: PS-84 | C101: Monsieur | E101: Alexandre | J101: 31320 | K101: Aureville | L101: France | P101: 1 | Q101: 50 | T101: 2017-12-10 | AA101: 6 | AC101: 0
A102: 81 | B102: PS-85 | C102: Monsieur | E102: Sylvie | J102: 31320 | K102: Aureville | L102: France | P102: 1 | Q102: 50 | T102: 2017-12-10 | AA102: 6 | AC102: 0
A103: 82 | B103: PS-86 | C103: Monsieur | E103: Quentin | J103: 31320 | K103: Aureville | L103: France | P103: 1 | Q103: =P103*50 -> 50 | T103: 2017-12-10 | AA103: 6 | AB103: oui | AC103: 0 | AE103: Alexandre | AF103: 1970-07-08 | AG103: Limoges | AI103: 31320 | AJ103: Aureville
A104: 83 | B104: PS-87 | C104: Monsieur | E104: Thibaut | J104: 31320 | K104: Aureville | L104: France | P104: 1 | Q104: 50 | T104: 2017-12-10 | AA104: 6 | AB104: oui | AC104: 0 | AE104: Alexandre | AF104: 1970-07-08 | AG104: Limoges | AI104: 31320 | AJ104: Aureville
A105: 84 | B105: PS-88 | C105: Madame | E105: Marion | J105: 31320 | K105: Aureville | L105: France | P105: 1 | Q105: 50 | T105: 2017-12-10 | AA105: 6 | AB105: oui | AC105: 0 | AE105: Alexandre | AF105: 1970-07-08 | AG105: Limoges | AI105: 31320 | AJ105: Aureville
A106: 85 | B106: PS-89 | C106: Monsieur | E106: Olivier | J106: 31320 | K106: Aureville | L106: France | P106: 6 | Q106: 300 | T106: 2017-12-09 | AA106: 6 | AB106: oui | AC106: 0
B107: PS-89.01 | C107: Monsieur | E107: Olivier | J107: 31320 | K107: Aureville | L107: France | P107: 2 | Q107: 100 | R107: chèque | T107: 2020-05-09 | Y107: Signature
B108: PS-89.02 | C108: Monsieur | E108: Olivier | J108: 31320 | K108: Aureville | L108: France | P108: 8 | Q108: 400 | R108: chèque | T108: 2020-05-09
A109: 86 | B109: PS-90 | C109: Madame | E109: Anne-Marie | J109: 31200 | K109: Aureville | L109: France | P109: 10 | Q109: 500 | T109: 2017-12-17 | AA109: 6 | AC109: 0
A110: 87 | B110: PS-91 | C110: Madame | E110: Christine | J110: 31300 | K110: Toulouse | L110: France | P110: 10 | Q110: 500 | T110: 2017-12-17 | AA110: 6 | AC110: 0
A111: 88 | B111: PS-92 | C111: Monsieur | E111: Jean-Patrice | J111: 31750 | K111: Escalquens | L111: France | P111: 2 | Q111: 100 | T111: 2017-12-16 | AA111: 6 | AC111: 0
A112: 89 | B112: PS-93 | C112: Collectivité | E112: Monsieur le Maire | J112: 31450 | K112: Ayguesvives | L112: France | P112: 10 | Q112: 500 | T112: 2017-12-19 | AA112: 3 | AC112: 0 | AE112: Jacques
B113: PS-93.01 | C113: Collectivité | E113: Monsieur le Maire | P113: 12 | Q113: 600 | T113: 2019-01-30
B114: PS-93.02 | C114: Collectivité | E114: Monsieur le Maire | P114: 4 | Q114: 200 | T114: 2021-05-31
A115: 90 | B115: PS-94 | C115: Madame | E115: Ariane | J115: 31320 | K115: Aureville | L115: France | P115: 3 | Q115: 150 | T115: 2017-12-12 | AA115: 6 | AC115: 0
A116: 91 | B116: PS-95 | C116: Madame | E116: Noémie | J116: 98800 | K116: Noumea- N calédomie | L116: France | P116: 1 | Q116: 50 | T116: 2017-12-15 | Z116: Cédric Faure | AA116: 6 | AB116: oui | AC116: 0 | AE116: Cedric | AF116: 1983-09-01 | AG116: Toulouse | AI116: 98800 | AJ116: Noumea- N calédomie
A117: 92 | B117: PS-96 | C117: Madame | E117: Anne | J117: 98800 | K117: Noumea- N calédomie | L117: France | P117: 1 | Q117: 50 | T117: 2017-12-15 | AA117: 6 | AB117: oui | AC117: 0
A118: 93 | B118: PS-97 | C118: Monsieur | E118: Xavier | J118: 31320 | K118: Pechabou | L118: France | P118: 1 | Q118: 50 | T118: 2017-12-29 | AA118: 6 | AB118: oui | AC118: 0
A119: 94 | B119: PS-98 | C119: Madame | E119: Estelle | J119: 31320 | K119: Pechabou | L119: France | P119: 1 | Q119: 50 | T119: 2017-12-29 | AA119: 6 | AB119: oui | AC119: 0
A120: 95 | B120: PS-99 | C120: Monsieur | E120: Basile | J120: 31320 | K120: Pechabou | L120: France | P120: 1 | Q120: 50 | T120: 2017-12-29 | AA120: 6 | AB120: oui | AC120: 0 | AE120: Xavier | AF120: 1973-05-17 | AG120: Bron (69) | AI120: 31320 | AJ120: Pechabou
A121: 96 | B121: PS-100 | C121: Monsieur | E121: Paul | J121: 31320 | K121: Pechabou | L121: France | P121: 1 | Q121: 50 | T121: 2017-12-29 | AA121: 6 | AB121: oui | AC121: 0 | AE121: Xavier | AF121: 1973-05-17 | AG121: Bron (69) | AI121: 31320 | AJ121: Pechabou
A122: 97 | B122: PS-101 | C122: Monsieur | E122: Merlin | J122: 31320 | K122: Pechabou | L122: France | P122: 1 | Q122: 50 | T122: 2017-12-29 | AA122: 6 | AB122: oui | AC122: 0 | AE122: Xavier | AF122: 1973-05-17 | AG122: Bron (69) | AI122: 31320 | AJ122: Pechabou
A123: 98 | B123: PS-102 | C123: Madame | E123: Aurelie | J123: 75018 | K123: PARIS | L123: France | P123: 2 | Q123: 100 | T123: 2017-12-25 | AA123: 6 | AB123: oui | AC123: 0
B124: PS-102.01 | C124: Madame | E124: Aurelie | J124: 75018 | K124: PARIS | P124: 2 | Q124: 100 | T124: 2018-11-17
B125: PS-102.02 | C125: Madame | E125: Aurelie | J125: 75018 | K125: PARIS | P125: 1 | Q125: 50 | T125: 2019-12-24 | AB125: Oui
B126: PS-102.03 | C126: Madame | E126: Aurelie | J126: 75018 | K126: PARIS | L126: France | O126: déclare être déjà sociétaire et souhaite acquérir de nouvelles parts de la Société Coopérative d'Intérêt Collectif ICEA et, pour ce faire, déclare souscrire au capital de la Société Coopérative d'Intérêt Collectif ICEA | P126: 4 | Q126: 200 | R126: Par virement à IBAN: FR76 1027 8022 9200 0201 8000 148 BIC: CMCIFR2A | S126: J'accepte d'être convoqué(e) aux assemblées par courrier électronique, que la coopérative ICEA ait recours à la transmission par voie électronique en lieu et place de l'envoi postal lors de l'exécution des formalités de convocation, d'envoi de documents d'informations, de vote à distance et de documents administratifs et plus généralement d'être destinataire d’informations et de communication institutionnelles de la part de ma coopérative. Cette autorisation a comme seul objectif de faciliter la gestion d’ICEA : limiter les frais de gestion et économiser le papier. En aucun cas les informations communiquées ne seront transmises à un tiers. Je reconnais que la présente souscription, d'un caractère purement privé, n'a pas lieu dans le cadre d'une offre de titres. Je reconnais avoir pris connaissance de la notice ci-contre. J'accepte les statuts de la coopérative, disponible sur https://icea-enr.fr | T126: 2020-05-02 | U126: Paris | V126: . | W126: 1900-01-04 | X126: 200 | Y126: oui | Z126: click
A127: 99 | B127: PS-103 | C127: Monsieur | E127: Guillaume | J127: 31450 | K127: Baziège | L127: France | P127: 1 | Q127: =P127*50 -> 50 | T127: 2017-12-31 | AA127: 6 | AB127: oui | AC127: 0
A128: 100 | B128: PS-104 | C128: Madame | E128: Juliette | J128: 31450 | K128: Baziège | L128: France | P128: 1 | Q128: 50 | T128: 2017-12-31 | AA128: 6 | AB128: oui | AC128: 0 | AE128: Guillaume | AF128: 1978-06-21 | AG128: Annecy | AI128: 31450 | AJ128: Baziège
A129: 101 | B129: PS-105 | C129: Madame | E129: Zoe | J129: 31450 | K129: Baziège | L129: France | P129: 1 | Q129: 50 | T129: 2017-12-31 | AA129: 6 | AB129: oui | AC129: 0 | AE129: Guillaume | AF129: 1978-06-21 | AG129: Annecy | AI129: 31450 | AJ129: Baziège
A130: 102 | B130: PS-106 | C130: Madame | E130: Sabrina | J130: 31450 | K130: Baziège | L130: France | P130: 1 | Q130: 50 | T130: 2017-12-31 | AA130: 6 | AB130: oui | AC130: 0 | AE130: Guillaume | AF130: 1978-06-21 | AG130: Annecy | AI130: 31450 | AJ130: Baziège
A131: 103 | B131: PS-107 | C131: Monsieur | E131: Benjamin | J131: 31450 | K131: Issus | L131: France | P131: 2 | Q131: 100 | T131: 2017-12-25 | AA131: 6 | AB131: oui | AC131: =IF(ISBLANK(A131),"",SUMIFS(Q:Q,D:D,D131,E:E,E131)) -> 0
B132: PS-107.01 | C132: Monsieur | E132: Benjamin | J132: 31000 | K132: Toulouse | P132: 1 | Q132: 50 | T132: 2017-12-24
A133: 104 | B133: PS-108 | C133: Madame | E133: Laure | J133: 75010 | K133: Paris | L133: France | O133: * déclare être déjà sociétaire et souhaite acquérir de nouvelles parts de la Société Coopérative d'Intérêt Collectif ICEA et, pour ce faire, déclare souscrire au capital de la Société Coopérative d'Intérêt Collectif ICEA | P133: 1 | Q133: 50 | R133: * Par virement à IBAN: FR76 1027 8022 9200 0201 8000 148 BIC: CMCIFR2A | S133: * J'accepte d'être convoqué(e) aux assemblées par courrier électronique, que la coopérative ICEA ait recours à la transmission par voie électronique en lieu et place de l'envoi postal lors de l'exécution des formalités de convocation, d'envoi de documents d'informations, de vote à distance et de documents administratifs et plus généralement d'être destinataire d’informations et de communication institutionnelles de la part de ma coopérative. Cette autorisation a comme seul objectif de faciliter la gestion d’ICEA : limiter les frais de gestion et économiser le papier. En aucun cas les informations communiquées ne seront transmises à un tiers. Je reconnais que la présente souscription, d'un caractère purement privé, n'a pas lieu dans le cadre d'une offre de titres. Je reconnais avoir pris connaissance de la notice ci-contre. J'accepte les statuts de la coopérative, disponible sur http://icea-enr.fr | T133: 2018-01-17 | U133: * Paris | AA133: 6 | AB133: oui | AC133: 0
B134: PS-108.01 | C134: Madame | E134: Laure | P134: 1 | Q134: 50 | T134: 2018-12-25
B135: PS-108.2 | C135: Madame | E135: Laure | P135: 1 | Q135: 50 | T135: 2019-12-22 | AB135: oui
A136: 105 | B136: PS-109 | C136: Madame | E136: Nathalie | J136: 37550 | K136: Saint-Avertin | L136: France | P136: 1 | Q136: 50 | T136: 2018-01-04 | AA136: 6 | AB136: oui | AC136: 0
A137: 106 | B137: PS-110 | C137: Monsieur | E137: Fabien | J137: 37550 | K137: Saint-Avertin | L137: France | P137: 1 | Q137: 50 | T137: 2018-01-04 | AA137: 6 | AB137: oui | AC137: 0
A138: 107 | B138: PS-111 | C138: Madame | E138: Marine | J138: 37550 | K138: Saint-Avertin | L138: France | P138: 1 | Q138: 50 | T138: 2018-01-04 | AA138: 6 | AB138: oui | AC138: 0 | AE138: Fabien | AF138: 1977-03-27 | AG138: Tours | AI138: 37550 | AJ138: Saint-Avertin
A139: 108 | B139: PS-112 | C139: Monsieur | E139: Maxence | J139: 37550 | K139: Saint-Avertin | L139: France | P139: 1 | Q139: 50 | T139: 2018-01-04 | AA139: 6 | AB139: oui | AC139: 0 | AE139: Fabien | AF139: 1977-03-27 | AG139: Tours | AI139: 37550 | AJ139: Saint-Avertin
A140: 109 | B140: PS-113 | C140: Monsieur | E140: Remi | J140: 37550 | K140: Saint-Avertin | L140: France | P140: 1 | Q140: 50 | T140: 2018-01-04 | AA140: 6 | AB140: oui | AC140: 0 | AE140: Fabien | AF140: 1977-03-27 | AG140: Tours | AI140: 37550 | AJ140: Saint-Avertin
A141: 110 | B141: PS-114 | C141: Madame | E141: Pauline | J141: 31450 | K141: Issus | L141: France | P141: 2 | Q141: 100 | T141: 2018-02-14 | AA141: 6 | AB141: oui | AC141: 0
B142: PS-114.01 | C142: Madame | E142: Pauline | J142: 31450 | K142: Issus | P142: 1 | Q142: 50 | T142: 2019-12-24
B143: ps-115 | C143: Monsieur | E143: Julien | J143: 31670 | K143: Labège | L143: France | P143: 1 | Q143: 50 | T143: 2018-02-11 | AA143: 1
C144: Monsieur | E144: Julien | P144: -1 | Q144: -50 | T144: 2020-08-31
A145: 111 | B145: ps-116 | C145: Monsieur | E145: Christophe | J145: 31320 | K145: Castanet Tolosan | L145: France | P145: 10 | Q145: 500 | T145: 2018-02-14 | AA145: 6 | AC145: 0
A146: 112 | B146: ps-117 | C146: Madame | E146: Gwenola | J146: 31320 | K146: Castanet Tolosan | L146: France | P146: 10 | Q146: 500 | T146: 2018-02-14 | AA146: 6 | AC146: 0
A147: 113 | B147: ps-118 | C147: Madame | E147: Caroline | J147: 31670 | K147: Labège | L147: France | P147: 1 | Q147: 50 | T147: 2018-03-10 | AA147: 1 | AC147: 0
C148: Madame | E148: Caroline | P148: 1 | Q148: 50 | T148: 2020-08-31
A149: 114 | B149: ps-119 | C149: Monsieur | E149: Alexandre | J149: 13420 | K149: Gemenos | L149: France | P149: 1 | Q149: 50 | T149: 2017-12-22 | AA149: 6 | AB149: oui | AC149: 0
A150: 115 | B150: ps-120 | C150: Madame | E150: Mathilde | J150: 31670 | K150: Labège | L150: France | P150: 2 | Q150: 100 | T150: 2018-01-16 | AA150: 6 | AB150: oui | AC150: 0 | AE150: Gerald | AF150: 1975-02-15 | AG150: Gien | AI150: 31670 | AJ150: Labège
B151: ps-120.1 | C151: Madame | E151: Mathilde | J151: 31670 | K151: Labège | L151: France | P151: 2 | Q151: 100 | T151: 2021-04-17 | AA151: 6 | AB151: oui
A152: 116 | B152: ps-121 | C152: Madame | E152: Manon | J152: 31670 | K152: Labège | L152: France | P152: 2 | Q152: 100 | T152: 2018-01-16 | AA152: 6 | AB152: oui | AC152: 0 | AE152: Gerald | AF152: 1975-02-15 | AG152: Gien | AI152: 31670 | AJ152: Labège
B153: ps-121.1 | C153: Madame | E153: Manon | J153: 31670 | K153: Labège | L153: France | P153: 2 | Q153: 100 | T153: 2021-04-17 | AA153: 6
A154: 117 | B154: ps-122 | C154: Madame | E154: Eva | J154: 31670 | K154: Labège | L154: France | P154: 2 | Q154: 100 | T154: 2018-01-16 | AA154: 6 | AB154: oui | AC154: 0 | AE154: Gerald | AF154: 1975-02-15 | AG154: Gien | AI154: 31670 | AJ154: Labège
B155: ps-122.1 | C155: Madame | E155: Eva | J155: 31670 | K155: Labège | L155: France | P155: 2 | Q155: =P155*50 -> 100 | T155: 2021-04-17
B156: ps-122.2 | C156: Madame | E156: Eva | J156: 31670 | K156: Labège | L156: France | P156: 1 | Q156: 50 | R156: Chèque | T156: 2021-10-16
A157: 118 | B157: ps-123 | C157: Monsieur | E157: Alexandre | J157: 31750 | K157: Escalquens | L157: France | P157: 2 | Q157: 100 | T157: 2018-03-24 | AA157: 6 | AC157: =IF(ISBLANK(A157),"",SUMIFS(Q:Q,D:D,D157,E:E,E157)) -> 0
A158: 119 | B158: ps-124 | C158: Madame | E158: Aida | J158: 31650 | K158: St Orens de Gameville | L158: France | P158: 10 | Q158: 500 | T158: 2018-03-22 | AA158: 6 | AC158: 0
B159: ps124.01 | C159: Madame | E159: Aida | P159: 2 | Q159: 100 | T159: 2018-07-12
A160: 120 | B160: ps-125 | C160: Monsieur | E160: Hervé | J160: 31650 | K160: St Orens de Gameville | L160: France | P160: 10 | Q160: 500 | T160: 2018-03-22 | AA160: 1 | AC160: 0
B161: PS-125.01 | C161: Monsieur | E161: Hervé | P161: 2 | Q161: 100 | T161: 2018-07-12
A162: 121 | B162: ps-126 | C162: Madame | E162: Elisabeth | J162: 31670 | K162: Labège | L162: France | P162: 1 | Q162: 50 | T162: 2018-03-31 | AA162: 6 | AC162: 0
A163: 122 | B163: ps-127 | C163: Monsieur | E163: Anne | J163: 31670 | K163: Labège | L163: France | P163: 10 | Q163: 500 | T163: 2018-04-13 | AA163: 6 | AC163: 0
A164: 123 | B164: ps-128 | C164: Monsieur | E164: Bernard | J164: 31450 | K164: Donneville | L164: France | P164: 4 | Q164: 200 | T164: 2018-04-12 | AA164: 6 | AC164: 0
A165: 124 | B165: ps-129 | C165: Monsieur | E165: Olivier | J165: 31100 | K165: Toulouse | L165: France | P165: 10 | Q165: 500 | T165: 2018-04-17 | AA165: 6 | AC165: 0
A166: 125 | B166: ps-130 | C166: Madame | E166: Monique | J166: 31450 | K166: Donneville | L166: France | P166: 2 | Q166: 100 | T166: 2018-04-19 | AA166: 6 | AC166: 0
B167: ps-130.01 | C167: Madame | E167: MONIQUE | J167: 31450 | K167: DONNEVILLE | L167: France | O167: déclare être déjà sociétaire et souhaite acquérir de nouvelles parts de la Société Coopérative d'Intérêt Collectif ICEA et, pour ce faire, déclare souscrire au capital de la Société Coopérative d'Intérêt Collectif ICEA | P167: 2 | Q167: 100 | R167: Par virement à IBAN: FR76 1027 8022 9200 0201 8000 148 BIC: CMCIFR2A | S167: J'accepte d'être convoqué(e) aux assemblées par courrier électronique, que la coopérative ICEA ait recours à la transmission par voie électronique en lieu et place de l'envoi postal lors de l'exécution des formalités de convocation, d'envoi de documents d'informations, de vote à distance et de documents administratifs et plus généralement d'être destinataire d’informations et de communication institutionnelles de la part de ma coopérative. Cette autorisation a comme seul objectif de faciliter la gestion d’ICEA : limiter les frais de gestion et économiser le papier. En aucun cas les informations communiquées ne seront transmises à un tiers. Je reconnais que la présente souscription, d'un caractère purement privé, n'a pas lieu dans le cadre d'une offre de titres. Je reconnais avoir pris connaissance de la notice ci-contre. J'accepte les statuts de la coopérative, disponible sur https://icea-enr.fr | T167: 2020-04-30 | U167: DONNEVILLE | V167: . | W167: 2 | X167: 100 | Y167: oui | Z167: click
A168: 126 | B168: ps-131 | C168: Monsieur | E168: Pierre | J168: 31170 | K168: Tournefeuille | L168: France | P168: 10 | Q168: =P168*50 -> 500 | T168: 2018-04-23 | AA168: 6 | AC168: 0
A169: 127 | B169: ps-132 | C169: Monsieur | E169: Francis | J169: 31450 | K169: Montlaur | L169: France | P169: 1 | Q169: 50 | T169: 2018-04-15 | AA169: 6 | AC169: 0
A170: 128 | B170: ps-133 | C170: Monsieur | E170: Bruno | J170: 31290 | K170: Gardouch | L170: France | P170: 2 | Q170: 100 | T170: 2018-04-30 | AA170: 1 | AC170: 0
A171: 129 | B171: ps-134 | C171: Monsieur | E171: Henri | J171: 31520 | K171: Ramonville | L171: France | P171: 10 | Q171: 500 | T171: 2018-05-07 | AA171: 6 | AC171: 0
A172: 130 | B172: ps-135 | C172: Madame | E172: Monique | J172: 31670 | K172: Labège | L172: France | P172: 10 | Q172: 500 | T172: 2018-05-16 | AA172: 6 | AC172: 0
A173: 131 | B173: ps-136 | C173: Monsieur | E173: Jean-Louis | J173: 31670 | K173: Labège | L173: France | P173: 2 | Q173: 100 | T173: 2018-05-14 | AA173: 6 | AC173: 0
A174: 132 | B174: ps-137 | C174: Madame | E174: Françoise | J174: 31450 | K174: Ayguesvives | L174: France | P174: 4 | Q174: 200 | T174: 2018-05-25 | AA174: 6 | AC174: 0
A175: 133 | B175: ps-138 | C175: Société | E175: Monsieur le président | J175: 69120 | K175: Vaulx en velin | L175: France | P175: 40 | Q175: 2000 | T175: 2018-05-30 | Z175: Emmanuel Soulias | AA175: 7 | AC175: 0
A176: 134 | B176: ps-139 | C176: Collectivité | E176: Monsieur le Maire | J176: 31450 | K176: Donneville | L176: France | P176: 5 | Q176: 250 | T176: 2018-04-19 | Z176: Dusquesnoy Bernard | AA176: 3 | AC176: 0
A177: 135 | B177: ps-140 | C177: Collectivité | E177: Monsieur le Maire | J177: 31450 | K177: Montbrun-Lauragais | L177: France | P177: 5 | Q177: 250 | T177: 2018-06-01 | Z177: Bolet Gérard | AA177: 3 | AC177: 0
A178: 136 | B178: ps-141 | C178: Madame | E178: Bérangère | J178: 31320 | K178: Castanet Tolosan | L178: France | P178: 1 | Q178: 50 | T178: 2018-06-11 | AA178: 6 | AC178: 0
A179: 137 | B179: ps-142 | C179: Madame | E179: Florence | J179: 31750 | K179: Escalquens | L179: France | P179: 5 | Q179: 250 | T179: 2018-07-01 | AA179: 6 | AC179: 0
A180: 138 | B180: ps-143 | C180: Monsieur | E180: Bruno | J180: 31750 | K180: Escalquens | L180: France | P180: 5 | Q180: 250 | T180: 2018-07-01 | AA180: 6 | AC180: 0
A181: 139 | B181: ps-144 | C181: Madame | E181: Annie | J181: 31450 | K181: Montlaur | L181: France | P181: 1 | Q181: 50 | T181: 2018-07-27 | Z181: par Inet | AA181: 6 | AC181: 0
A182: 140 | B182: ps-145 | C182: Monsieur | E182: Gaetan | J182: 31120 | K182: Toulouse | L182: France | P182: 2 | Q182: 100 | T182: 2018-08-07 | Z182: par Inet | AA182: 6 | AC182: 0
B183: PS-145.01 | C183: Monsieur | E183: GAETAN | J183: 31200 | K183: Toulouse | L183: France | O183: déclare être déjà sociétaire et souhaite acquérir de nouvelles parts de la Société Coopérative d'Intérêt Collectif ICEA et, pour ce faire, déclare souscrire au capital de la Société Coopérative d'Intérêt Collectif ICEA | P183: 4 | Q183: 200 | R183: Par virement à IBAN: FR76 1027 8022 9200 0201 8000 148 BIC: CMCIFR2A | S183: J'accepte d'être convoqué(e) aux assemblées par courrier électronique, que la coopérative ICEA ait recours à la transmission par voie électronique en lieu et place de l'envoi postal lors de l'exécution des formalités de convocation, d'envoi de documents d'informations, de vote à distance et de documents administratifs et plus généralement d'être destinataire d’informations et de communication institutionnelles de la part de ma coopérative. Cette autorisation a comme seul objectif de faciliter la gestion d’ICEA : limiter les frais de gestion et économiser le papier. En aucun cas les informations communiquées ne seront transmises à un tiers. Je reconnais que la présente souscription, d'un caractère purement privé, n'a pas lieu dans le cadre d'une offre de titres. Je reconnais avoir pris connaissance de la notice ci-contre. J'accepte les statuts de la coopérative, disponible sur https://icea-enr.fr | T183: 2020-03-21 | U183: Toulouse | V183: Bravo ! | W183: 4 | X183: 200 | Y183: oui | Z183: click
A184: 141 | B184: ps-146 | C184: Monsieur | E184: Sébastien | J184: 31000 | K184: Toulouse | L184: France | P184: 10 | Q184: =P184*50 -> 500 | T184: 2018-07-20 | AA184: 6 | AC184: 0
A185: 142 | B185: ps-147 | C185: Madame | E185: Fréderique | J185: 31450 | K185: Ayguesvives | L185: France | P185: 1 | Q185: =P185*50 -> 50 | T185: 2018-09-08 | Z185: Jour asso Ayguesvives | AA185: 6 | AC185: 0
A186: 143 | B186: ps-148 | C186: Monsieur | E186: Jacques | J186: 31450 | K186: Ayguesvives | L186: France | P186: 1 | Q186: =P186*50 -> 50 | T186: 2018-09-08 | Z186: Jour asso Ayguesvives | AA186: 6 | AC186: 0
A187: 144 | B187: ps-149 | C187: Monsieur | E187: Xavier | J187: 31450 | K187: Ayguesvives | L187: France | P187: 5 | Q187: =P187*50 -> 250 | T187: 2018-09-08 | Z187: Jour asso Ayguesvives | AA187: 6 | AC187: 0
A188: 145 | B188: ps-150 | C188: Madame | E188: Mireille | J188: 31450 | K188: Ayguesvives | L188: France | P188: 4 | Q188: =P188*50 -> 200 | T188: 2018-09-08 | Z188: Jour asso Ayguesvives | AA188: 6 | AC188: 0
B189: ps-150.01 | C189: Madame | E189: Mireille | J189: 31450 | K189: AYGUESVIVES | L189: France | O189: déclare être déjà sociétaire et souhaite acquérir de nouvelles parts de la Société Coopérative d'Intérêt Collectif ICEA et, pour ce faire, déclare souscrire au capital de la Société Coopérative d'Intérêt Collectif ICEA | P189: 6 | Q189: 300 | R189: Par chèque à l'ordre d'ICEA à envoyerICEA 815 la pyrénéenne - Le prologue -31670Labège | S189: J'accepte d'être convoqué(e) aux assemblées par courrier électronique, que la coopérative ICEA ait recours à la transmission par voie électronique en lieu et place de l'envoi postal lors de l'exécution des formalités de convocation, d'envoi de documents d'informations, de vote à distance et de documents administratifs et plus généralement d'être destinataire d’informations et de communication institutionnelles de la part de ma coopérative. Cette autorisation a comme seul objectif de faciliter la gestion d’ICEA : limiter les frais de gestion et économiser le papier. En aucun cas les informations communiquées ne seront transmises à un tiers. Je reconnais que la présente souscription, d'un caractère purement privé, n'a pas lieu dans le cadre d'une offre de titres. Je reconnais avoir pris connaissance de la notice ci-contre. J'accepte les statuts de la coopérative, disponible sur https://icea-enr.fr | T189: 2020-04-27 | U189: ayguesvives | V189: . | W189: 6 | X189: 300 | Y189: oui | Z189: click | AC189: =IF(ISBLANK(A189),"",SUMIFS(Q:Q,D:D,D189,E:E,E189)) -> 
A190: 146 | B190: ps-151 | C190: Madame | E190: Léna | J190: 31560 | K190: MONTGEARD | L190: France | P190: 1 | Q190: =P190*50 -> 50 | T190: 2018-09-09 | Z190: ERHARD Sandra (inet) | AA190: 6 | AC190: 0 | AE190: Sandra | AF190: 1988-12-30 | AG190: Mulhouse | AI190: 31560 | AJ190: Montgeard
A191: 147 | B191: ps-152 | C191: Madame | E191: ANGELE | J191: 31560 | K191: MONTGEARD | L191: France | P191: 1 | Q191: 50 | T191: 2018-09-09 | Z191: CAILLE JEROME(Inet) | AA191: 6 | AC191: 0 | AE191: Jerôme | AF191: 1978-04-23 | AG191: Bois colombe | AI191: 31560 | AJ191: Montgeard
A192: 148 | B192: ps-153 | C192: Monsieur | E192: LIAM | J192: 31560 | K192: MONTGEARD | L192: France | P192: 1 | Q192: 50 | T192: 2018-09-09 | Z192: CAILLE JEROME (Inet) | AA192: 6 | AC192: 0 | AE192: Jerôme | AF192: 1978-04-23 | AG192: Bois colombe | AI192: 31560 | AJ192: Montgeard
A193: 149 | B193: ps-154 | C193: Madame | E193: Karine | J193: 31450 | K193: Ayguesvives | L193: France | P193: 2 | Q193: 100 | T193: 2018-09-12 | Z193: Inet | AA193: 6 | AC193: 0
A194: 150 | B194: ps-155 | C194: Monsieur | E194: Philippe | J194: 31450 | K194: AYGUESVIVES | L194: France | P194: 10 | Q194: 500 | T194: 2018-09-13 | Z194: Inet | AA194: 6 | AC194: 0
A195: 151 | B195: ps-156 | C195: Monsieur | E195: Marcel | J195: 31650 | K195: Saint Orens | L195: France | P195: 1 | Q195: 50 | T195: 2018-09-20 | Z195: Campestral | AA195: 6 | AC195: 0
A196: 152 | B196: ps-157 | C196: Madame | E196: Marie-Régine | J196: 31320 | K196: Castanet Tolosan | L196: France | P196: 2 | Q196: 100 | T196: 2018-09-22 | Z196: Innauguration borne | AA196: 6 | AC196: 0
A197: 153 | B197: ps-158 | C197: Madame | E197: Annie | J197: 31450 | K197: Noueilles | L197: France | P197: 1 | Q197: 50 | T197: 2018-09-22 | Z197: Campestral | AA197: 6 | AC197: 0
A198: 154 | B198: ps-159 | C198: Monsieur | E198: JULIEN | J198: 35000 | K198: RENNES | L198: France | P198: 4 | Q198: 200 | T198: 2018-10-03 | Z198: Inet | AA198: 6 | AC198: 0
A199: 155 | B199: ps-160 | C199: Société | E199: Monsieur le président | J199: 31300 | K199: Toulouse | L199: France | P199: 2 | Q199: 100 | T199: 2018-09-24 | Z199: Richier François DG | AA199: 7 | AC199: 0
A200: 156 | B200: ps-161 | C200: Madame | E200: Catherine | J200: 31320 | K200: Castanet Tolosan | L200: France | P200: 1 | Q200: 50 | T200: 2018-10-04 | Z200: Inet | AA200: 6 | AC200: 0
... 260 more rows

Sheet 2ème demande
B1: Liste des sociétaires d'ICEA le 17/10/2020
C3: Plafond atteind avec parts sociales + compte courant d'associés bloqué 3 ans, ramené à 500 €
C5: Sociétaire > au plafond de 500 € ramenés à 500 €
C7: Sociétaire non éligible
B8: Ref | C8: Titre | D8: Nom de naissance | E8: Prénom | F8: date de naissance | G8: lieu naissance | H8: Adresse | I8: CP | J8: Ville | K8: Pays | L8: Total parts en € | M8: CCA en € | N8: PS+CCA éligible en €
L9: 135200 | M9: 38000 | N9: 101400
A10: 1 | B10: FA-01 | C10: Monsieur | D10: Gardette | E10: Jean-Paul | F10: 1952-06-28 | G10: Lyon 2° | H10: Appartement 1 – 8 Allée de Pomarède | I10: 31670 | J10: Labège | K10: France | L10: 500 | M10: 5000 | N10: 500
A11: 2 | B11: FA-02 | C11: Madame | D11: Bérigaud | E11: Dominique | F11: 1954-06-10 | G11: Privas (07) | H11: Appartement 1 – 8 Allée de Pomarède | I11: 31670 | J11: Labège | K11: France | L11: 500 | M11: 0 | N11: 500
A12: 3 | B12: FA-03 | C12: Madame | D12: Lahaye | E12: Béatrice | F12: 1941-06-05 | G12: Biarritz (64) | H12: 71, Avenue Louise Couderc | I12: 31670 | J12: Labège | K12: France | L12: 500 | M12: 2000 | N12: 500
A13: 4 | B13: FA-04 | C13: Monsieur | D13: Laurens | E13: Christian | F13: 1950-08-06 | G13: Albi (81) | H13: 6, chemin de l'olivier | I13: 31670 | J13: Labège | K13: France | L13: 50 | M13: 0 | N13: 50
A14: 5 | B14: FA-05 | C14: Monsieur | D14: Depaux | E14: Jean Marie | F14: 1952-08-11 | G14: Epernay (51) | H14: 5, chemin du Val | I14: 31670 | J14: Labège | K14: France | L14: 200 | M14: 500 | N14: 500
A15: 6 | B15: FA-06 | C15: Monsieur | D15: Laborde | E15: Bertrand | F15: 1946-03-22 | G15: Puteaux (92) | H15: 7, Avenue des Lascardos | I15: 31320 | J15: Castanet-Tolosan | K15: France | L15: 500 | M15: 2000 | N15: 500
A16: 7 | B16: FA-07 | C16: Madame | D16: Jeanpes | E16: Michelle | F16: 1955-10-04 | G16: Saint Denis (93) | H16: 12 allée des passeraux | I16: 40130 | J16: Capbreton | K16: France | L16: 500 | M16: 0 | N16: 500
A17: 8 | B17: FA-08 | C17: Monsieur | D17: Fontan | E17: Guy | F17: 1955-07-31 | G17: Cazères (31) | H17: 12 allée des passeraux | I17: 40130 | J17: Capbreton | K17: France | L17: 500 | M17: 0 | N17: 500
A18: 9 | B18: FA-09 | C18: Monsieur | D18: Hilaire | E18: Philippe | F18: 1950-06-14 | G18: Laxou (54) | H18: 5 ch de la combe d'Oly | I18: 31320 | J18: Castanet-Tolosan | K18: France | L18: 500 | M18: 0 | N18: 500
A19: 10 | B19: FA-10 | C19: Madame | D19: Janin | E19: Dominique | F19: 1950-09-28 | G19: Paris 19° | H19: 6 ch de la combe d'Oly | I19: 31320 | J19: Castanet-Tolosan | K19: France | L19: 500 | M19: 0 | N19: 500
A20: 11 | B20: FA-11 | C20: Monsieur | D20: Zamolo | E20: Philippe | F20: 1961-01-24 | G20: Ostricourt (59) | H20: 3,ch de Combe d'Oly | I20: 31320 | J20: Castanet-Tolosan | K20: France | L20: 300 | M20: 0 | N20: 300
A21: 12 | B21: FA-12 | C21: Madame | D21: Comble | E21: Christine | F21: 1962-01-30 | G21: Seclin(59) | H21: 3,ch de Combe d'Oly | I21: 31320 | J21: Castanet-Tolosan | K21: France | L21: 300 | M21: 0 | N21: 300
A22: 13 | B22: FA-13 | C22: Madame | D22: Irvoas | E22: Rozenn | F22: 1971-04-29 | G22: Toulouse (31) | H22: 127, rue du Pic du midi | I22: 31450 | J22: Labastide de Beauvoir | K22: France | L22: 500 | M22: 4000 | N22: 500
A23: 14 | B23: FA-14 | C23: Monsieur | D23: ABRANTES | E23: Philippe | F23: 1961-06-29 | G23: Toulouse (31) | H23: 127, rue du Pic du midi | I23: 31450 | J23: Labastide de Beauvoir | K23: France | L23: 500 | M23: 0 | N23: 500
A24: 15 | B24: FA-15 | C24: Monsieur | D24: Ducert | E24: Claude | F24: 1934-07-25 | G24: Martigny le Comte (71) | H24: Appartement 3 – 9 rue Coluche | I24: 31130 | J24: Balma | K24: France | L24: 500 | M24: 0 | N24: 500
A25: 16 | B25: FA-16 | C25: Madame | D25: Vié | E25: Michèle | F25: 1947-08-09 | G25: Toulouse (31) | H25: Appartement 3 – 9 rue Coluche | I25: 31130 | J25: Balma | K25: France | L25: 500 | M25: 0 | N25: 500
A26: 17 | B26: FA-17 | C26: Monsieur | D26: Roustan | E26: Jean-Paul | F26: 1954-10-31 | G26: Sainte Afrique (12) | H26: 7 passage St Lucie | I26: 31320 | J26: Castanet-Tolosan | K26: France | L26: 100 | M26: 0 | N26: 100
A27: 18 | B27: FA-20 | C27: Monsieur | D27: Astre | E27: André | F27: 1950-11-27 | G27: Rouffiac (11) | H27: 1 D – Allée Chantecaille | I27: 31670 | J27: Labège | K27: France | L27: 300 | M27: 0 | N27: 300
A28: 19 | B28: FA-21 | C28: Monsieur | D28: Oulibaut | E28: Eric | F28: 1964-02-16 | G28: Toulouse (31) | H28: 24, rue du colonel Gendreau | I28: 31320 | J28: Castanet-Tolosan | K28: France | L28: 500 | M28: 0 | N28: 500
A29: 20 | B29: FA-22 | C29: Madame | D29: Azzola | E29: Corinne | F29: 1969-02-23 | G29: Rodez (12) | H29: 1 rue du Capitaine Fracasse | I29: 31320 | J29: Castanet-Tolosan | K29: France | L29: 500 | M29: 0 | N29: 500
A30: 21 | B30: FA-23 | C30: Monsieur | D30: Trebosc | E30: David | F30: 1969-11-13 | G30: Villeneuve sur Lot (47) | H30: 1 rue du Capitaine Fracasse | I30: 31320 | J30: Castanet-Tolosan | K30: France | L30: 500 | M30: 0 | N30: 500
A31: 22 | B31: FA-24 | C31: Monsieur | D31: Trébosc | E31: Florian | F31: 2002-06-07 | G31: Toulouse (31) | H31: 1 rue du Capitaine Fracasse | I31: 31320 | J31: Castanet-Tolosan | K31: France | L31: 500 | M31: 0 | N31: 500
A32: 23 | B32: FA-25 | C32: Madame | D32: Trébosc | E32: Marion | F32: 1997-02-19 | G32: Toulouse (31) | H32: 1 rue du Capitaine Fracasse | I32: 31320 | J32: Castanet-Tolosan | K32: France | L32: 500 | M32: 0 | N32: 500
A33: 24 | B33: FA-26 | C33: Monsieur | D33: Rivière | E33: Alain | F33: 1950-07-08 | G33: Paris 19° | H33: 51 av des troubadours | I33: 31750 | J33: Escalquens | K33: France | L33: 500 | M33: 0 | N33: 500
A34: 25 | B34: FA-27 | C34: Monsieur | D34: Milhet | E34: Serge | F34: 1952-09-29 | G34: Coustances(50) | H34: 2 rue des Pyrénées | I34: 31670 | J34: Labège | K34: France | L34: 100 | M34: 0 | N34: 100
A35: 26 | B35: FA-28 | C35: Monsieur | D35: Delmas | E35: Pascal | F35: 1961-06-04 | G35: Albi (81) | H35: 9 Chemin des Maynardes | I35: 31670 | J35: Labège | K35: France | L35: 500 | M35: 0 | N35: 500
A36: 27 | B36: FA-29 | C36: Madame | D36: Gaucher | E36: Mireille | F36: 1963-09-23 | G36: Chinon (37) | H36: 9 Chemin des Maynardes | I36: 31670 | J36: Labège | K36: France | L36: 500 | M36: 0 | N36: 500
A37: 28 | B37: FA-30 | C37: Madame | D37: Gardette | E37: Marion | F37: 1982-11-30 | G37: Bron (69) | H37: Appartement 1 – 8 Allée de Pomarède | I37: 31670 | J37: Labège | K37: France | L37: 500 | M37: 0 | N37: 500
A38: 29 | B38: FA-31 | C38: Monsieur | D38: Gardette | E38: Laurent | F38: 1980-03-02 | G38: Ste Foy les Lyon (69) | H38: 21, rue Bigot appt 201 bat D | I38: 33000 | J38: Bordeaux | K38: France | L38: 500 | M38: 0 | N38: 500
A39: 30 | B39: FA-32 | C39: Madame | D39: LECOCQ | E39: Anne | F39: 1959-08-31 | G39: Douai (59) | H39: 12 rue Bernard Dard | I39: 31670 | J39: Labège | K39: France | L39: 200 | M39: 0 | N39: 200
A40: 31 | B40: FA-33 | C40: Monsieur | D40: Carbonne | E40: Francis | F40: 1963-07-07 | G40: Toulouse (31) | H40: 34, chemin du ruisseau de Fontbazy | I40: 31450 | J40: Donneville | K40: France | L40: 100 | M40: 0 | N40: 100
A41: 32 | B41: FA-34 | C41: Madame | D41: Glain | E41: Brigitte | F41: 1958-10-14 | G41: Paris 15° | H41: 5, rue Moulin Guillaume | I41: 31450 | J41: Donneville | K41: France | L41: 500 | M41: 0 | N41: 500
A42: 33 | B42: FA-35 | C42: Madame | D42: Casagrande | E42: Josephine | F42: 1944-03-03 | G42: Gorgo-al-monticano-Italie | H42: 56, chemin du ruisseau de Fontbazy | I42: 31450 | J42: Donneville | K42: France | L42: 100 | M42: 0 | N42: 100
A43: 34 | B43: FA-36 | C43: Madame | D43: Collot | E43: Odile | F43: 1941-04-20 | G43: Moutier Malcard (23) | H43: 27 chemin des graves | I43: 31450 | J43: Montgiscard | K43: France | L43: 500 | M43: 0 | N43: 500
A44: 35 | B44: FA-37 | C44: Association | D44: GPPEP | E44: Monsieur le président | F44: 1958-06-25 | G44: Sidi Bel Abbes | H44: Chez Joel Mercy-Relais de la Fontaine | I44: 40400 | J44: Saint Yaguen | K44: France | L44: 1000 | M44: 8000
A45: 36 | B45: FA-38 | C45: Monsieur | D45: Vauprès | E45: Simon | F45: 1985-07-04 | G45: à Bayeux(14) | H45: 9 rue de Labège, appt A06 | I45: 31320 | J45: Castanet-Tolosan | K45: France | L45: 500 | M45: 0 | N45: 500
A46: 37 | B46: FA-39 | C46: Monsieur | D46: Prido | E46: Marc | F46: 1960-08-27 | G46: Paris 13eme | H46: 15, Domaine du Tricou | I46: 31670 | J46: Labège | K46: France | L46: 500 | M46: 0 | N46: 500
A47: 38 | B47: FA-40 | C47: Madame | D47: Prido-Bernadberoy | E47: Anais | F47: 1991-07-05 | G47: à Toulouse(31) | H47: 1 rue Emile Heybrard- Appt B4S | I47: 31300 | J47: Toulouse | K47: France | L47: 500 | M47: 0 | N47: 500
A48: 39 | B48: FA-41 | C48: Monsieur | D48: Isnard | E48: Jean-Marc | F48: 1947-10-07 | G48: Lyon 7 eme | H48: 8 Place Clémence Isaure | I48: 31320 | J48: Castanet-Tolosan | K48: France | L48: 500 | M48: 0 | N48: 500
A49: 40 | B49: FA-42 | C49: Madame | D49: Bernard | E49: Pascale | F49: 1964-09-02 | G49: Narbonne(11) | H49: 18 rue Pyrénnées | I49: 31670 | J49: Labège | K49: France | L49: 500 | M49: 0 | N49: 500
A50: 41 | B50: FA-43 | C50: Monsieur | D50: Cherdo | E50: Eric | F50: 1965-10-03 | G50: Saint Brieuc | H50: 29 rue des Ménestrels | I50: 31670 | J50: Labège | K50: France | L50: 500 | M50: 0 | N50: 500
A51: 42 | B51: FA-44 | C51: Madame | D51: RAAD | E51: Mona | F51: 1966-11-20 | G51: Remhala -Liban | H51: 29 rue des Ménestrels | I51: 31670 | J51: Labège | K51: France | L51: 500 | M51: 0 | N51: 500
A52: 43 | B52: FA-45 | C52: Monsieur | D52: Manuguerra | E52: Jean | F52: 1950-01-08 | G52: Casablanca-Maroc | H52: 24 Ch du Ruisseau de Fontbazi | I52: 31450 | J52: Donneville | K52: France | L52: 200 | M52: 0 | N52: 200
A53: 44 | B53: FA-46 | C53: Madame | D53: Pulgar | E53: Sandrine | F53: 1971-06-05 | G53: L'Union (31) | H53: 6 av de Cocagne | I53: 31570 | J53: Lanta | K53: France | L53: 500 | M53: 0 | N53: 500
A54: 45 | B54: FA-47 | C54: Monsieur | D54: Thil | E54: Christian | F54: 1970-11-25 | G54: Aureville | H54: 1400 route de Mongiscard | I54: 31320 | J54: Aureville | K54: France | L54: 500 | M54: 5000 | N54: 500
A55: 46 | B55: FA-48 | C55: Monsieur | D55: Crouzil | E55: Bernard | F55: 1956-01-29 | G55: Doneville | H55: 17 route Départementale 813 | I55: 31450 | J55: Donneville | K55: France | L55: 200 | M55: 0 | N55: 200
A56: 47 | B56: FA-49 | C56: Monsieur | D56: Ménoni | E56: Emmanuel | F56: 1957-12-22 | G56: Thonon les bains | H56: Le village | I56: 31440 | J56: Bachos | K56: France | L56: 500 | M56: 0 | N56: 500
A57: 48 | B57: PS-50 | C57: Monsieur | D57: Galinier | E57: Michel | F57: 1957-09-14 | G57: Mazamet (81) | H57: 9 ch de la fontaine St Sernin | I57: 31670 | J57: Labège | K57: France | L57: 500 | M57: 0 | N57: 500
A58: 49 | B58: PS-51 | C58: Madame | D58: Boyer | E58: Florence | F58: 1960-08-22 | G58: Mazamet (81) | H58: 9 ch de la fontaine St Sernin | I58: 31670 | J58: Labège | K58: France | L58: 500 | M58: 0 | N58: 500
A59: 50 | B59: PS-52 | C59: Madame | D59: Petit | E59: Hélène | F59: 1943-12-16 | G59: St Dizier(52) | H59: 5, rue du Bedel | I59: 31750 | J59: Escalquens | K59: France | L59: 500 | M59: 0 | N59: 500
A60: 51 | B60: PS-53 | C60: Monsieur | D60: MAMPEY | E60: Roger | F60: 1946-08-04 | G60: Thil(54) | H60: 5, rue du Bédel | I60: 31750 | J60: Escalquens | K60: France | L60: 500 | M60: 0 | N60: 500
A61: 52 | B61: PS-54 | C61: Monsieur | D61: Salin | E61: Gerald | F61: 1975-02-15 | G61: Gien | H61: 19 rue des ménéstrels | I61: 31670 | J61: Labège | K61: France | L61: 500 | M61: 0 | N61: 500
A62: 53 | B62: PS-55 | C62: Monsieur | D62: Noeureuil | E62: Eric | F62: 1956-12-12 | G62: Auchel | H62: 1b, rue georges Vallerey ap 105 bat 1 | I62: 31320 | J62: Castanet-Tolosan | K62: France | L62: 2000 | M62: 4000 | N62: 500
A63: 54 | B63: PS-56 | C63: Monsieur | D63: Adam | E63: Pascal | F63: 1961-12-04 | H63: 2 imp de restanc | I63: 31450 | J63: Ayguesvives | K63: France | L63: 500 | M63: 0 | N63: 500
A64: 55 | B64: PS-57 | C64: Monsieur | D64: Gloriès | E64: Bernard | F64: 1960-03-24 | G64: Mazamet (81) | H64: 11 rue des Pyrténées | I64: 31670 | J64: Labège | K64: France | L64: 500 | M64: 0 | N64: 500
A65: 56 | B65: PS-58 | C65: Madame | D65: Palies | E65: Andree | F65: 1950-08-21 | G65: Bedarieux | H65: 55 rue de la Bigorre | I65: 31470 | J65: St Lys | K65: France | L65: 100 | M65: 0 | N65: 100
A66: 57 | B66: PS-59 | C66: Madame | D66: Laforge | E66: Aurelie | F66: 1982-07-12 | G66: Maison Laffite78 | H66: 5 rue du Mistral | I66: 31750 | J66: Escalquens | K66: France | L66: 100 | M66: 1000 | N66: 500
A67: 58 | B67: PS-60 | C67: Société | D67: JMP Chauffage | E67: JMPChauffage | H67: ZA de Bogues - Av de Toulouse | I67: 31750 | J67: Escalquens | K67: France | L67: 200 | M67: 0
A68: 59 | B68: PS-61 | C68: Monsieur | D68: Bolet | E68: Gérard | F68: 1953-03-19 | G68: Paris 13eme | H68: 1051 Ch de la Ginestière | I68: 31450 | J68: Montbrun-Lauragais | K68: France | L68: 500 | M68: 0 | N68: 500
A69: 60 | B69: PS-62 | C69: Madame | D69: Gimenez | E69: Marie Thérese | F69: 1959-07-12 | G69: Oran | H69: 4 res des Jardins Occitans | I69: 31520 | J69: Ramonville St A | K69: France | L69: 1500 | M69: 0 | N69: 500
A70: 61 | B70: PS-63 | C70: Monsieur | D70: Corberand | E70: Philippe | F70: 1966-01-15 | G70: Toulouse (31) | H70: 8 rue du Mont Vallier | I70: 31750 | J70: Escalquens | K70: France | L70: 5000 | M70: 0 | N70: 500
A71: 62 | B71: PS-64 | C71: Madame | D71: Garcia | E71: Thérese | F71: 1947-05-30 | G71: Toulouse (31) | H71: 7 av Lascardos | I71: 31320 | J71: Castanet-Tolosan | K71: France | L71: 500 | M71: 0 | N71: 500
A72: 63 | B72: PS-65 | C72: Madame | D72: Robinet | E72: Nathalie | F72: 1965-01-09 | G72: La Rochelle | H72: 3 ch des Troubadours | I72: 31450 | J72: Ayguesvives | K72: France | L72: 100 | M72: 0 | N72: 100
A73: 64 | B73: PS-66 | C73: Madame | D73: Lomont | E73: Elsa | F73: 1985-06-22 | G73: Toulouse (31) | H73: 17 rue Gramat | I73: 31000 | J73: Toulouse | K73: France | L73: 100 | M73: 0 | N73: 100
A74: 65 | B74: PS-67 | C74: Madame | D74: Gomart-Massif | E74: Martine | F74: 1954-07-29 | G74: Carbonne(31) | H74: 5 ch du Val | I74: 31670 | J74: Labège | K74: France | L74: 100 | M74: 500 | N74: 500
A75: 66 | B75: PS-68 | C75: Monsieur | D75: Koechlin | E75: Laurent | F75: 1951-07-27 | G75: Paris | H75: 244 Caminot del Basquet | I75: 31320 | J75: Aureville | K75: France | L75: 100 | M75: 0 | N75: 100
A76: 67 | B76: PS-69 | C76: Madame | D76: Bourelle | E76: Monique | F76: 1942-04-03 | G76: Caragoudes | H76: 243 route de Vigoulet Auzil | I76: 31320 | J76: Aureville | K76: France | L76: 200 | M76: 0 | N76: 200
A77: 68 | B77: PS-70 | C77: Monsieur | D77: Baldelli | E77: Paul | F77: 1943-08-28 | G77: St Iblitto | H77: 243 route de Vigoulet Auzil | I77: 31320 | J77: Aureville | K77: France | L77: 500 | M77: 0 | N77: 500
A78: 69 | B78: PS-71 | C78: Madame | D78: Delheure | E78: Jeanne | F78: 1944-09-10 | G78: Mende (48) | H78: 3 impasse Bellevue | I78: 31450 | J78: Ayguesvives | K78: France | L78: 500 | M78: 0 | N78: 500
A79: 70 | B79: PS-72 | C79: Monsieur | D79: Bras | E79: Jean | F79: 1939-07-27 | G79: Sébrazac | H79: 3 impasse Bellevue | I79: 31450 | J79: Ayguesvives | K79: France | L79: 500 | M79: 0 | N79: 500
A80: 71 | B80: PS-73 | C80: Monsieur | D80: Parmentier | E80: Michel | F80: 1955-03-12 | G80: Philippeville | H80: 34 rue du Pastel | I80: 31750 | J80: Escalquens | K80: France | L80: 100 | M80: 0 | N80: 100
A81: 72 | B81: PS-74 | C81: Madame | D81: Gimberede | E81: Pierrette | F81: 1942-05-10 | G81: Toulouse (31) | H81: 7 rue des Menestrels | I81: 31670 | J81: Labège | K81: France | L81: 50 | M81: 0 | N81: 50
A82: 73 | B82: PS-75 | C82: Monsieur | D82: Thil-Pulgar | E82: Gaël | F82: 2011-07-05 | G82: Toulouse (31) | H82: 6 av de Cocagne | I82: 31570 | J82: Lanta | K82: France | L82: 500 | M82: 0 | N82: 500
A83: 74 | B83: PS-76 | C83: Monsieur | D83: Imbert-Pulgar | E83: Pauline | F83: 2003-12-28 | G83: Toulouse (31) | H83: 6 av de Cocagne | I83: 31570 | J83: Lanta | K83: France | L83: 500 | M83: 0 | N83: 500
A84: 75 | B84: PS-77 | C84: Monsieur | D84: Dardel | E84: Renaud | F84: 1955-09-20 | G84: Philippeville | H84: 17 bis Ch Fontaine St Sernin | I84: 31670 | J84: Labège | K84: France | L84: 500 | M84: 0 | N84: 500
A85: 76 | B85: PS-78 | C85: Collectivité | D85: Labège | E85: Monsieur le Maire | H85: rue de la Croix Rose | I85: 31670 | J85: Labège | K85: France | L85: 500 | M85: 0
A86: 77 | B86: PS-79 | C86: Monsieur | D86: Zizi | E86: Farid | F86: 1962-02-16 | G86: Suresnes(92) | H86: 3 chemin de la Payssière | I86: 31670 | J86: Labège | K86: France | L86: 50 | M86: 0 | N86: 50
A87: 78 | B87: PS-80 | C87: Monsieur | D87: Olivier | E87: Joel | F87: 1946-07-14 | G87: Juillé(79) | H87: 26 rue des Pyrénéees | I87: 31670 | J87: Labège | K87: France | L87: 600 | M87: 0 | N87: 500
A88: 79 | B88: PS-81 | C88: Monsieur | D88: Odea Foncier | E88: SARL | H88: 26 rue des Pyrénéees | I88: 31670 | J88: Labège | K88: France | L88: 0 | M88: 0
A89: 80 | B89: PS-82 | C89: Madame | D89: Segaud | E89: Danielle | F89: 1951-01-01 | G89: Moissac | H89: 17 ch Rivals | I89: 31450 | J89: Corronsac | K89: France | L89: 100 | M89: 0 | N89: 100
A90: 81 | B90: PS-83 | C90: Monsieur | D90: Dutard | E90: Remi | F90: 1976-05-28 | G90: Toulouse | H90: 18 rue Chatlas | I90: 31200 | J90: Toulouse | K90: France | L90: 500 | M90: 0 | N90: 500
A91: 82 | B91: PS-84 | C91: Monsieur | D91: Schmit | E91: Alexandre | F91: 1970-07-08 | G91: Limoges | H91: 24 clos des Mérigues | I91: 31320 | J91: Aureville | K91: France | L91: 50 | M91: 0 | N91: 50
A92: 83 | B92: PS-85 | C92: Monsieur | D92: Schmit | E92: Sylvie | F92: 1972-12-29 | G92: Toulouse | H92: 24 clos des Mérigues | I92: 31320 | J92: Aureville | K92: France | L92: 50 | M92: 0 | N92: 50
A93: 84 | B93: PS-86 | C93: Monsieur | D93: Schmit | E93: Quentin | F93: 2004-03-04 | G93: Toulouse | H93: 24 clos des Mérigues | I93: 31320 | J93: Aureville | K93: France | L93: 50 | M93: 0 | N93: 50
A94: 85 | B94: PS-87 | C94: Monsieur | D94: Schmit | E94: Thibaut | F94: 2007-08-13 | G94: Toulouse | H94: 24 clos des Mérigues | I94: 31320 | J94: Aureville | K94: France | L94: 50 | M94: 0 | N94: 50
A95: 86 | B95: PS-88 | C95: Madame | D95: Schmit | E95: Marion | F95: 2009-04-15 | G95: Toulouse | H95: 24 clos des Mérigues | I95: 31320 | J95: Aureville | K95: France | L95: 50 | M95: 0 | N95: 50
A96: 87 | B96: PS-89 | C96: Monsieur | D96: Debrusse | E96: Olivier | F96: 1994-12-14 | G96: Aureville | H96: 1543 route d'Espanès | I96: 31320 | J96: Aureville | K96: France | L96: 800 | M96: 0 | N96: 500
A97: 88 | B97: PS-90 | C97: Madame | D97: Thil | E97: Anne-Marie | F97: 1964-01-20 | G97: Aureville | H97: 1543 route d'Espanès | I97: 31300 | J97: Aureville | K97: France | L97: 500 | M97: 3000 | N97: 500
A98: 89 | B98: PS-91 | C98: Madame | D98: Manent | E98: Christine | F98: 1951-05-11 | G98: Toulouse | H98: 49 Av de Grand Bretagne | I98: 31300 | J98: Toulouse | K98: France | L98: 500 | M98: 0 | N98: 500
A99: 90 | B99: PS-92 | C99: Monsieur | D99: Gasc | E99: Jean-Patrice | F99: 1973-08-30 | G99: Montauban | H99: 20 chemin de Caille | I99: 31750 | J99: Escalquens | K99: France | L99: 100 | M99: 0 | N99: 100
A100: 91 | B100: PS-93 | C100: Collectivité | D100: Ayguesvives | E100: Monsieur le Maire | F100: 2017-12-16 | H100: 7 place du fort | I100: 31450 | J100: Ayguesvives | K100: France | L100: 1100 | M100: 0
A101: 92 | B101: PS-94 | C101: Madame | D101: Segonds | E101: Ariane | F101: 1975-03-26 | G101: Romans (26) | H101: 21 lotissement des Mérigues | I101: 31320 | J101: Aureville | K101: France | L101: 150 | M101: 0 | N101: 150
A102: 93 | B102: PS-95 | C102: Madame | D102: Faure | E102: Noémie | F102: 2016-06-13 | G102: Noumea | H102: 23 rue Aymard-Bat E, Apt 61,Res S Paru | I102: 98800 | J102: Noumea- N calédomie | K102: France | L102: 50 | M102: 0 | N102: 50
A103: 94 | B103: PS-96 | C103: Madame | D103: Laurens | E103: Anne | F103: 1985-03-23 | G103: Puento Alto (Chili) | H103: 23 rue Aymard-Bat E, Apt 61,Res S Paru | I103: 98800 | J103: Noumea- N calédomie | K103: France | L103: 50 | M103: 0 | N103: 50
A104: 95 | B104: PS-97 | C104: Monsieur | D104: Isnard | E104: Xavier | F104: 1973-05-17 | G104: Bron (69) | H104: 25 ch de l'écluse | I104: 31320 | J104: Pechabou | K104: France | L104: 50 | M104: 0 | N104: 50
A105: 96 | B105: PS-98 | C105: Madame | D105: Towell | E105: Estelle | F105: 1974-04-16 | G105: Crawley UK | H105: 25 ch de l'écluse | I105: 31320 | J105: Pechabou | K105: France | L105: 50 | M105: 0 | N105: 50
A106: 97 | B106: PS-99 | C106: Monsieur | D106: Isnard | E106: Basile | F106: 2004-08-31 | G106: Toulouse | H106: 25 ch de l'écluse | I106: 31320 | J106: Pechabou | K106: France | L106: 50 | M106: 0 | N106: 50
A107: 98 | B107: PS-100 | C107: Monsieur | D107: Isnard | E107: Paul | F107: 2001-12-26 | G107: Montreal CA | H107: 25 ch de l'écluse | I107: 31320 | J107: Pechabou | K107: France | L107: 50 | M107: 0 | N107: 50
A108: 99 | B108: PS-101 | C108: Monsieur | D108: Isnard | E108: Merlin | F108: 2007-08-18 | G108: Toulouse | H108: 25 ch de l'écluse | I108: 31320 | J108: Pechabou | K108: France | L108: 50 | M108: 0 | N108: 50
A109: 100 | B109: PS-102 | C109: Madame | D109: Debrusse | E109: Aurelie | F109: 1992-05-09 | G109: Aureville | H109: 70 rue de L'Abbé Groult | I109: 75015 | J109: Paris | K109: France | L109: 450 | M109: 0 | N109: 450
A110: 101 | B110: PS-103 | C110: Monsieur | D110: Isnard | E110: Guillaume | F110: 1978-06-21 | G110: Annecy | H110: 51 avenue de l'hers | I110: 31450 | J110: Baziège | K110: France | L110: 50 | M110: 0 | N110: 50
A111: 102 | B111: PS-104 | C111: Madame | D111: Isnard Laure | E111: Juliette | F111: 2009-06-13 | G111: Baie-Mahault | H111: 51 avenue de l'hers | I111: 31450 | J111: Baziège | K111: France | L111: 50 | M111: 0 | N111: 50
A112: 103 | B112: PS-105 | C112: Madame | D112: Isnard Laure | E112: Zoe | F112: 2012-01-27 | G112: Baie-Mahault | H112: 51 avenue de l'hers | I112: 31450 | J112: Baziège | K112: France | L112: 50 | M112: 0 | N112: 50
A113: 104 | B113: PS-106 | C113: Madame | D113: Isnard Laure | E113: Sabrina | F113: 1978-06-13 | G113: Beziers | H113: 51 avenue de l'hers | I113: 31450 | J113: Baziège | K113: France | L113: 50 | M113: 0 | N113: 50
A114: 105 | B114: PS-107 | C114: Monsieur | D114: Carrère | E114: Benjamin | F114: 1997-06-08 | G114: Toulouse | H114: 710 route d'Espanes | I114: 31450 | J114: Issus | K114: France | L114: 150 | M114: 0 | N114: 150
A115: 106 | B115: PS-108 | C115: Madame | D115: Aymard | E115: Laure | F115: 1976-09-27 | G115: Ales | H115: 3 rue Tesson | I115: 75010 | J115: Paris | K115: France | L115: 150 | M115: 0 | N115: 150
A116: 107 | B116: PS-109 | C116: Madame | D116: Isnard-Richer | E116: Nathalie | F116: 1974-09-02 | G116: Annecy | H116: 21 rue Jacques Prevert | I116: 37550 | J116: Saint-Avertin | K116: France | L116: 50 | M116: 0 | N116: 50
A117: 108 | B117: PS-110 | C117: Monsieur | D117: Isnard | E117: Fabien | F117: 1977-03-27 | G117: Tours | H117: 21 rue Jacques Prevert | I117: 37550 | J117: Saint-Avertin | K117: France | L117: 50 | M117: 0 | N117: 50
A118: 109 | B118: PS-111 | C118: Madame | D118: Isnard-Richer | E118: Marine | F118: 2004-07-27 | G118: Grasse | H118: 21 rue Jacques Prevert | I118: 37550 | J118: Saint-Avertin | K118: France | L118: 50 | M118: 0 | N118: 50
A119: 110 | B119: PS-112 | C119: Monsieur | D119: Isnard-Richer | E119: Maxence | F119: 2012-04-19 | G119: Chambray les Tours | H119: 21 rue Jacques Prevert | I119: 37550 | J119: Saint-Avertin | K119: France | L119: 50 | M119: 0 | N119: 50
A120: 111 | B120: PS-113 | C120: Monsieur | D120: Isnard-Richer | E120: Remi | F120: 2007-03-16 | G120: Tours | H120: 21 rue Jacques Prevert | I120: 37550 | J120: Saint-Avertin | K120: France | L120: 50 | M120: 0 | N120: 50
A121: 112 | B121: PS-114 | C121: Madame | D121: Carrere | E121: Pauline | F121: 1992-07-06 | G121: Toulouse | H121: 15 bis Place du Président Th Wilson | I121: 31000 | J121: Toulouse | K121: France | L121: 150 | M121: 0 | N121: 150
A122: 113 | B122: ps-115 | C122: Monsieur | D122: Fouchard | E122: Julien | F122: 1971-11-23 | G122: Toulouse | H122: 2 all de Pomarède- apt 25 | I122: 31670 | J122: Labège | K122: France | L122: 50 | M122: 0 | N122: 50
A123: 114 | B123: ps-116 | C123: Monsieur | D123: Klopp | E123: Christophe | F123: 1966-12-25 | G123: Sarreguemines(57) | H123: 1 rue simone de beauvoir | I123: 31320 | J123: Castanet-Tolosan | K123: France | L123: 500 | M123: 0 | N123: 500
A124: 115 | B124: ps-117 | C124: Madame | D124: Tosser | E124: Gwenola | F124: 1967-12-22 | G124: Brest | H124: 1 rue simone de beauvoir | I124: 31320 | J124: Castanet-Tolosan | K124: France | L124: 500 | M124: 0 | N124: 500
A125: 116 | B125: ps-118 | C125: Madame | D125: Fouchard | E125: Caroline | F125: 1965-04-13 | G125: Paris 6eme | H125: Apt E12- 1 Av des Cathares | I125: 31670 | J125: Labège | K125: France | L125: 50 | M125: 0 | N125: 50
A126: 117 | B126: ps-119 | C126: Monsieur | D126: Salin | E126: Alexandre | F126: 1981-04-15 | G126: Gien | H126: 10 rue du Cazal | I126: 13420 | J126: Gemenos | K126: France | L126: 50 | M126: 0 | N126: 50
A127: 118 | B127: ps-120 | C127: Madame | D127: Salin | E127: Mathilde | F127: 2009-09-03 | G127: Toulouse | H127: 19 rue des Menestrel | I127: 31670 | J127: Labège | K127: France | L127: 100 | M127: 0 | N127: 100
A128: 119 | B128: ps-121 | C128: Madame | D128: Salin | E128: Manon | F128: 2013-03-28 | G128: Toulouse | H128: 19 rue des Menestrel | I128: 31670 | J128: Labège | K128: France | L128: 100 | M128: 0 | N128: 100
A129: 120 | B129: ps-122 | C129: Madame | D129: Salin | E129: Eva | F129: 2009-09-03 | G129: Toulouse | H129: 19 rue des Menestrel | I129: 31670 | J129: Labège | K129: France | L129: 100 | M129: 0 | N129: 100
A130: 121 | B130: ps-123 | C130: Monsieur | D130: Ripoche | E130: Alexandre | F130: 1967-09-08 | H130: 1 rue de la source | I130: 31750 | J130: Escalquens | K130: France | L130: 100 | M130: 0 | N130: 100
A131: 122 | B131: ps-124 | C131: Madame | D131: BENTO | E131: Aida | F131: 1951-06-01 | G131: Portugal | H131: 20 rue du Vivier | I131: 31650 | J131: St Orens de Gameville | K131: France | L131: 600 | M131: 0 | N131: 500
A132: 123 | B132: ps-125 | C132: Monsieur | D132: Boulanger | E132: Hervé | F132: 1951-08-18 | G132: Laon | H132: 21 rue du Vivier | I132: 31650 | J132: St Orens de Gameville | K132: France | L132: 600 | M132: 0 | N132: 500
A133: 124 | B133: ps-126 | C133: Madame | D133: Depaix | E133: Elisabeth | F133: 1965-03-23 | G133: Lyon | H133: 4 rue des Troubadours | I133: 31670 | J133: Labège | K133: France | L133: 50 | M133: 0 | N133: 50
A134: 125 | B134: ps-127 | C134: Monsieur | D134: Faures | E134: Anne | F134: 1968-05-04 | G134: Toulouse | H134: 23 ch des Terres Hautes | I134: 31670 | J134: Labège | K134: France | L134: 500 | M134: 0 | N134: 500
A135: 126 | B135: ps-128 | C135: Monsieur | D135: Duquesnoy | E135: Bernard | F135: 1945-11-01 | G135: Gouy-Servins | H135: 1 rue Barrau | I135: 31450 | J135: Donneville | K135: France | L135: 200 | M135: 0 | N135: 200
A136: 127 | B136: ps-129 | C136: Monsieur | D136: Balosso | E136: Olivier | F136: 1986-06-04 | G136: Clermont Ferrand | H136: 33 ter rue Vestrepain | I136: 31100 | J136: Toulouse | K136: France | L136: 500 | M136: 0 | N136: 500
A137: 128 | B137: ps-130 | C137: Madame | D137: ORTIZ | E137: Monique | F137: 1958-05-09 | G137: Casablanca-Maroc | H137: 24 chemin du Ruisseau de Fontbazi | I137: 31450 | J137: Donneville | K137: France | L137: 200 | M137: 0 | N137: 200
A138: 129 | B138: ps-131 | C138: Monsieur | D138: Noeureuil | E138: Pierre | F138: 1983-11-06 | G138: Toulouse | H138: 18 chemin de la Gravette - C63 | I138: 31170 | J138: Tournefeuille | K138: France | L138: 500 | M138: 0 | N138: 500
A139: 130 | B139: ps-132 | C139: Monsieur | D139: Barousse | E139: Francis | F139: 1957-01-20 | G139: St Gaudens | H139: 1133 route de Fourquevaux | I139: 31450 | J139: Montlaur | K139: France | L139: 50 | M139: 0 | N139: 50
A140: 131 | B140: ps-133 | C140: Monsieur | D140: Quaglio | E140: Bruno | F140: 1964-07-01 | G140: Saumur | H140: Quai Riquet | I140: 31290 | J140: Gardouch | K140: France | L140: 100 | M140: 0 | N140: 100
A141: 132 | B141: ps-134 | C141: Monsieur | D141: Arevalo | E141: Henri | F141: 1956-10-22 | G141: Toulouse | H141: 3 rue Pierre de Coubertin | I141: 31520 | J141: Ramonville | K141: France | L141: 500 | M141: 3000 | N141: 500
A142: 133 | B142: ps-135 | C142: Madame | D142: Isman | E142: Monique | F142: 1958-11-07 | G142: Meknes- Maroc | H142: 17 ch Fontaine St Senin | I142: 31670 | J142: Labège | K142: France | L142: 500 | M142: 0 | N142: 500
A143: 134 | B143: ps-136 | C143: Monsieur | D143: Mignonat | E143: Jean-Louis | F143: 1955-06-26 | G143: Labege | H143: 1 rue de l'Occitanie | I143: 31670 | J143: Labège | K143: France | L143: 100 | M143: 0 | N143: 100
A144: 135 | B144: ps-137 | C144: Madame | D144: Emery | E144: Françoise | F144: 1944-01-28 | H144: 16 ch d'Occitanie | I144: 31450 | J144: Ayguesvives | K144: France | L144: 200 | M144: 0 | N144: 200
A145: 136 | B145: ps-138 | C145: Société | D145: Energie Partagée Investissement | E145: Monsieur le président | F145: 2017-05-30 | H145: 10 av des canuts | I145: 69120 | J145: Vaulx en velin | K145: France | L145: 2000 | M145: 0
A146: 137 | B146: ps-139 | C146: Collectivité | D146: Donneville | E146: Monsieur le Maire | F146: 2018-04-19 | H146: Place du Languedoc | I146: 31450 | J146: Donneville | K146: France | L146: 250 | M146: 0
A147: 138 | B147: ps-140 | C147: Collectivité | D147: Montbrun | E147: Monsieur le Maire | F147: 2018-06-01 | H147: 2 pl R Hebard | I147: 31450 | J147: Montbrun-Lauragais | K147: France | L147: 250 | M147: 0
A148: 139 | B148: ps-141 | C148: Madame | D148: Doerler | E148: Bérangère | F148: 1971-06-06 | G148: Paris VI | H148: 6 bis rueFrançois Miquel | I148: 31320 | J148: Castanet-Tolosan | K148: France | L148: 50 | M148: 0 | N148: 50
A149: 140 | B149: ps-142 | C149: Madame | D149: Sikner | E149: Florence | F149: 1961-06-27 | G149: Dijon | H149: 1 impasse du Pech | I149: 31750 | J149: Escalquens | K149: France | L149: 250 | M149: 0 | N149: 250
A150: 141 | B150: ps-143 | C150: Monsieur | D150: David | E150: Bruno | F150: 1959-05-20 | G150: Dôle | H150: 1 impasse du Pech | I150: 31750 | J150: Escalquens | K150: France | L150: 250 | M150: 0 | N150: 250
A151: 142 | B151: ps-144 | C151: Madame | D151: Barousse | E151: Annie | F151: 1957-02-12 | G151: Toulouse | H151: 1133 route de Fourquevaux | I151: 31450 | J151: Montlaur | K151: France | L151: 50 | M151: 0 | N151: 50
A152: 143 | B152: ps-145 | C152: Monsieur | D152: Severac | E152: Gaetan | F152: 1986-10-22 | G152: Toulouse | H152: 15 bis rue A. VASSEUR | I152: 31120 | J152: Toulouse | K152: France | L152: 300 | M152: 0 | N152: 300
A153: 144 | B153: ps-146 | C153: Monsieur | D153: Picard | E153: Sébastien | F153: 1980-10-01 | G153: Paris 14eme | H153: 5 rue de la chaîne | I153: 31000 | J153: Toulouse | K153: France | L153: 500 | M153: 0 | N153: 500
A154: 145 | B154: ps-147 | C154: Madame | D154: Milonet | E154: Fréderique | F154: 1958-08-25 | G154: le Perreux/Marne | H154: 5 imp Mausac | I154: 31450 | J154: Ayguesvives | K154: France | L154: 50 | M154: 0 | N154: 50
A155: 146 | B155: ps-148 | C155: Monsieur | D155: Pollet | E155: Jacques | F155: 1952-04-01 | G155: Tourcoing | H155: 460 route de Donneville | I155: 31450 | J155: Ayguesvives | K155: France | L155: 50 | M155: 0 | N155: 50
A156: 147 | B156: ps-149 | C156: Monsieur | D156: Pascal | E156: Xavier | F156: 1955-04-16 | G156: Moussens | H156: 23 ch de Toulouse | I156: 31450 | J156: Ayguesvives | K156: France | L156: 250 | M156: 0 | N156: 250
A157: 148 | B157: ps-150 | C157: Madame | D157: VAUCHAUSSADE de CHAUMONT | E157: Mireille | F157: 1955-04-11 | G157: La réole | H157: 24 ch de Toulouse | I157: 31450 | J157: Ayguesvives | K157: France | L157: 500 | M157: 0 | N157: 500
A158: 149 | B158: ps-151 | C158: Madame | D158: GIBERT | E158: Léna | F158: 2012-07-17 | G158: TOULOUSE | H158: 2044 route du lac, Roquefoulet | I158: 31560 | J158: MONTGEARD | K158: France | L158: 50 | M158: 0 | N158: 50
A159: 150 | B159: ps-152 | C159: Madame | D159: CAILLE--DUMONT | E159: ANGELE | F159: 2011-09-23 | G159: TOULOUSE | H159: 2045 route du lac, Roquefoulet | I159: 31560 | J159: MONTGEARD | K159: France | L159: 50 | M159: 0 | N159: 50
A160: 151 | B160: ps-153 | C160: Monsieur | D160: CAILLE--DUMONT | E160: LIAM | F160: 2008-06-08 | G160: TOULOUSE | H160: 2045 route du lac, Roquefoulet | I160: 31560 | J160: MONTGEARD | K160: France | L160: 50 | M160: 0 | N160: 50
A161: 152 | B161: ps-154 | C161: Madame | D161: Darcourt | E161: Karine | F161: 1976-03-05 | G161: Rodez (12) | H161: 8 chemin des Campares | I161: 31450 | J161: Ayguesvives | K161: France | L161: 100 | M161: 0 | N161: 100
A162: 153 | B162: ps-155 | C162: Monsieur | D162: GRIVART | E162: Philippe | F162: 1962-06-26 | G162: MEKNES (MAROC) | H162: 13 chemin de la bosse | I162: 31450 | J162: AYGUESVIVES | K162: France | L162: 500 | M162: 0 | N162: 500
A163: 154 | B163: ps-156 | C163: Monsieur | D163: Maurel | E163: Marcel | F163: 1958-02-01 | G163: Labège | H163: 39 rue des bruyères | I163: 31650 | J163: Saint Orens | K163: France | L163: 50 | M163: 0 | N163: 50
A164: 155 | B164: ps-157 | C164: Madame | D164: Barrau | E164: Marie-Régine | F164: 1961-12-26 | G164: Valence(82) | H164: Avenue S Allende- Les ormes2 BatF2 Apt 39 | I164: 31320 | J164: Castanet-Tolosan | K164: France | L164: 100 | M164: 0 | N164: 100
A165: 156 | B165: ps-158 | C165: Madame | D165: Bages | E165: Annie | F165: 1952-05-17 | G165: Lacaune | H165: 27 rte de St Leon | I165: 31450 | J165: Noueilles | K165: France | L165: 50 | M165: 0 | N165: 50
A166: 157 | B166: ps-159 | C166: Monsieur | D166: KOECHLIN | E166: JULIEN | F166: 1982-09-28 | G166: NICE | H166: 31 rue Lobineau | I166: 35000 | J166: RENNES | K166: France | L166: 200 | M166: 0 | N166: 200
A167: 158 | B167: ps-160 | C167: Société | D167: Enercoop | E167: Monsieur le président | F167: 2018-09-24 | H167: 23-28 rue M Magne | I167: 31300 | J167: Toulouse | K167: France | L167: 100 | M167: 0
A168: 159 | B168: ps-161 | C168: Madame | D168: Mollereau | E168: Catherine | F168: 1964-03-04 | G168: Apt | H168: 1ter rue Georges Vallerey, Résidence Montebello2, Apt318 | I168: 31320 | J168: Castanet-Tolosan | K168: France | L168: 300 | M168: 0 | N168: 300
A169: 160 | B169: ps-162 | C169: Madame | D169: Noeureuil | E169: Anne-Laure | F169: 1986-03-27 | G169: Toulouse | H169: 2 rue Toulouse Lautrec | I169: 31870 | J169: Lagardelle/Leze | K169: France | L169: 500 | M169: 0 | N169: 500
A170: 161 | B170: ps-163 | C170: Monsieur | D170: Caujolle | E170: Hervé | F170: 1972-02-20 | G170: Argenteuil | H170: 37, rue d'Auriol | I170: 31400 | J170: Toulouse | K170: France | L170: 50 | M170: 0 | N170: 50
A171: 162 | B171: ps-164 | C171: Madame | D171: Masse | E171: Christine | F171: 1953-06-06 | G171: Chalon/saone | H171: 5 rue du Pic du gar | I171: 31750 | J171: Escalquens | K171: France | L171: 250 | M171: 0 | N171: 250
A172: 163 | B172: ps-165 | C172: Monsieur | D172: SAPORITO | E172: Nicolas | F172: 1971-08-06 | G172: Nice | H172: 4 résidence les Chaumes - Av du 8 mai 1945 | I172: 31520 | J172: RAMONVILLE | K172: France | L172: 50 | M172: 0 | N172: 50
A173: 164 | B173: ps-166 | C173: Madame | D173: Rivière | E173: Michèle | F173: 1946-09-19 | G173: Paris | H173: 19 rue des sablons | I173: 78640 | J173: Villiers Saint Frédéric | K173: France | L173: 50 | M173: 0 | N173: 50
A174: 165 | B174: ps-167 | C174: Madame | D174: CARLIER | E174: MARTINE | F174: 1950-04-10 | G174: DIJON (21) | H174: 20 rue des pinsons | I174: 31520 | J174: RAMONVILLE | K174: France | L174: 500 | M174: 0 | N174: 500
A175: 166 | B175: ps-168 | C175: Monsieur | D175: Couderc | E175: Romain | F175: 1988-10-17 | G175: villefranche de rouergue | H175: 36 rue léon SOULIE | I175: 31400 | J175: TOULOUSE | K175: France | L175: 50 | M175: 0 | N175: 50
A176: 167 | B176: ps-169 | C176: Monsieur | D176: GAMBIER | E176: yves | F176: 1961-08-26 | G176: Paris | H176: 11 chemin de picotalen | I176: 11400 | J176: fendeille | K176: France | L176: 1000 | M176: 0 | N176: 500
A177: 168 | B177: ps-170 | C177: Madame | D177: Lesage | E177: ANNIE | F177: 1962-07-19 | G177: St Amand-Montrond | H177: 11 chemin de picotalen | I177: 11400 | J177: fendeille | K177: France | L177: 1000 | M177: 0 | N177: 500
A178: 169 | B178: ps-171 | C178: Madame | D178: Fine | E178: Jeanne | F178: 1950-09-10 | G178: Agen (47) | H178: 5 allée Charles Malpel, App 39 | I178: 31300 | J178: Toulouse | K178: France | L178: 200 | M178: 0 | N178: 200
A179: 170 | B179: ps-172 | C179: Madame | D179: GAMBIER | E179: Hélène | F179: 1992-11-04 | G179: Toulouse | H179: 79 rue du Taur | I179: 31000 | J179: Toulouse | K179: France | L179: 2000 | M179: 0 | N179: 500
A180: 171 | B180: ps-173 | C180: Monsieur | D180: Cassin | E180: Michel | F180: 1954-11-30 | G180: Agmé (47) | H180: de la Bourdette | I180: 31750 | J180: Escalquens | K180: France | L180: 500 | M180: 0 | N180: 500
A181: 172 | B181: ps-174 | C181: Madame | D181: Combier | E181: Jessica | F181: 1991-02-13 | G181: St Cyr | H181: 2 chemin de la Plaine | I181: 31670 | J181: Labège | K181: France | L181: 50 | M181: 0 | N181: 50
A182: 173 | B182: ps-175 | C182: Monsieur | D182: ASO-ACIN | E182: Cédric | F182: 1986-07-30 | G182: Auch | H182: 2 impasse le Bayle | I182: 11410 | J182: SainteCamelle | K182: France | L182: 50 | M182: 0 | N182: 50
A183: 174 | B183: ps-176 | C183: Madame | D183: DUGUY | E183: LAURENCE | F183: 1973-12-23 | G183: LABEGE | H183: 6 TER Allée Chantecaille | I183: 31670 | J183: LABEGE | K183: France | L183: 50 | M183: 0 | N183: 50
A184: 175 | B184: ps-177 | C184: Monsieur | D184: BOUTONNET | E184: Justin | F184: 2005-11-29 | G184: PARIS 12 | H184: 6 TER ALLEE CHANTECAILLE | I184: 31670 | J184: LABEGE | K184: France | L184: 50 | M184: 0 | N184: 50
A185: 176 | B185: ps-178 | C185: Monsieur | D185: BOUTONNET | E185: Félix | F185: 2009-05-16 | G185: PARIS 12 | H185: 6 TER ALLEE CHANTECAILLE | I185: 31670 | J185: LABEGE | K185: France | L185: 50 | M185: 0 | N185: 50
A186: 177 | B186: ps-179 | C186: Madame | D186: Guillot | E186: Christine | F186: 1947-11-21 | G186: 69002 | H186: 18A rue du Tonkin | I186: 69100 | J186: Villeurbanne | K186: France | L186: 500 | M186: 0 | N186: 500
A187: 178 | B187: PS-180 | C187: Monsieur | D187: Haydont | E187: Emmanuel | F187: 1968-05-26 | G187: Nanterre | H187: 26 rue du petit prince | I187: 31320 | J187: Castanet-Tolosan | K187: France | L187: 8500 | M187: 0 | N187: 500
A188: 179 | B188: PS-181 | C188: Monsieur | D188: GIMENEZ | E188: Philippe | F188: 1965-08-04 | G188: Toulouse | H188: 646 Avenue des Plantiers | I188: 6700 | J188: SaintLaurentduVar | K188: France | L188: 100 | M188: 0 | N188: 100
A189: 180 | B189: PS-182 | C189: Monsieur | D189: GIMENEZ | E189: Jean-Louis | F189: 1958-08-15 | G189: Oran | H189: 3 allée Moise Maimonide Maison n°7 | I189: 31560 | J189: NAILLOUX | K189: France | L189: 100 | M189: 0 | N189: 100
A190: 181 | B190: PS-183 | C190: Madame | D190: FLEURY | E190: Anais | F190: 2017-07-15 | G190: Toulouse | H190: 6 impasse des Garbiers Appt 50 | I190: 31320 | J190: Castanet-Tolosan | K190: France | L190: 50 | M190: 0 | N190: 50
A191: 182 | B191: PS-184 | C191: Monsieur | D191: FLEURY | E191: Quentin | F191: 2013-11-07 | G191: Toulouse | H191: 6 impasse des Garbiers Appt 50 | I191: 31320 | J191: Castanet-Tolosan | K191: France | L191: 50 | M191: 0 | N191: 50
A192: 183 | B192: PS-185 | C192: Monsieur | D192: BAROUSSE | E192: JULIEN | F192: 1984-12-13 | G192: TOULOUSE | H192: 1133 rte de fourquevaux | I192: 31450 | J192: MONTLAUR | K192: France | L192: 50 | M192: 0 | N192: 50
A193: 184 | B193: PS-186 | C193: Monsieur | D193: Revel | E193: Adrien | F193: 1987-06-24 | G193: Versailles | H193: 6, chemin d'Augustin, Apt E003 | I193: 31320 | J193: Castanet-Tolosan | K193: France | L193: 50 | M193: 0 | N193: 50
A194: 185 | B194: PS-187 | C194: Monsieur | D194: Rudinger | E194: Andreas | F194: 1986-04-25 | G194: Halle (Allemagne) | H194: 48 Rue Pierre Cazeneuve Apt. B403 | I194: 31200 | J194: Toulouse | K194: France | L194: 500 | M194: 0 | N194: 500
A195: 186 | B195: PS-188 | C195: Monsieur | D195: Surin | E195: Philippe | F195: 1950-02-23 | G195: Toulouse | H195: 1400 Ch de St Maurice | I195: 31810 | J195: Clermont Lefort | K195: France | L195: 100 | M195: 0 | N195: 100
A196: 187 | B196: PS-189 | C196: Monsieur | D196: LAINE | E196: Pierre | F196: 1972-02-23 | G196: ROUEN | H196: 29 RUE DELMAS | I196: 31400 | J196: TOULOUSE | K196: France | L196: 500 | M196: 0 | N196: 500
A197: 188 | B197: PS-190 | C197: Madame | D197: LAINE | E197: Lucie | F197: 2001-04-10 | G197: BOURG LA REINE | H197: 29 RUE DELMAS | I197: 31400 | J197: TOULOUSE | K197: France | L197: 250 | M197: 0 | N197: 250
A198: 189 | B198: PS-191 | C198: Monsieur | D198: LAINE | E198: Xavier | F198: 2003-09-06 | G198: TOULOUSE | H198: 29 RUE DELMAS | I198: 31400 | J198: TOULOUSE | K198: France | L198: 250 | M198: 0 | N198: 250
A199: 190 | B199: PS-192 | C199: Madame | D199: PREMARTIN | E199: JUSTINE | F199: 2015-02-10 | G199: LILLE | H199: 18 RUE WILLIAM TURNER | I199: 44470 | J199: MAUVES | K199: France | L199: 200 | M199: 0 | N199: 200
A200: 191 | B200: PS-193 | C200: Monsieur | D200: BOULDOIRES | E200: JEREMY | F200: 2015-06-21 | G200: PARIS | H200: 7 Route de Villeneuve | I200: 91580 | J200: AUVERS | K200: France | L200: 200 | M200: 0 | N200: 200
A201: 192 | B201: PS-194 | C201: Monsieur | D201: PREMARTIN | E201: ELIOTT | F201: 2018-09-02 | G201: NANTES | H201: 18 RUE WILLIAM TURNER | I201: 44470 | J201: MAUVES | K201: France | L201: 200 | M201: 0 | N201: 200
A202: 193 | B202: PS-195 | C202: Madame | D202: Feraud | E202: Anne-Marie | F202: 1956-03-03 | G202: Montesquieu V | H202: 8 chemin de Riompeyre | I202: 31320 | J202: Castanet-Tolosan | K202: France | L202: 500 | M202: 0 | N202: 500
A203: 194 | B203: PS-196 | C203: Madame | D203: FARINA | E203: Anne | F203: 1961-02-05 | G203: 31 TOULOUSE | H203: Le village | I203: 31450 | J203: MONTBRUNLAURAGAIS | K203: France | L203: 500 | M203: 0 | N203: 500
... 170 more rows

Sheet Liste utilisateurs WP
A1: user_login | B1: user_email | C1: user_pass | D1: first_name | E1: last_name
A2: =(SUBSTITUTE(SUBSTITUTE(SUBSTITUTE(Sociétaires!E4,"é","e"),"è","e"),"ê","e"))&Sociétaires!A4 -> Dominique2 | B2: domi.gardette@gmail.com | C2: $1$AYYziSpq$Xv1H6rZuKfreUoUA6kLy11 | D2: =Sociétaires!E4 -> Dominique | E2: =Sociétaires!M4 -> 0
A3: =(SUBSTITUTE(SUBSTITUTE(SUBSTITUTE(Sociétaires!E5,"é","e"),"è","e"),"ê","e"))&Sociétaires!A5 -> Beatrice3 | B3: mbrousseau@sfr.fr | C3: $1$5ZrH1HnA$5/XOfnEW7cqeIcz6P4s2T/ | D3: =Sociétaires!E5 -> Béatrice | E3: =Sociétaires!M5 -> 0
A4: =(SUBSTITUTE(SUBSTITUTE(SUBSTITUTE(Sociétaires!E10,"é","e"),"è","e"),"ê","e"))&Sociétaires!A10 -> Christian4 | B4: laurenschristian@free.fr | C4: $1$L7YJG0aL$1Qxk/OU3kwAGTiqylA/Ir/ | D4: =Sociétaires!E10 -> Christian | E4: =Sociétaires!M10 -> 0
A5: =(SUBSTITUTE(SUBSTITUTE(SUBSTITUTE(Sociétaires!E11,"é","e"),"è","e"),"ê","e"))&Sociétaires!A11 -> Jean Marie5 | B5: jmm.depaux@wanadoo.fr | C5: $1$gKDdmtGI$90l9k/7vObjgwofDpc8gt1 | D5: =Sociétaires!E11 -> Jean Marie | E5: =Sociétaires!M11 -> 0
A6: =(SUBSTITUTE(SUBSTITUTE(SUBSTITUTE(Sociétaires!E13,"é","e"),"è","e"),"ê","e"))&Sociétaires!A13 -> Bertrand6 | B6: tb.laborde@wanadoo.fr | C6: $1$q31CIdwJ$Fmikfq..nYdV03kzVpqP5. | D6: =Sociétaires!E13 -> Bertrand | E6: =Sociétaires!M13 -> 0
A7: =(SUBSTITUTE(SUBSTITUTE(SUBSTITUTE(Sociétaires!E14,"é","e"),"è","e"),"ê","e"))&Sociétaires!A14 -> Michelle7 | B7: guy.fontan@wanadoo.fr | C7: $1$oxfuLYtR$xpd3nwiw6BiXCzc7s3qBh1 | D7: =Sociétaires!E14 -> Michelle | E7: =Sociétaires!M14 -> 0
A8: =(SUBSTITUTE(SUBSTITUTE(SUBSTITUTE(Sociétaires!E15,"é","e"),"è","e"),"ê","e"))&Sociétaires!A15 -> Guy 8 | B8: 3@free.fr | C8: $1$daanNV22$A5/vGbKn9wG9OwTWwDDpo1 | D8: =Sociétaires!E15 -> Guy | E8: =Sociétaires!M15 -> 0
A9: =(SUBSTITUTE(SUBSTITUTE(SUBSTITUTE(Sociétaires!E16,"é","e"),"è","e"),"ê","e"))&Sociétaires!A16 -> Philippe9 | B9: hilaire.philippe@gmail.com | C9: $1$0bzbUIey$TYvLQa22pyajBAyO4/wrG1 | D9: =Sociétaires!E16 -> Philippe | E9: =Sociétaires!M16 -> 0
A10: =(SUBSTITUTE(SUBSTITUTE(SUBSTITUTE(Sociétaires!E17,"é","e"),"è","e"),"ê","e"))&Sociétaires!A17 -> Dominique10 | B10: Domi.hilaire@gmail.com | C10: $1$cZL0Upj8$h7FG1Muw6esGR5qtVRliT1 | D10: =Sociétaires!E17 -> Dominique | E10: =Sociétaires!M17 -> 0
A11: =(SUBSTITUTE(SUBSTITUTE(SUBSTITUTE(Sociétaires!E18,"é","e"),"è","e"),"ê","e"))&Sociétaires!A18 -> Philippe11 | B11: zamolo.philippe@orange.fr | C11: $1$HzkcrdfD$/YRqQU63r06h8ETi77wT1/ | D11: =Sociétaires!E18 -> Philippe | E11: =Sociétaires!M18 -> 0
A12: =(SUBSTITUTE(SUBSTITUTE(SUBSTITUTE(Sociétaires!E19,"é","e"),"è","e"),"ê","e"))&Sociétaires!A19 -> Christine12 | B12: emeraude3156@gmail.com | C12: $1$sgijvG4H$h7wfXlzF6yYJabSf4owIm/ | D12: =Sociétaires!E19 -> Christine | E12: =Sociétaires!M19 -> 0
A13: =(SUBSTITUTE(SUBSTITUTE(SUBSTITUTE(Sociétaires!E20,"é","e"),"è","e"),"ê","e"))&Sociétaires!A20 -> Rozenn13 | B13: rozennirvoas@hotmail.fr | C13: $1$Zup7UJyF$1a72xeAo08wBDUGkZBelp0 | D13: =Sociétaires!E20 -> Rozenn | E13: =Sociétaires!M20 -> 0
A14: =(SUBSTITUTE(SUBSTITUTE(SUBSTITUTE(Sociétaires!E21,"é","e"),"è","e"),"ê","e"))&Sociétaires!A21 -> Philippe14 | B14: 4@free.fr | C14: $1$ej5HSWCP$OuyVKmmP7rTEhJvawpfN11 | D14: =Sociétaires!E21 -> Philippe | E14: =Sociétaires!M21 -> 0
A15: =(SUBSTITUTE(SUBSTITUTE(SUBSTITUTE(Sociétaires!E22,"é","e"),"è","e"),"ê","e"))&Sociétaires!A22 -> Claude15 | B15: ducert.toulouse@wanadoo.fr | C15: $1$qighmyWz$IjuDLrwvHEh01vngUcTVt. | D15: =Sociétaires!E22 -> Claude | E15: =Sociétaires!M22 -> 0
A16: =(SUBSTITUTE(SUBSTITUTE(SUBSTITUTE(Sociétaires!E23,"é","e"),"è","e"),"ê","e"))&Sociétaires!A23 -> Michele16 | B16: 5@free.fr | C16: $1$zCsPxzfj$xSsCQTmTh0RP1YM356kVz1 | D16: =Sociétaires!E23 -> Michèle | E16: =Sociétaires!M23 -> 0
A17: =(SUBSTITUTE(SUBSTITUTE(SUBSTITUTE(Sociétaires!E24,"é","e"),"è","e"),"ê","e"))&Sociétaires!A24 -> Jean-Paul17 | B17: jean-paul.roustan@orange.fr | C17: $1$ZuZ3plEc$Rssdr5QVzZP29C4hvhvbd. | D17: =Sociétaires!E24 -> Jean-Paul | E17: =Sociétaires!M24 -> 0
A18: =(SUBSTITUTE(SUBSTITUTE(SUBSTITUTE(Sociétaires!E26,"é","e"),"è","e"),"ê","e"))&Sociétaires!A26 -> Eric18 | B18: eric.oulibaut@gmail.com | C18: $1$OlLS24qc$jEXxn3LG1Hww/oyGUloEh1 | D18: =Sociétaires!E26 -> Eric | E18: =Sociétaires!M26 -> 0
A19: =(SUBSTITUTE(SUBSTITUTE(SUBSTITUTE(Sociétaires!E27,"é","e"),"è","e"),"ê","e"))&Sociétaires!A27 -> Corinne19 | B19: corinne.trebosc@macoda.com | C19: $1$TZqa1N1D$0umN1RUtvyolaHwp6Ql6u. | D19: =Sociétaires!E27 -> Corinne | E19: =Sociétaires!M27 -> 0
A20: =(SUBSTITUTE(SUBSTITUTE(SUBSTITUTE(Sociétaires!E28,"é","e"),"è","e"),"ê","e"))&Sociétaires!A28 -> David20 | B20: david.trebosc@macoda.com | C20: $1$WyAALtXW$wo5RZHc2QA8lxlPfw4/h90 | D20: =Sociétaires!E28 -> David | E20: =Sociétaires!M28 -> 0
A21: =(SUBSTITUTE(SUBSTITUTE(SUBSTITUTE(Sociétaires!E29,"é","e"),"è","e"),"ê","e"))&Sociétaires!A29 -> Florian21 | B21: 6@free.fr | C21: $1$utF85FFq$0kc1wR3BSRQBXskXCfQ3N1 | D21: =Sociétaires!E29 -> Florian | E21: =Sociétaires!M29 -> 0
A22: =(SUBSTITUTE(SUBSTITUTE(SUBSTITUTE(Sociétaires!E30,"é","e"),"è","e"),"ê","e"))&Sociétaires!A30 -> Marion22 | B22: marion.trebosc@macoda.com | C22: $1$wYuWvM6v$gANJSoqC5Tvr6Yh7hta4c0 | D22: =Sociétaires!E30 -> Marion | E22: =Sociétaires!M30 -> 0
A23: =(SUBSTITUTE(SUBSTITUTE(SUBSTITUTE(Sociétaires!E31,"é","e"),"è","e"),"ê","e"))&Sociétaires!A31 -> Alain23 | B23: alain.riviere7@orange.fr | C23: $1$bNjG0bqD$AzgQLKt7t/OKUjXaXSZnh/ | D23: =Sociétaires!E31 -> Alain | E23: =Sociétaires!M31 -> 0
A24: =(SUBSTITUTE(SUBSTITUTE(SUBSTITUTE(Sociétaires!E34,"é","e"),"è","e"),"ê","e"))&Sociétaires!A34 -> Serge24 | B24: serge.milhet@orange.fr | C24: $1$MEuyKN1P$6j.zS5Qd7ejzDjq9Lol100 | D24: =Sociétaires!E34 -> Serge | E24: =Sociétaires!M34 -> 0
A25: =(SUBSTITUTE(SUBSTITUTE(SUBSTITUTE(Sociétaires!E35,"é","e"),"è","e"),"ê","e"))&Sociétaires!A35 -> Pascal25 | B25: pascal.delmas31@orange.fr | C25: $1$c70ZCTgs$6UDExt/Ce2N1God73q/oi1 | D25: =Sociétaires!E35 -> Pascal | E25: =Sociétaires!M35 -> 0
A26: =(SUBSTITUTE(SUBSTITUTE(SUBSTITUTE(Sociétaires!E36,"é","e"),"è","e"),"ê","e"))&Sociétaires!A36 -> Mireille26 | B26: mireille.delmas31@orange.fr | C26: $1$nYvchyIK$X.//qHFesRR9k5EVd4klb/ | D26: =Sociétaires!E36 -> Mireille | E26: =Sociétaires!M36 -> 0
A27: =(SUBSTITUTE(SUBSTITUTE(SUBSTITUTE(Sociétaires!E37,"é","e"),"è","e"),"ê","e"))&Sociétaires!A37 -> Marion27 | B27: marion.gardette@gmail.com | C27: $1$muwKYpON$F90PzcMGiEVavj/oeoYmv. | D27: =Sociétaires!E37 -> Marion | E27: =Sociétaires!M37 -> 0
A28: =(SUBSTITUTE(SUBSTITUTE(SUBSTITUTE(Sociétaires!E38,"é","e"),"è","e"),"ê","e"))&Sociétaires!A38 -> Laurent28 | B28: laurent.gardette@gmail.com | C28: $1$iadUCOLe$Hc3cxRfdSOOpwIw4HOqDr0 | D28: =Sociétaires!E38 -> Laurent | E28: =Sociétaires!M38 -> 0
A29: =(SUBSTITUTE(SUBSTITUTE(SUBSTITUTE(Sociétaires!E39,"é","e"),"è","e"),"ê","e"))&Sociétaires!A39 -> Anne29 | B29: annebouchet5@yahoo.fr | C29: $1$zeO4sZK3$sxNzuBJIsvDNyVHKvGNrk1 | D29: =Sociétaires!E39 -> Anne | E29: =Sociétaires!M39 -> 0
A30: =(SUBSTITUTE(SUBSTITUTE(SUBSTITUTE(Sociétaires!E40,"é","e"),"è","e"),"ê","e"))&Sociétaires!A40 -> Francis30 | B30: f.carbonne@orange.fr | C30: $1$es1KM8gT$oLeirI0joNM2Sw7Wm6Z0d. | D30: =Sociétaires!E40 -> Francis | E30: =Sociétaires!M40 -> 0
A31: =(SUBSTITUTE(SUBSTITUTE(SUBSTITUTE(Sociétaires!E41,"é","e"),"è","e"),"ê","e"))&Sociétaires!A41 -> Brigitte31 | B31: glainbrigitte@gmail.com | C31: $1$NLvnB9Up$/CdhuSnWDWqLbj3XslA1t/ | D31: =Sociétaires!E41 -> Brigitte | E31: =Sociétaires!M41 -> 0
A32: =(SUBSTITUTE(SUBSTITUTE(SUBSTITUTE(Sociétaires!E42,"é","e"),"è","e"),"ê","e"))&Sociétaires!A42 -> Josephine 32 | B32: josephine.casagrande@orange.fr | C32: $1$HutY5wx3$H2VVutUcNhwoYR7qj2IXo1 | D32: =Sociétaires!E42 -> Josephine | E32: =Sociétaires!M42 -> 0
A33: =(SUBSTITUTE(SUBSTITUTE(SUBSTITUTE(Sociétaires!E43,"é","e"),"è","e"),"ê","e"))&Sociétaires!A43 -> Odile33 | B33: odile.boutemy@libertysurf.fr | C33: $1$dmIkGxRq$5ykQuRLXRSQny0YdtIK2F. | D33: =Sociétaires!E43 -> Odile | E33: =Sociétaires!M43 -> 0
A34: =(SUBSTITUTE(SUBSTITUTE(SUBSTITUTE(Sociétaires!E44,"é","e"),"è","e"),"ê","e"))&Sociétaires!A44 -> Monsieur le president34 | B34: president@gppep.org | C34: $1$Y8F4kOfI$sYHaeke82UOrbG64XEopY0 | D34: =Sociétaires!E44 -> Monsieur le président | E34: =Sociétaires!M44 -> 0
A35: =(SUBSTITUTE(SUBSTITUTE(SUBSTITUTE(Sociétaires!E45,"é","e"),"è","e"),"ê","e"))&Sociétaires!A45 -> Simon35 | B35: s.vaupres@gmail.com | C35: $1$VYfaQE4C$KxNYj3KrovQT7erZaUyB8/ | D35: =Sociétaires!E45 -> Simon | E35: =Sociétaires!M45 -> 0
A36: =(SUBSTITUTE(SUBSTITUTE(SUBSTITUTE(Sociétaires!E47,"é","e"),"è","e"),"ê","e"))&Sociétaires!A47 -> Marc36 | B36: prido.marc@wanadoo.fr | C36: $1$6jeYgQdc$fC6/cdeqHZ5YgwTnmAzME/ | D36: =Sociétaires!E47 -> Marc | E36: =Sociétaires!M47 -> 0
A37: =(SUBSTITUTE(SUBSTITUTE(SUBSTITUTE(Sociétaires!E48,"é","e"),"è","e"),"ê","e"))&Sociétaires!A48 -> Anais37 | B37: anaispridob@yahoo.fr | C37: $1$oan9WeFM$DSsMUIaKk7Avk5AVhiZGZ1 | D37: =Sociétaires!E48 -> Anais | E37: =Sociétaires!M48 -> 0
A38: =(SUBSTITUTE(SUBSTITUTE(SUBSTITUTE(Sociétaires!E49,"é","e"),"è","e"),"ê","e"))&Sociétaires!A49 -> Jean-Marc38 | B38: jeanmarc.isnard@free.fr | C38: $1$5oJG4lA1$BfC84D.ps0U8.DpLvleJC/ | D38: =Sociétaires!E49 -> Jean-Marc | E38: =Sociétaires!M49 -> 0
A39: =(SUBSTITUTE(SUBSTITUTE(SUBSTITUTE(Sociétaires!E50,"é","e"),"è","e"),"ê","e"))&Sociétaires!A50 -> Pascale39 | B39: pascale.bernard@free.fr | C39: $1$VDrTEEOv$hfEYn81qSQFfUwmunwWgf. | D39: =Sociétaires!E50 -> Pascale | E39: =Sociétaires!M50 -> 0
A40: =(SUBSTITUTE(SUBSTITUTE(SUBSTITUTE(Sociétaires!E51,"é","e"),"è","e"),"ê","e"))&Sociétaires!A51 -> Eric40 | B40: cherdoe@gmail.com | C40: $1$iqahi85g$5YDZOWRBhi4/fCHpjAIKN1 | D40: =Sociétaires!E51 -> Eric | E40: =Sociétaires!M51 -> 0
A41: =(SUBSTITUTE(SUBSTITUTE(SUBSTITUTE(Sociétaires!E52,"é","e"),"è","e"),"ê","e"))&Sociétaires!A52 -> Mona41 | B41: cherdo31@orange.fr | C41: $1$uIfGFXYr$O9WII8g3bKBlRtiLTbIJz/ | D41: =Sociétaires!E52 -> Mona | E41: =Sociétaires!M52 -> 0
A42: =(SUBSTITUTE(SUBSTITUTE(SUBSTITUTE(Sociétaires!E53,"é","e"),"è","e"),"ê","e"))&Sociétaires!A53 -> Jean42 | B42: jean.manuguerra1@gmail.com | C42: $1$lXrGaTYY$0YirDhSkGZ7SUY2.oiAp./ | D42: =Sociétaires!E53 -> Jean | E42: =Sociétaires!M53 -> 0
A43: =(SUBSTITUTE(SUBSTITUTE(SUBSTITUTE(Sociétaires!E55,"é","e"),"è","e"),"ê","e"))&Sociétaires!A55 -> Sandrine43 | B43: sandrine.thil@sfr.fr | C43: $1$AUSTVr4l$9zxiyBRrGNzVYICi9a8rC/ | D43: =Sociétaires!E55 -> Sandrine | E43: =Sociétaires!M55 -> 0
A44: =(SUBSTITUTE(SUBSTITUTE(SUBSTITUTE(Sociétaires!E56,"é","e"),"è","e"),"ê","e"))&Sociétaires!A56 -> Christian44 | B44: fdhiron@gmail.com | C44: $1$cCff5tfF$SPJmys20G5NCLiwcwOlJP1 | D44: =Sociétaires!E56 -> Christian | E44: =Sociétaires!M56 -> 0
A45: =(SUBSTITUTE(SUBSTITUTE(SUBSTITUTE(Sociétaires!E57,"é","e"),"è","e"),"ê","e"))&Sociétaires!A57 -> Bernard45 | B45: bernard.crouzil@wanadoo.fr | C45: $1$25WrISDq$JNb/P/1IctFoTiVE7CLVa1 | D45: =Sociétaires!E57 -> Bernard | E45: =Sociétaires!M57 -> 0
A46: =(SUBSTITUTE(SUBSTITUTE(SUBSTITUTE(Sociétaires!E58,"é","e"),"è","e"),"ê","e"))&Sociétaires!A58 -> Emmanuel46 | B46: emmanuel.menoni@wanadoo.fr | C46: $1$JqFLGnud$Mt/NmqHC.t9h75WLhvm0L1 | D46: =Sociétaires!E58 -> Emmanuel | E46: =Sociétaires!M58 -> 0
A47: =(SUBSTITUTE(SUBSTITUTE(SUBSTITUTE(Sociétaires!E59,"é","e"),"è","e"),"ê","e"))&Sociétaires!A59 -> Michel 47 | B47: migali@club-internet.fr | C47: $1$8UyiIay3$H6ugDSKDnkCVt6LG3V1xY0 | D47: =Sociétaires!E59 -> Michel | E47: =Sociétaires!M59 -> 0
A48: =(SUBSTITUTE(SUBSTITUTE(SUBSTITUTE(Sociétaires!E60,"é","e"),"è","e"),"ê","e"))&Sociétaires!A60 -> Florence48 | B48: 1@free.fr | C48: $1$f0LS8AUr$30qA3sdRMCGkIkYj7kNgx/ | D48: =Sociétaires!E60 -> Florence | E48: =Sociétaires!M60 -> 0
A49: =(SUBSTITUTE(SUBSTITUTE(SUBSTITUTE(Sociétaires!E61,"é","e"),"è","e"),"ê","e"))&Sociétaires!A61 -> Helene 49 | B49: helene.petit@gmx.fr | C49: $1$PRun9j4X$gbWgkQ6ZySGAAkXcpiLgD. | D49: =Sociétaires!E61 -> Hélène | E49: =Sociétaires!M61 -> 0
A50: =(SUBSTITUTE(SUBSTITUTE(SUBSTITUTE(Sociétaires!E62,"é","e"),"è","e"),"ê","e"))&Sociétaires!A62 -> Roger50 | B50: roger.mampey@free.fr | C50: $1$tXVizZb6$Z6O/CmFneOhSoc6.fi0nM1 | D50: =Sociétaires!E62 -> Roger | E50: =Sociétaires!M62 -> 0
A51: =(SUBSTITUTE(SUBSTITUTE(SUBSTITUTE(Sociétaires!E63,"é","e"),"è","e"),"ê","e"))&Sociétaires!A63 -> Gerald51 | B51: gerald2545@hotmail.com | C51: $1$ZGHM0RU1$l.0h5aqXxfOH79EoU2w8f1 | D51: =Sociétaires!E63 -> Gerald | E51: =Sociétaires!M63 -> 0
A52: =(SUBSTITUTE(SUBSTITUTE(SUBSTITUTE(Sociétaires!E65,"é","e"),"è","e"),"ê","e"))&Sociétaires!A65 -> Eric52 | B52: eric.noeureuil@wanadoo.fr | C52: $1$c4rXymAn$zUPoBu0JAKHqL2Htb5KGn. | D52: =Sociétaires!E65 -> Eric | E52: =Sociétaires!M65 -> 0
A53: =(SUBSTITUTE(SUBSTITUTE(SUBSTITUTE(Sociétaires!E68,"é","e"),"è","e"),"ê","e"))&Sociétaires!A68 -> Pascal53 | B53: pa.adam@orange.fr | C53: $1$fSwTn1oH$Ezsp/e/ho4PANDy1cT5A8. | D53: =Sociétaires!E68 -> Pascal | E53: =Sociétaires!M68 -> 0
A54: =(SUBSTITUTE(SUBSTITUTE(SUBSTITUTE(Sociétaires!E71,"é","e"),"è","e"),"ê","e"))&Sociétaires!A71 -> Bernard54 | B54: bernard.glories@gmail.com | C54: $1$BO1fmO4t$qaVY94pERjgF6NDfDHkgG1 | D54: =Sociétaires!E71 -> Bernard | E54: =Sociétaires!M71 -> 0
A55: =(SUBSTITUTE(SUBSTITUTE(SUBSTITUTE(Sociétaires!E72,"é","e"),"è","e"),"ê","e"))&Sociétaires!A72 -> Andree55 | B55: andree.palies@gmail.com | C55: $1$JKiJyRyq$LdEjnIozzaGpBwpNRFPG/. | D55: =Sociétaires!E72 -> Andree | E55: =Sociétaires!M72 -> 0
A56: =(SUBSTITUTE(SUBSTITUTE(SUBSTITUTE(Sociétaires!E73,"é","e"),"è","e"),"ê","e"))&Sociétaires!A73 -> Aurelie56 | B56: gravouil.aurelie@gmail.com | C56: $1$h5E91dtF$IJgkHH13zrEFRtyBW6Ync/ | D56: =Sociétaires!E73 -> Aurelie | E56: =Sociétaires!M73 -> 0
A57: =(SUBSTITUTE(SUBSTITUTE(SUBSTITUTE(Sociétaires!E74,"é","e"),"è","e"),"ê","e"))&Sociétaires!A74 -> JMPChauffage57 | B57: contact@jmpchauffage.fr | C57: $1$BKPPGMtg$reEsdL59f0ArsnB/oCQG8/ | D57: =Sociétaires!E74 -> JMPChauffage | E57: =Sociétaires!M74 -> 0
A58: =(SUBSTITUTE(SUBSTITUTE(SUBSTITUTE(Sociétaires!E75,"é","e"),"è","e"),"ê","e"))&Sociétaires!A75 -> Gerard58 | B58: gerard.bolet@gmail.com | C58: $1$dhzHlj4U$f4txjMmVXdhS71JRYgBGm/ | D58: =Sociétaires!E75 -> Gérard | E58: =Sociétaires!M75 -> 0
A59: =(SUBSTITUTE(SUBSTITUTE(SUBSTITUTE(Sociétaires!E76,"é","e"),"è","e"),"ê","e"))&Sociétaires!A76 -> Marie Therese59 | B59: mgetoile@gmail.com | C59: $1$sbWK609X$jt2vG6MXBEEHUgMkN60T./ | D59: =Sociétaires!E76 -> Marie Thérese | E59: =Sociétaires!M76 -> 0
A60: =(SUBSTITUTE(SUBSTITUTE(SUBSTITUTE(Sociétaires!E78,"é","e"),"è","e"),"ê","e"))&Sociétaires!A78 -> Philippe60 | B60: cathphil@free.fr | C60: ? | D60: =Sociétaires!E78 -> Philippe | E60: =Sociétaires!M78 -> 0
A61: =(SUBSTITUTE(SUBSTITUTE(SUBSTITUTE(Sociétaires!E79,"é","e"),"è","e"),"ê","e"))&Sociétaires!A79 -> Therese61 | B61: 7@free.fr | C61: $1$K7xeE7Cf$wPnGMA.jGZts2gybomxvX1 | D61: =Sociétaires!E79 -> Thérese | E61: =Sociétaires!M79 -> 0
A62: =(SUBSTITUTE(SUBSTITUTE(SUBSTITUTE(Sociétaires!E80,"é","e"),"è","e"),"ê","e"))&Sociétaires!A80 -> Nathalie62 | B62: fbranger@free.fr | C62: $1$l3k8rbth$7osPcpsZT5voVtPcTisvv/ | D62: =Sociétaires!E80 -> Nathalie | E62: =Sociétaires!M80 -> 0
A63: =(SUBSTITUTE(SUBSTITUTE(SUBSTITUTE(Sociétaires!E81,"é","e"),"è","e"),"ê","e"))&Sociétaires!A81 -> Elsa63 | B63: elsa.lomont@gmail.com | C63: $1$UgWhPuZq$ZbN9TzfGHmpIkL0DUSwxk/ | D63: =Sociétaires!E81 -> Elsa | E63: =Sociétaires!M81 -> 0
A64: =(SUBSTITUTE(SUBSTITUTE(SUBSTITUTE(Sociétaires!E82,"é","e"),"è","e"),"ê","e"))&Sociétaires!A82 -> Martine64 | B64: martine.depaux31@gmail.com | C64: $1$J1EUszGw$YaDlm.OdpEcofYJ6iZrA// | D64: =Sociétaires!E82 -> Martine | E64: =Sociétaires!M82 -> 0
A65: =(SUBSTITUTE(SUBSTITUTE(SUBSTITUTE(Sociétaires!E83,"é","e"),"è","e"),"ê","e"))&Sociétaires!A83 -> Laurent 65 | B65: laurent.koechlin@free.fr | C65: $1$6TWpsLzA$ILGl2MwOLCO78n2R9cDu01 | D65: =Sociétaires!E83 -> Laurent | E65: =Sociétaires!M83 -> 0
A66: =(SUBSTITUTE(SUBSTITUTE(SUBSTITUTE(Sociétaires!E84,"é","e"),"è","e"),"ê","e"))&Sociétaires!A84 -> Monique66 | B66: 8@free.fr | C66: $1$PSS70tD8$fW0BNqqXElYv2F.ayhqp21 | D66: =Sociétaires!E84 -> Monique | E66: =Sociétaires!M84 -> 0
A67: =(SUBSTITUTE(SUBSTITUTE(SUBSTITUTE(Sociétaires!E85,"é","e"),"è","e"),"ê","e"))&Sociétaires!A85 -> Paul67 | B67: paul.baldelli@free.fr | C67: $1$B0PXYgZN$qBez21XhJGNwMEIlmDpBu0 | D67: =Sociétaires!E85 -> Paul | E67: =Sociétaires!M85 -> 0
A68: =(SUBSTITUTE(SUBSTITUTE(SUBSTITUTE(Sociétaires!E86,"é","e"),"è","e"),"ê","e"))&Sociétaires!A86 -> Jeanne68 | B68: jjbras@aliceadsl.fr | C68: $1$DGASRNon$M9yKw/2LXgvO3ZFuqY2Yz. | D68: =Sociétaires!E86 -> Jeanne | E68: =Sociétaires!M86 -> 0
A69: =(SUBSTITUTE(SUBSTITUTE(SUBSTITUTE(Sociétaires!E87,"é","e"),"è","e"),"ê","e"))&Sociétaires!A87 -> Jean69 | B69: jean.bras1@aliceadsl.fr | C69: $1$HDWzs02u$o1FF85uvTH4PwjrKAwjiH0 | D69: =Sociétaires!E87 -> Jean | E69: =Sociétaires!M87 -> 0
A70: =(SUBSTITUTE(SUBSTITUTE(SUBSTITUTE(Sociétaires!E88,"é","e"),"è","e"),"ê","e"))&Sociétaires!A88 -> Michel70 | B70: parmentiermichel@free.fr | C70: $1$c6XHX8Mz$AxzfxLBkZuHQP4kt2OEsG. | D70: =Sociétaires!E88 -> Michel | E70: =Sociétaires!M88 -> 0
A71: =(SUBSTITUTE(SUBSTITUTE(SUBSTITUTE(Sociétaires!E89,"é","e"),"è","e"),"ê","e"))&Sociétaires!A89 -> Pierrette71 | B71: bioulez.p@gmail.com | C71: $1$iZG1qoRh$vg..cGIITEG8Amhv.bjHJ. | D71: =Sociétaires!E89 -> Pierrette | E71: =Sociétaires!M89 -> 0
A72: =(SUBSTITUTE(SUBSTITUTE(SUBSTITUTE(Sociétaires!E90,"é","e"),"è","e"),"ê","e"))&Sociétaires!A90 -> Gaël72 | B72: 9@free.fr | C72: $1$E9OjqAnY$TZL5cSiclOaWKvG9ZxCbo. | D72: =Sociétaires!E90 -> Gaël | E72: =Sociétaires!M90 -> 0
A73: =(SUBSTITUTE(SUBSTITUTE(SUBSTITUTE(Sociétaires!E91,"é","e"),"è","e"),"ê","e"))&Sociétaires!A91 -> Pauline73 | B73: sandrine.thilpulgar71@gmail.com | C73: $1$NSiVsRBn$ptLk7GMlE4N4Ey.9WPsua. | D73: =Sociétaires!E91 -> Pauline | E73: =Sociétaires!M91 -> 0
A74: =(SUBSTITUTE(SUBSTITUTE(SUBSTITUTE(Sociétaires!E92,"é","e"),"è","e"),"ê","e"))&Sociétaires!A92 -> Renaud74 | B74: renaud.dardel@free.fr | C74: $1$8Y6a1bhK$QFspM4BgLUM.dO8ciyRAL/ | D74: =Sociétaires!E92 -> Renaud | E74: =Sociétaires!M92 -> 0
A75: =(SUBSTITUTE(SUBSTITUTE(SUBSTITUTE(Sociétaires!E93,"é","e"),"è","e"),"ê","e"))&Sociétaires!A93 -> Monsieur le Maire75 | B75: cabinetmaire@ville-labege.fr | C75: $1$muiLEfPe$ciqO7zqc2prT25KI55whN/ | D75: =Sociétaires!E93 -> Monsieur le Maire | E75: =Sociétaires!M93 -> 0
A76: =(SUBSTITUTE(SUBSTITUTE(SUBSTITUTE(Sociétaires!E94,"é","e"),"è","e"),"ê","e"))&Sociétaires!A94 -> Farid76 | B76: faridzizi50@gmail.com | C76: $1$yH6Xolj6$ye.blkFBZr7w.UV30lTAI/ | D76: =Sociétaires!E94 -> Farid | E76: =Sociétaires!M94 -> 0
A77: =(SUBSTITUTE(SUBSTITUTE(SUBSTITUTE(Sociétaires!E95,"é","e"),"è","e"),"ê","e"))&Sociétaires!A95 -> Joel77 | B77: olivier.labege@free.fr | C77: $1$6nSkrRRX$hoUl36WM78PcANf2xuSpB/ | D77: =Sociétaires!E95 -> Joel | E77: =Sociétaires!M95 -> 0
A78: =(SUBSTITUTE(SUBSTITUTE(SUBSTITUTE(Sociétaires!E97,"é","e"),"è","e"),"ê","e"))&Sociétaires!A97 -> SARL | B78: odeafoncier@gmail.com | C78: $1$WXlIBAvj$VCYtp9nC9a8zzmJjNLzt7. | D78: =Sociétaires!E97 -> SARL | E78: =Sociétaires!M97 -> 0
A79: =(SUBSTITUTE(SUBSTITUTE(SUBSTITUTE(Sociétaires!E99,"é","e"),"è","e"),"ê","e"))&Sociétaires!A99 -> Danielle78 | B79: danielle.subiela@orange.fr | C79: $1$cNJnaH1w$.Bt0UjH5eLc1BbbA/S8wZ1 | D79: =Sociétaires!E99 -> Danielle | E79: =Sociétaires!M99 -> 0
A80: =(SUBSTITUTE(SUBSTITUTE(SUBSTITUTE(Sociétaires!E100,"é","e"),"è","e"),"ê","e"))&Sociétaires!A100 -> Remi79 | B80: remi_dutard@yahoo.fr | C80: $1$B0TV7EXP$3B4A7nhafy/fkxy/P4zdh. | D80: =Sociétaires!E100 -> Remi | E80: =Sociétaires!M100 -> 0
A81: =(SUBSTITUTE(SUBSTITUTE(SUBSTITUTE(Sociétaires!E101,"é","e"),"è","e"),"ê","e"))&Sociétaires!A101 -> Alexandre80 | B81: schmitalex@gmail.com | C81: $1$IV3F2mvl$rS.6S2eIb26oSkkcTfJSH0 | D81: =Sociétaires!E101 -> Alexandre | E81: =Sociétaires!M101 -> 0
A82: =(SUBSTITUTE(SUBSTITUTE(SUBSTITUTE(Sociétaires!E102,"é","e"),"è","e"),"ê","e"))&Sociétaires!A102 -> Sylvie81 | B82: 10@free.fr | C82: $1$KoEdz4kx$cdgUQciZ5Qk/TmlfsirNO. | D82: =Sociétaires!E102 -> Sylvie | E82: =Sociétaires!M102 -> 0
A83: =(SUBSTITUTE(SUBSTITUTE(SUBSTITUTE(Sociétaires!E103,"é","e"),"è","e"),"ê","e"))&Sociétaires!A103 -> Quentin82 | B83: 11@free.fr | C83: $1$lLRuYRhj$vfV.N/uugsFrREuRDmL7e0 | D83: =Sociétaires!E103 -> Quentin | E83: =Sociétaires!M103 -> 0
A84: =(SUBSTITUTE(SUBSTITUTE(SUBSTITUTE(Sociétaires!E104,"é","e"),"è","e"),"ê","e"))&Sociétaires!A104 -> Thibaut83 | B84: 12@free.fr | C84: $1$R9q0BpdH$c8EIiTAOwPdZ6gzmsOJog0 | D84: =Sociétaires!E104 -> Thibaut | E84: =Sociétaires!M104 -> 0
A85: =(SUBSTITUTE(SUBSTITUTE(SUBSTITUTE(Sociétaires!E105,"é","e"),"è","e"),"ê","e"))&Sociétaires!A105 -> Marion84 | B85: 13@free.fr | C85: $1$98z0z8fl$fNlDwF8yu/KYVwNe.qZwc. | D85: =Sociétaires!E105 -> Marion | E85: =Sociétaires!M105 -> 0
A86: =(SUBSTITUTE(SUBSTITUTE(SUBSTITUTE(Sociétaires!E106,"é","e"),"è","e"),"ê","e"))&Sociétaires!A106 -> Olivier85 | B86: olivier.debrusse@gmail.com | C86: $1$6x505zh0$x4sqK84r/RVxrAnhAJ1G01 | D86: =Sociétaires!E106 -> Olivier | E86: =Sociétaires!M106 -> 0
A87: =(SUBSTITUTE(SUBSTITUTE(SUBSTITUTE(Sociétaires!E109,"é","e"),"è","e"),"ê","e"))&Sociétaires!A109 -> Anne-Marie86 | B87: annette.debrusse@orange.fr | C87: $1$DaUHxYqt$rDNYpFONp4fnOM5KHUc3i. | D87: =Sociétaires!E109 -> Anne-Marie | E87: =Sociétaires!M109 -> 0
A88: =(SUBSTITUTE(SUBSTITUTE(SUBSTITUTE(Sociétaires!E111,"é","e"),"è","e"),"ê","e"))&Sociétaires!A111 -> Jean-Patrice88 | B88: ln.jp@iCloud.com | C88: $1$4DNqq19R$FgOKn6uEQ.a0yGg/u9pjv1 | D88: =Sociétaires!E111 -> Jean-Patrice | E88: =Sociétaires!M111 -> 0
A89: =(SUBSTITUTE(SUBSTITUTE(SUBSTITUTE(Sociétaires!E112,"é","e"),"è","e"),"ê","e"))&Sociétaires!A112 -> Monsieur le Maire89 | B89: mairie.ayguesvives31@wanadoo.fr | C89: $1$h6ELbNJq$Rnpjy2NbtG9OnKtsbFAWs1 | D89: =Sociétaires!E112 -> Monsieur le Maire | E89: =Sociétaires!M112 -> 0
A90: =(SUBSTITUTE(SUBSTITUTE(SUBSTITUTE(Sociétaires!E115,"é","e"),"è","e"),"ê","e"))&Sociétaires!A115 -> Ariane90 | B90: ariane.segonds@free.fr | C90: $1$lk8oKy0Z$DnSL01EIgWx9Tx//yUbqn. | D90: =Sociétaires!E115 -> Ariane | E90: =Sociétaires!M115 -> 0
A91: =(SUBSTITUTE(SUBSTITUTE(SUBSTITUTE(Sociétaires!E116,"é","e"),"è","e"),"ê","e"))&Sociétaires!A116 -> Noemie91 | B91: cedric.faure@gmail.com | C91: $1$JqHd21iI$4htqihFRQYt1TwiT7hOzv0 | D91: =Sociétaires!E116 -> Noémie | E91: =Sociétaires!M116 -> 0
A92: =(SUBSTITUTE(SUBSTITUTE(SUBSTITUTE(Sociétaires!E117,"é","e"),"è","e"),"ê","e"))&Sociétaires!A117 -> Anne92 | B92: anne.laurens31@gmail.com | C92: $1$tIGJ0EPw$P.rzaKN.gf26bJGHHnLN51 | D92: =Sociétaires!E117 -> Anne | E92: =Sociétaires!M117 -> 0
A93: =(SUBSTITUTE(SUBSTITUTE(SUBSTITUTE(Sociétaires!E118,"é","e"),"è","e"),"ê","e"))&Sociétaires!A118 -> Xavier 93 | B93: ex.isnard@cegetel.net | C93: $1$7LzaHXjn$V9rI83vQ9WOgDQ.HWn0Xz1 | D93: =Sociétaires!E118 -> Xavier | E93: =Sociétaires!M118 -> 0
A94: =(SUBSTITUTE(SUBSTITUTE(SUBSTITUTE(Sociétaires!E119,"é","e"),"è","e"),"ê","e"))&Sociétaires!A119 -> Estelle94 | B94: 15@free.fr | C94: $1$fj7PiWG1$UiCG/O0GfF3liXOtI8xvp1 | D94: =Sociétaires!E119 -> Estelle | E94: =Sociétaires!M119 -> 0
A95: =(SUBSTITUTE(SUBSTITUTE(SUBSTITUTE(Sociétaires!E120,"é","e"),"è","e"),"ê","e"))&Sociétaires!A120 -> Basile95 | B95: 16@free.fr | C95: $1$83mEkzQF$pyWZvyzuPe.oXay9snfHa1 | D95: =Sociétaires!E120 -> Basile | E95: =Sociétaires!M120 -> 0
A96: =(SUBSTITUTE(SUBSTITUTE(SUBSTITUTE(Sociétaires!E121,"é","e"),"è","e"),"ê","e"))&Sociétaires!A121 -> Paul96 | B96: 17@free.fr | C96: $1$UzyQunv4$BjYgFQEB6.nGntjLeMYxI0 | D96: =Sociétaires!E121 -> Paul | E96: =Sociétaires!M121 -> 0
A97: =(SUBSTITUTE(SUBSTITUTE(SUBSTITUTE(Sociétaires!E122,"é","e"),"è","e"),"ê","e"))&Sociétaires!A122 -> Merlin97 | B97: 18@free.fr | C97: $1$RzaVfKxl$5/yo29CTI8.6UeDMMoygA1 | D97: =Sociétaires!E122 -> Merlin | E97: =Sociétaires!M122 -> 0
A98: =(SUBSTITUTE(SUBSTITUTE(SUBSTITUTE(Sociétaires!E123,"é","e"),"è","e"),"ê","e"))&Sociétaires!A123 -> Aurelie98 | B98: aurelie.debrusse@gmail.com | C98: $1$wMV4jS3g$YdlEj/zvcBKoKE3bjC.Iq/ | D98: =Sociétaires!E123 -> Aurelie | E98: =Sociétaires!M123 -> 0
A99: =(SUBSTITUTE(SUBSTITUTE(SUBSTITUTE(Sociétaires!E127,"é","e"),"è","e"),"ê","e"))&Sociétaires!A127 -> Guillaume99 | B99: isnard.gui@gmail.com | C99: $1$650Ba82V$oBw.rmOx0F8tYqhDJH/q2. | D99: =Sociétaires!E127 -> Guillaume | E99: =Sociétaires!M127 -> 0
A100: =(SUBSTITUTE(SUBSTITUTE(SUBSTITUTE(Sociétaires!E128,"é","e"),"è","e"),"ê","e"))&Sociétaires!A128 -> Juliette100 | B100: 19@free.fr | C100: $1$YVrP46Mx$PEhBU7ZwuMSi96LcmUWwd. | D100: =Sociétaires!E128 -> Juliette | E100: =Sociétaires!M128 -> 0
A101: =(SUBSTITUTE(SUBSTITUTE(SUBSTITUTE(Sociétaires!E129,"é","e"),"è","e"),"ê","e"))&Sociétaires!A129 -> Zoe101 | B101: 20@free.fr | C101: $1$dP9I4VKE$c8kzy/062EFgnfhX7xFyb0 | D101: =Sociétaires!E129 -> Zoe | E101: =Sociétaires!M129 -> 0
A102: =(SUBSTITUTE(SUBSTITUTE(SUBSTITUTE(Sociétaires!E130,"é","e"),"è","e"),"ê","e"))&Sociétaires!A130 -> Sabrina102 | B102: 21@free.fr | C102: $1$VOCh6AyD$YVRniwwI2u6VCcUlo/Lkc0 | D102: =Sociétaires!E130 -> Sabrina | E102: =Sociétaires!M130 -> 0
A103: =(SUBSTITUTE(SUBSTITUTE(SUBSTITUTE(Sociétaires!E131,"é","e"),"è","e"),"ê","e"))&Sociétaires!A131 -> Benjamin103 | B103: be.carrere@gmail.com | C103: $1$Z0vFocF3$i1NPI9wPOyeQC7QHv1cre1 | D103: =Sociétaires!E131 -> Benjamin | E103: =Sociétaires!M131 -> 0
A104: =(SUBSTITUTE(SUBSTITUTE(SUBSTITUTE(Sociétaires!E133,"é","e"),"è","e"),"ê","e"))&Sociétaires!A133 -> Laure104 | B104: laure_aymard@yahoo.fr | C104: $1$YBsNc6RV$Em9q1ebGzcKPVjrQehqgm/ | D104: =Sociétaires!E133 -> Laure | E104: =Sociétaires!M133 -> 0
A105: =(SUBSTITUTE(SUBSTITUTE(SUBSTITUTE(Sociétaires!E136,"é","e"),"è","e"),"ê","e"))&Sociétaires!A136 -> Nathalie105 | B105: nath.isnard@free.fr | C105: $1$J5rzgdvx$SjhCov9kXjhnACiJTdHSz1 | D105: =Sociétaires!E136 -> Nathalie | E105: =Sociétaires!M136 -> 0
A106: =(SUBSTITUTE(SUBSTITUTE(SUBSTITUTE(Sociétaires!E137,"é","e"),"è","e"),"ê","e"))&Sociétaires!A137 -> Fabien106 | B106: fab.isnard@free.fr | C106: $1$ytEkRYHu$dfO4096iEa3D5804BFpNh1 | D106: =Sociétaires!E137 -> Fabien | E106: =Sociétaires!M137 -> 0
A107: =(SUBSTITUTE(SUBSTITUTE(SUBSTITUTE(Sociétaires!E138,"é","e"),"è","e"),"ê","e"))&Sociétaires!A138 -> Marine107 | B107: 22@free.fr | C107: $1$22AsyyLA$TcJsuocQnS3TXd6zhoMcf0 | D107: =Sociétaires!E138 -> Marine | E107: =Sociétaires!M138 -> 0
A108: =(SUBSTITUTE(SUBSTITUTE(SUBSTITUTE(Sociétaires!E139,"é","e"),"è","e"),"ê","e"))&Sociétaires!A139 -> Maxence108 | B108: 23@free.fr | C108: $1$gEJO9d0V$JpiWTfuk.wMs4W8MtVlOn. | D108: =Sociétaires!E139 -> Maxence | E108: =Sociétaires!M139 -> 0
A109: =(SUBSTITUTE(SUBSTITUTE(SUBSTITUTE(Sociétaires!E140,"é","e"),"è","e"),"ê","e"))&Sociétaires!A140 -> Remi109 | B109: 24@free.fr | C109: $1$cGjKwe4h$zUKNxPeaLaW3YHLGiYPCO. | D109: =Sociétaires!E140 -> Remi | E109: =Sociétaires!M140 -> 0
A110: =(SUBSTITUTE(SUBSTITUTE(SUBSTITUTE(Sociétaires!E141,"é","e"),"è","e"),"ê","e"))&Sociétaires!A141 -> Pauline110 | B110: pauline_carrere@hotmail.fr | C110: $1$8ylaWUkZ$KBIg8sMgXyJg1wNa8657l. | D110: =Sociétaires!E141 -> Pauline | E110: =Sociétaires!M141 -> 0
A111: =(SUBSTITUTE(SUBSTITUTE(SUBSTITUTE(Sociétaires!E143,"é","e"),"è","e"),"ê","e"))&Sociétaires!A143 -> Julien | B111: julien.fouchard@free.fr | C111: $1$V9slOnLc$x9kMee.eAvT6ZvAPfPpnM1 | D111: =Sociétaires!E143 -> Julien | E111: =Sociétaires!M143 -> 0
A112: =(SUBSTITUTE(SUBSTITUTE(SUBSTITUTE(Sociétaires!E145,"é","e"),"è","e"),"ê","e"))&Sociétaires!A145 -> Christophe111 | B112: christophe.klopp@free.fr | C112: $1$D3gHadgQ$7DOEVC15/XW3/BWbiRfX7/ | D112: =Sociétaires!E145 -> Christophe | E112: =Sociétaires!M145 -> 0
A113: =(SUBSTITUTE(SUBSTITUTE(SUBSTITUTE(Sociétaires!E146,"é","e"),"è","e"),"ê","e"))&Sociétaires!A146 -> Gwenola112 | B113: 25@free.fr | C113: $1$IzH5aue5$gkhcmlJkYlEVyCWMsghUB0 | D113: =Sociétaires!E146 -> Gwenola | E113: =Sociétaires!M146 -> 0
A114: =(SUBSTITUTE(SUBSTITUTE(SUBSTITUTE(Sociétaires!E147,"é","e"),"è","e"),"ê","e"))&Sociétaires!A147 -> Caroline113 | B114: caroline.fouchard@free.fr | C114: $1$9lG9UpHe$rzPF7LVhrV2VxQnBCGWOM0 | D114: =Sociétaires!E147 -> Caroline | E114: =Sociétaires!M147 -> 0
A115: =(SUBSTITUTE(SUBSTITUTE(SUBSTITUTE(Sociétaires!E149,"é","e"),"è","e"),"ê","e"))&Sociétaires!A149 -> Alexandre114 | B115: alexsalin45@hotmail.com | C115: $1$JmrzmTyA$w0lVZOVrPXoPnwVo3D0.N1 | D115: =Sociétaires!E149 -> Alexandre | E115: =Sociétaires!M149 -> 0
A116: =(SUBSTITUTE(SUBSTITUTE(SUBSTITUTE(Sociétaires!E150,"é","e"),"è","e"),"ê","e"))&Sociétaires!A150 -> Mathilde115 | B116: 29@free.fr | C116: $1$02MXyEpd$hV2XQCnRdKWgyHo9uY3Yy. | D116: =Sociétaires!E150 -> Mathilde | E116: =Sociétaires!M150 -> 0
A117: =(SUBSTITUTE(SUBSTITUTE(SUBSTITUTE(Sociétaires!E152,"é","e"),"è","e"),"ê","e"))&Sociétaires!A152 -> Manon116 | B117: 26@free.fr | C117: $1$YYKERtZo$8Rns0N5ggt709s0uL7e7R0 | D117: =Sociétaires!E152 -> Manon | E117: =Sociétaires!M152 -> 0
A118: =(SUBSTITUTE(SUBSTITUTE(SUBSTITUTE(Sociétaires!E154,"é","e"),"è","e"),"ê","e"))&Sociétaires!A154 -> Eva117 | B118: 27@free.fr | C118: $1$cKhH1d7l$FwGvD8HyCHUw5G1uyS6UE/ | D118: =Sociétaires!E154 -> Eva | E118: =Sociétaires!M154 -> 0
A119: =(SUBSTITUTE(SUBSTITUTE(SUBSTITUTE(Sociétaires!E157,"é","e"),"è","e"),"ê","e"))&Sociétaires!A157 -> Alexandre118 | B119: axoul51@free.fr | C119: $1$i7lcd083$TX422bfVjtefVd5M080nP1 | D119: =Sociétaires!E157 -> Alexandre | E119: =Sociétaires!M157 -> 0
A120: =(SUBSTITUTE(SUBSTITUTE(SUBSTITUTE(Sociétaires!E158,"é","e"),"è","e"),"ê","e"))&Sociétaires!A158 -> Aida119 | B120: 28@free.fr | C120: $1$QgO5EgT4$cgGhq08ndcStkYTHQcHvm. | D120: =Sociétaires!E158 -> Aida | E120: =Sociétaires!M158 -> 0
A121: =(SUBSTITUTE(SUBSTITUTE(SUBSTITUTE(Sociétaires!E160,"é","e"),"è","e"),"ê","e"))&Sociétaires!A160 -> Herve120 | B121: h.boulanger31@orange.fr | C121: $1$fXwiAQdu$l1tibA5tZjHysr4qrySLi0 | D121: =Sociétaires!E160 -> Hervé | E121: =Sociétaires!M160 -> 0
A122: =(SUBSTITUTE(SUBSTITUTE(SUBSTITUTE(Sociétaires!E162,"é","e"),"è","e"),"ê","e"))&Sociétaires!A162 -> Elisabeth121 | B122: elisa.depaix@free.fr | C122: $1$AirsUUX4$tWHh4GCZVtLn0gJvZXn8A0 | D122: =Sociétaires!E162 -> Elisabeth | E122: =Sociétaires!M162 -> 0
A123: =(SUBSTITUTE(SUBSTITUTE(SUBSTITUTE(Sociétaires!E163,"é","e"),"è","e"),"ê","e"))&Sociétaires!A163 -> Anne122 | B123: annefaures@free.fr | C123: $1$YzxWHY8d$Fdzr8XbRFnYlGZ/hI/ul/0 | D123: =Sociétaires!E163 -> Anne | E123: =Sociétaires!M163 -> 0
A124: =(SUBSTITUTE(SUBSTITUTE(SUBSTITUTE(Sociétaires!E164,"é","e"),"è","e"),"ê","e"))&Sociétaires!A164 -> Bernard123 | B124: bduquesnoy@wanadoo.fr | C124: $1$keZtqksw$6WQ2ccW8ei5rRMRfAXN6u1 | D124: =Sociétaires!E164 -> Bernard | E124: =Sociétaires!M164 -> 0
A125: =(SUBSTITUTE(SUBSTITUTE(SUBSTITUTE(Sociétaires!E165,"é","e"),"è","e"),"ê","e"))&Sociétaires!A165 -> Olivier124 | B125: balosso.olivier@gmail.com | C125: $1$xxSslMQB$0/5Cz6tsFBF1UhF8jbV/81 | D125: =Sociétaires!E165 -> Olivier | E125: =Sociétaires!M165 -> 0
A126: =(SUBSTITUTE(SUBSTITUTE(SUBSTITUTE(Sociétaires!E166,"é","e"),"è","e"),"ê","e"))&Sociétaires!A166 -> Monique125 | B126: manuguerra.monique@gmail.com | C126: $1$srtOjF3i$SrQLjUSvA3dAO.7MSTIal1 | D126: =Sociétaires!E166 -> Monique | E126: =Sociétaires!M166 -> 0
A127: =(SUBSTITUTE(SUBSTITUTE(SUBSTITUTE(Sociétaires!E168,"é","e"),"è","e"),"ê","e"))&Sociétaires!A168 -> Pierre126 | B127: pierre.noeureuil@gmail.com | C127: $1$vDGLbBDD$XJLkjZSwS1ElulrQDQ3Py. | D127: =Sociétaires!E168 -> Pierre | E127: =Sociétaires!M168 -> 0
A128: =(SUBSTITUTE(SUBSTITUTE(SUBSTITUTE(Sociétaires!E169,"é","e"),"è","e"),"ê","e"))&Sociétaires!A169 -> Francis127 | B128: francis.barousse@wanadoo.fr | C128: $1$D4rE2Rwp$UzjNx.IiW207LOxP.t9Mw1 | D128: =Sociétaires!E169 -> Francis | E128: =Sociétaires!M169 -> 0
A129: =(SUBSTITUTE(SUBSTITUTE(SUBSTITUTE(Sociétaires!E170,"é","e"),"è","e"),"ê","e"))&Sociétaires!A170 -> Bruno128 | B129: kuadlio@yahoo.fr | C129: $1$MUhIbvth$/.5SB3B1lmGP46EkVEKkt. | D129: =Sociétaires!E170 -> Bruno | E129: =Sociétaires!M170 -> 0
A130: =(SUBSTITUTE(SUBSTITUTE(SUBSTITUTE(Sociétaires!E171,"é","e"),"è","e"),"ê","e"))&Sociétaires!A171 -> Henri129 | B130: henri.arevalo@wanadoo.fr | C130: $1$KlMjUiQU$k.a5S3kF.Pg21NWkGfTN// | D130: =Sociétaires!E171 -> Henri | E130: =Sociétaires!M171 -> 0
A131: =(SUBSTITUTE(SUBSTITUTE(SUBSTITUTE(Sociétaires!E172,"é","e"),"è","e"),"ê","e"))&Sociétaires!A172 -> Monique130 | B131: monique.dardel@free.fr | C131: $1$PP0zp5JP$lEFirim2x9u4vgEGVfTId. | D131: =Sociétaires!E172 -> Monique | E131: =Sociétaires!M172 -> 0
A132: =(SUBSTITUTE(SUBSTITUTE(SUBSTITUTE(Sociétaires!E173,"é","e"),"è","e"),"ê","e"))&Sociétaires!A173 -> Jean-Louis131 | B132: jlmignonat@orange.fr | C132: $1$0a2EeXkc$gwfNh/GrB9sM0uZpeb8sj. | D132: =Sociétaires!E173 -> Jean-Louis | E132: =Sociétaires!M173 -> 0
A133: =(SUBSTITUTE(SUBSTITUTE(SUBSTITUTE(Sociétaires!E174,"é","e"),"è","e"),"ê","e"))&Sociétaires!A174 -> Françoise132 | B133: louise.emery@wanadoo.fr | C133: $1$LIsOx8bU$1182TCCMdT.S46q.8NpLs0 | D133: =Sociétaires!E174 -> Françoise | E133: =Sociétaires!M174 -> 0
A134: =(SUBSTITUTE(SUBSTITUTE(SUBSTITUTE(Sociétaires!E175,"é","e"),"è","e"),"ê","e"))&Sociétaires!A175 -> Monsieur le president133 | B134: florence.martin@energie-partagee.org | C134: $1$Ix1NSlQx$g8piWb/QOxmnOgKbgMNs0. | D134: =Sociétaires!E175 -> Monsieur le président | E134: =Sociétaires!M175 -> 0
A135: =(SUBSTITUTE(SUBSTITUTE(SUBSTITUTE(Sociétaires!E176,"é","e"),"è","e"),"ê","e"))&Sociétaires!A176 -> Monsieur le Maire134 | B135: mairie-donneville@wanadoo.fr | C135: $1$u14HNkhO$6Ot27tI.q9dj5j9WPQzP10 | D135: =Sociétaires!E176 -> Monsieur le Maire | E135: =Sociétaires!M176 -> 0
A136: =(SUBSTITUTE(SUBSTITUTE(SUBSTITUTE(Sociétaires!E177,"é","e"),"è","e"),"ê","e"))&Sociétaires!A177 -> Monsieur le Maire135 | B136: mairie@montbrun-lauragais.fr | C136: $1$B1Ehws9k$NDUrBHmxSrXdHJM/VdhEJ/ | D136: =Sociétaires!E177 -> Monsieur le Maire | E136: =Sociétaires!M177 -> 0
A137: =(SUBSTITUTE(SUBSTITUTE(SUBSTITUTE(Sociétaires!E178,"é","e"),"è","e"),"ê","e"))&Sociétaires!A178 -> Berangere136 | B137: berengere.doerler@wanadoo.fr | C137: $1$Y6zGHyIE$pT7Ge0DH2TDCmoUqJM8H0/ | D137: =Sociétaires!E178 -> Bérangère | E137: =Sociétaires!M178 -> 0
A138: =(SUBSTITUTE(SUBSTITUTE(SUBSTITUTE(Sociétaires!E179,"é","e"),"è","e"),"ê","e"))&Sociétaires!A179 -> Florence137 | B138: 30@free.fr | C138: $1$1MvZVPnh$6Vtj91kM0fYbadvbQ8f7E0 | D138: =Sociétaires!E179 -> Florence | E138: =Sociétaires!M179 -> 0
A139: =(SUBSTITUTE(SUBSTITUTE(SUBSTITUTE(Sociétaires!E180,"é","e"),"è","e"),"ê","e"))&Sociétaires!A180 -> Bruno138 | B139: brunoxdavid@gmail.com | C139: $1$KBhFHAdh$l7WNeRkr/Z9Bw156Pgime1 | D139: =Sociétaires!E180 -> Bruno | E139: =Sociétaires!M180 -> 0
A140: =(SUBSTITUTE(SUBSTITUTE(SUBSTITUTE(Sociétaires!E181,"é","e"),"è","e"),"ê","e"))&Sociétaires!A181 -> Annie139 | B140: 32@free.fr | C140: $1$SfHlGmQs$jgEy02tenjz8qqS1ieHYs/ | D140: =Sociétaires!E181 -> Annie | E140: =Sociétaires!M181 -> 0
A141: =(SUBSTITUTE(SUBSTITUTE(SUBSTITUTE(Sociétaires!E182,"é","e"),"è","e"),"ê","e"))&Sociétaires!A182 -> Gaetan140 | B141: gaetan.sev@gmail.com | C141: $1$e0VhSRts$4VC9j/nUUNmDKKz.gSWwE0 | D141: =Sociétaires!E182 -> Gaetan | E141: =Sociétaires!M182 -> 0
A142: =(SUBSTITUTE(SUBSTITUTE(SUBSTITUTE(Sociétaires!E184,"é","e"),"è","e"),"ê","e"))&Sociétaires!A184 -> Sebastien141 | B142: sebastien.picard@gmail.com | C142: $1$vgPaIh5N$GZilUqpfy1.K0jSsqCjFQ/ | D142: =Sociétaires!E184 -> Sébastien | E142: =Sociétaires!M184 -> 0
A143: =(SUBSTITUTE(SUBSTITUTE(SUBSTITUTE(Sociétaires!E185,"é","e"),"è","e"),"ê","e"))&Sociétaires!A185 -> Frederique142 | B143: milfred@hotmail.fr | C143: $1$pGexeMbG$cQnZNoOHfRCjuxFmoSjWg. | D143: =Sociétaires!E185 -> Fréderique | E143: =Sociétaires!M185 -> 0
A144: =(SUBSTITUTE(SUBSTITUTE(SUBSTITUTE(Sociétaires!E186,"é","e"),"è","e"),"ê","e"))&Sociétaires!A186 -> Jacques143 | B144: jpolletjacques@gmail.com | C144: $1$QGRrkZYs$zHuuqvX6PNMrcPUVeRRwX0 | D144: =Sociétaires!E186 -> Jacques | E144: =Sociétaires!M186 -> 0
A145: =(SUBSTITUTE(SUBSTITUTE(SUBSTITUTE(Sociétaires!E187,"é","e"),"è","e"),"ê","e"))&Sociétaires!A187 -> Xavier 144 | B145: xavier.pascal0197@orange.fr | C145: $1$0NZQLJbH$PFtB5ZVw4WiY8u9rU3XBN. | D145: =Sociétaires!E187 -> Xavier | E145: =Sociétaires!M187 -> 0
A146: =(SUBSTITUTE(SUBSTITUTE(SUBSTITUTE(Sociétaires!E188,"é","e"),"è","e"),"ê","e"))&Sociétaires!A188 -> Mireille145 | B146: mirpascal@gmail.com | C146: $1$opKAEB0M$hNJPfEc3fe07cZY38Ipjn. | D146: =Sociétaires!E188 -> Mireille | E146: =Sociétaires!M188 -> 0
A147: =(SUBSTITUTE(SUBSTITUTE(SUBSTITUTE(Sociétaires!E190,"é","e"),"è","e"),"ê","e"))&Sociétaires!A190 -> Lena146 | B147: caillejerome@yahoo.fr | C147: $1$zvEij2qH$F94rntHnb8UIcmONbQJuO. | D147: =Sociétaires!E190 -> Léna | E147: =Sociétaires!M190 -> 0
A148: =(SUBSTITUTE(SUBSTITUTE(SUBSTITUTE(Sociétaires!E191,"é","e"),"è","e"),"ê","e"))&Sociétaires!A191 -> ANGELE147 | B148: 33@free.fr | C148: $1$rl7Kmtux$71d59Ki9zmN2ZgXhMjyKM1 | D148: =Sociétaires!E191 -> ANGELE | E148: =Sociétaires!M191 -> 0
A149: =(SUBSTITUTE(SUBSTITUTE(SUBSTITUTE(Sociétaires!E192,"é","e"),"è","e"),"ê","e"))&Sociétaires!A192 -> LIAM148 | B149: 34@free.fr | C149: $1$dkecVZdc$p0hhxH2gfr1ZjFr/a/F7O1 | D149: =Sociétaires!E192 -> LIAM | E149: =Sociétaires!M192 -> 0
A150: =(SUBSTITUTE(SUBSTITUTE(SUBSTITUTE(Sociétaires!E193,"é","e"),"è","e"),"ê","e"))&Sociétaires!A193 -> Karine149 | B150: karine.tropis@gmail.com | C150: $1$W93yx0qs$Tff4Z9E9u6gLrsCs6HfBx1 | D150: =Sociétaires!E193 -> Karine | E150: =Sociétaires!M193 -> 0
A151: =(SUBSTITUTE(SUBSTITUTE(SUBSTITUTE(Sociétaires!E194,"é","e"),"è","e"),"ê","e"))&Sociétaires!A194 -> Philippe150 | B151: philippe.grivart@gmail.com | C151: $1$bdjwNUv3$Qgf0amGSvD0bayAco5oUv1 | D151: =Sociétaires!E194 -> Philippe | E151: =Sociétaires!M194 -> 0
A152: =(SUBSTITUTE(SUBSTITUTE(SUBSTITUTE(Sociétaires!E195,"é","e"),"è","e"),"ê","e"))&Sociétaires!A195 -> Marcel151 | B152: marcel.maurel@31gmail.com | C152: $1$4z87hEqo$Z8NbeW/GTX3/PiIW1cOpL/ | D152: =Sociétaires!E195 -> Marcel | E152: =Sociétaires!M195 -> 0
A153: =(SUBSTITUTE(SUBSTITUTE(SUBSTITUTE(Sociétaires!E196,"é","e"),"è","e"),"ê","e"))&Sociétaires!A196 -> Marie-Regine152 | B153: mrbarrau@sfr.fr | C153: $1$lIKHizHB$wLotvHKAKbmIpJbpb8CX9/ | D153: =Sociétaires!E196 -> Marie-Régine | E153: =Sociétaires!M196 -> 0
A154: =(SUBSTITUTE(SUBSTITUTE(SUBSTITUTE(Sociétaires!E197,"é","e"),"è","e"),"ê","e"))&Sociétaires!A197 -> Annie153 | B154: annie.proudom@laposte.net | C154: $1$2hGR60lK$q5jhVEAkPKw/lMNI2Ff6X0 | D154: =Sociétaires!E197 -> Annie | E154: =Sociétaires!M197 -> 0
A155: =(SUBSTITUTE(SUBSTITUTE(SUBSTITUTE(Sociétaires!E198,"é","e"),"è","e"),"ê","e"))&Sociétaires!A198 -> JULIEN154 | B155: julien.koechlin@free.fr | C155: $1$Qfl5hFZw$T.d8votTCHI2Bail/sDFD/ | D155: =Sociétaires!E198 -> JULIEN | E155: =Sociétaires!M198 -> 0
A156: =(SUBSTITUTE(SUBSTITUTE(SUBSTITUTE(Sociétaires!E199,"é","e"),"è","e"),"ê","e"))&Sociétaires!A199 -> Monsieur le president155 | B156: bonjour.mipy@enercoop.fr | C156: $1$CbmalQbm$KGTPB41n.keBAvUUl4dkA1 | D156: =Sociétaires!E199 -> Monsieur le président | E156: =Sociétaires!M199 -> 0
A157: =(SUBSTITUTE(SUBSTITUTE(SUBSTITUTE(Sociétaires!E200,"é","e"),"è","e"),"ê","e"))&Sociétaires!A200 -> Catherine156 | B157: manaute.catherine@orange.fr | C157: $1$C9IHkf1n$FVwUra4blxSFh0CBHx9Ko1 | D157: =Sociétaires!E200 -> Catherine | E157: =Sociétaires!M200 -> 0
A158: =(SUBSTITUTE(SUBSTITUTE(SUBSTITUTE(Sociétaires!E203,"é","e"),"è","e"),"ê","e"))&Sociétaires!A203 -> Anne-Laure157 | B158: al-noeureuil@hotmail.fr | C158: $1$3FPfdddg$Pbl00uVbOTui6YA47gYCJ0 | D158: =Sociétaires!E203 -> Anne-Laure | E158: =Sociétaires!M203 -> 0
A159: =(SUBSTITUTE(SUBSTITUTE(SUBSTITUTE(Sociétaires!E204,"é","e"),"è","e"),"ê","e"))&Sociétaires!A204 -> Herve158 | B159: herve.caujolle@laposte.net | C159: $1$9dUa370o$CSsqNl9fY3xhw1wNTNXS3/ | D159: =Sociétaires!E204 -> Hervé | E159: =Sociétaires!M204 -> 0
A160: =(SUBSTITUTE(SUBSTITUTE(SUBSTITUTE(Sociétaires!E205,"é","e"),"è","e"),"ê","e"))&Sociétaires!A205 -> Christine159 | B160: toutouri@orange.fr | C160: $1$jrlYubSh$3KTbb6i5XMYZmWCf6F3vD0 | D160: =Sociétaires!E205 -> Christine | E160: =Sociétaires!M205 -> 0
A161: =(SUBSTITUTE(SUBSTITUTE(SUBSTITUTE(Sociétaires!E206,"é","e"),"è","e"),"ê","e"))&Sociétaires!A206 -> Nicolas160 | B161: nicolas.saporito@libertysurf.fr | C161: $1$utiJ6QhL$G6mrrQTZuguoSrnWUfUBP1 | D161: =Sociétaires!E206 -> Nicolas | E161: =Sociétaires!M206 -> 0
A162: =(SUBSTITUTE(SUBSTITUTE(SUBSTITUTE(Sociétaires!E207,"é","e"),"è","e"),"ê","e"))&Sociétaires!A207 -> Michele161 | B162: m.riviereschiavi@hotmail.fr | C162: $1$SQcMpir4$dl0E1Nj8TWl7qFwKsEDUg/ | D162: =Sociétaires!E207 -> Michèle | E162: =Sociétaires!M207 -> 0
A163: =(SUBSTITUTE(SUBSTITUTE(SUBSTITUTE(Sociétaires!E208,"é","e"),"è","e"),"ê","e"))&Sociétaires!A208 -> MARTINE162 | B163: m.charpenteau@yahoo.fr | C163: $1$ekTvq915$szfaLomJJDNG.uzjSbqK31 | D163: =Sociétaires!E208 -> MARTINE | E163: =Sociétaires!M208 -> 0
A164: =(SUBSTITUTE(SUBSTITUTE(SUBSTITUTE(Sociétaires!E209,"é","e"),"è","e"),"ê","e"))&Sociétaires!A209 -> Romain163 | B164: romcouderc@hotmail.fr | C164: $1$yHGiGguP$tKK8Kjed2B8QSlB0JJWCD0 | D164: =Sociétaires!E209 -> Romain | E164: =Sociétaires!M209 -> 0
A165: =(SUBSTITUTE(SUBSTITUTE(SUBSTITUTE(Sociétaires!E210,"é","e"),"è","e"),"ê","e"))&Sociétaires!A210 -> yves164 | B165: gambier.yves@gmail.com | C165: $1$UXdskxAo$DmBinso77Hej3ggrnt.nh/ | D165: =Sociétaires!E210 -> yves | E165: =Sociétaires!M210 -> 0
A166: =(SUBSTITUTE(SUBSTITUTE(SUBSTITUTE(Sociétaires!E211,"é","e"),"è","e"),"ê","e"))&Sociétaires!A211 -> ANNIE165 | B166: yah.gambier@gmail.com | C166: $1$srfp8DbQ$xuBuexMvYrWNGcnd9f.Z9. | D166: =Sociétaires!E211 -> ANNIE | E166: =Sociétaires!M211 -> 0
A167: =(SUBSTITUTE(SUBSTITUTE(SUBSTITUTE(Sociétaires!E212,"é","e"),"è","e"),"ê","e"))&Sociétaires!A212 -> Jeanne166 | B167: jeanne.fine@gmail.com | C167: $1$9EqyfYya$Hp2tZht0V85rAloL0GT.31 | D167: =Sociétaires!E212 -> Jeanne | E167: =Sociétaires!M212 -> 0
A168: =(SUBSTITUTE(SUBSTITUTE(SUBSTITUTE(Sociétaires!E214,"é","e"),"è","e"),"ê","e"))&Sociétaires!A214 -> Helene167 | B168: hlne.gambier@gmail.com | C168: $1$C6L8gqrs$1DdZk8X0AhgiqicC95n/L. | D168: =Sociétaires!E214 -> Hélène | E168: =Sociétaires!M214 -> 0
A169: =(SUBSTITUTE(SUBSTITUTE(SUBSTITUTE(Sociétaires!E215,"é","e"),"è","e"),"ê","e"))&Sociétaires!A215 -> Michel168 | B169: michel.cassin@free.fr | C169: $1$2BDKuzLM$hffU12y746nqx2ZqsEjG20 | D169: =Sociétaires!E215 -> Michel | E169: =Sociétaires!M215 -> 0
A170: =(SUBSTITUTE(SUBSTITUTE(SUBSTITUTE(Sociétaires!E217,"é","e"),"è","e"),"ê","e"))&Sociétaires!A217 -> Jessica169 | B170: jessica.combier@gmail.com | C170: $1$kC10kxVb$W0xQegqUYvMB.GPwD.8xF0 | D170: =Sociétaires!E217 -> Jessica | E170: =Sociétaires!M217 -> 0
A171: =(SUBSTITUTE(SUBSTITUTE(SUBSTITUTE(Sociétaires!E219,"é","e"),"è","e"),"ê","e"))&Sociétaires!A219 -> LAURENCE171 | B171: laurence.duguy@laposte.net | C171: $1$DKqXJyGf$jnoGJO0c6P4HUjiQZLmCc1 | D171: =Sociétaires!E219 -> LAURENCE | E171: =Sociétaires!M219 -> 0
A172: =(SUBSTITUTE(SUBSTITUTE(SUBSTITUTE(Sociétaires!E220,"é","e"),"è","e"),"ê","e"))&Sociétaires!A220 -> Justin172 | B172: 35@free.fr | C172: $1$z9t9V3ES$lekUflsNl8DQ/asTf7qKr0 | D172: =Sociétaires!E220 -> Justin | E172: =Sociétaires!M220 -> 0
A173: =(SUBSTITUTE(SUBSTITUTE(SUBSTITUTE(Sociétaires!E221,"é","e"),"è","e"),"ê","e"))&Sociétaires!A221 -> Felix173 | B173: 36@free.fr | C173: $1$MOvlvXEt$VZIx9HRwOSKhr6HHbHrrZ. | D173: =Sociétaires!E221 -> Félix | E173: =Sociétaires!M221 -> 0
A174: =(SUBSTITUTE(SUBSTITUTE(SUBSTITUTE(Sociétaires!E222,"é","e"),"è","e"),"ê","e"))&Sociétaires!A222 -> Christine174 | B174: christine.isnard.g@free.fr | C174: $1$Pz1wEeTE$EgxD8Ks1i1RIEbzuEOMdP. | D174: =Sociétaires!E222 -> Christine | E174: =Sociétaires!M222 -> 0
A175: =(SUBSTITUTE(SUBSTITUTE(SUBSTITUTE(Sociétaires!E223,"é","e"),"è","e"),"ê","e"))&Sociétaires!A223 -> Emmanuel175 | B175: manu@haydont.net | C175: $1$Lz6JX81h$l5rOaNRa7StAd6B21IXP01 | D175: =Sociétaires!E223 -> Emmanuel | E175: =Sociétaires!M223 -> 0
A176: =(SUBSTITUTE(SUBSTITUTE(SUBSTITUTE(Sociétaires!E226,"é","e"),"è","e"),"ê","e"))&Sociétaires!A226 -> Philippe176 | B176: gim_phil@yahoo.fr | C176: $1$w2cJuQVn$rcx1kHaT0hBgKf.TVnCTR0 | D176: =Sociétaires!E226 -> Philippe | E176: =Sociétaires!M226 -> 0
A177: =(SUBSTITUTE(SUBSTITUTE(SUBSTITUTE(Sociétaires!E227,"é","e"),"è","e"),"ê","e"))&Sociétaires!A227 -> Jean-Louis177 | B177: jlgimenez@orange.fr | C177: $1$tEEQllOX$iqT0usuF9nRq9wdswk97k0 | D177: =Sociétaires!E227 -> Jean-Louis | E177: =Sociétaires!M227 -> 0
A178: =(SUBSTITUTE(SUBSTITUTE(SUBSTITUTE(Sociétaires!E228,"é","e"),"è","e"),"ê","e"))&Sociétaires!A228 -> Anais178 | B178: amandinegimenezphotographie@gmail.com | C178: $1$UMVuQuFi$fsMPpP2SNN.uk/JefZOvn1 | D178: =Sociétaires!E228 -> Anais | E178: =Sociétaires!M228 -> 0
A179: =(SUBSTITUTE(SUBSTITUTE(SUBSTITUTE(Sociétaires!E229,"é","e"),"è","e"),"ê","e"))&Sociétaires!A229 -> Quentin 179 | B179: 37@free.fr | C179: $1$En7VFRSJ$dmlWn5foNHjdIJCrA4Uxt0 | D179: =Sociétaires!E229 -> Quentin | E179: =Sociétaires!M229 -> 0
A180: =(SUBSTITUTE(SUBSTITUTE(SUBSTITUTE(Sociétaires!E230,"é","e"),"è","e"),"ê","e"))&Sociétaires!A230 -> JULIEN180 | B180: julien.barousse@gmail.com | C180: $1$DZjCYlLp$qvAkJARoVFPQjsDUKnJwi0 | D180: =Sociétaires!E230 -> JULIEN | E180: =Sociétaires!M230 -> 0
A181: =(SUBSTITUTE(SUBSTITUTE(SUBSTITUTE(Sociétaires!E231,"é","e"),"è","e"),"ê","e"))&Sociétaires!A231 -> Adrien181 | B181: adrien.revel@yahoo.fr | C181: $1$XMZi9IzY$AefVkyszuZ77broq2vVxq0 | D181: =Sociétaires!E231 -> Adrien | E181: =Sociétaires!M231 -> 0
A182: =(SUBSTITUTE(SUBSTITUTE(SUBSTITUTE(Sociétaires!E232,"é","e"),"è","e"),"ê","e"))&Sociétaires!A232 -> Andreas182 | B182: andreas.ruedinger@gmail.com | C182: $1$z5sT7yYN$Uck3C6CLv8T8q2dhp9CeB0 | D182: =Sociétaires!E232 -> Andreas | E182: =Sociétaires!M232 -> 0
A183: =(SUBSTITUTE(SUBSTITUTE(SUBSTITUTE(Sociétaires!E233,"é","e"),"è","e"),"ê","e"))&Sociétaires!A233 -> Philippe183 | B183: ea.surin@yahoo.fr | C183: $1$t5188GD8$KhJUvdLuaET2T4loSl/kp. | D183: =Sociétaires!E233 -> Philippe | E183: =Sociétaires!M233 -> 0
A184: =(SUBSTITUTE(SUBSTITUTE(SUBSTITUTE(Sociétaires!E234,"é","e"),"è","e"),"ê","e"))&Sociétaires!A234 -> Pierre184 | B184: laine.pierre@9online.fr | C184: $1$9R3QKyYq$l39fiwyTh7HOfqw/A8JjZ/ | D184: =Sociétaires!E234 -> Pierre | E184: =Sociétaires!M234 -> 0
A185: =(SUBSTITUTE(SUBSTITUTE(SUBSTITUTE(Sociétaires!E235,"é","e"),"è","e"),"ê","e"))&Sociétaires!A235 -> Lucie185 | B185: 38@free.fr | C185: $1$40JVC9wx$7.GcPQoi7yHo.KVBcjX8F/ | D185: =Sociétaires!E235 -> Lucie | E185: =Sociétaires!M235 -> 0
A186: =(SUBSTITUTE(SUBSTITUTE(SUBSTITUTE(Sociétaires!E236,"é","e"),"è","e"),"ê","e"))&Sociétaires!A236 -> Xavier186 | B186: 39@free.fr | C186: $1$K5xNom8C$3JLkwsfeQJfYOAlIOxPfX1 | D186: =Sociétaires!E236 -> Xavier | E186: =Sociétaires!M236 -> 0
A187: =(SUBSTITUTE(SUBSTITUTE(SUBSTITUTE(Sociétaires!E237,"é","e"),"è","e"),"ê","e"))&Sociétaires!A237 -> JUSTINE187 | B187: b.lemouzy@gmail.com | C187: $1$ZnDbGifN$zUmHn2cgn.CBRSqeJhXZH/ | D187: =Sociétaires!E237 -> JUSTINE | E187: =Sociétaires!M237 -> 0
A188: =(SUBSTITUTE(SUBSTITUTE(SUBSTITUTE(Sociétaires!E238,"é","e"),"è","e"),"ê","e"))&Sociétaires!A238 -> JEREMY188 | B188: 40@free.fr | C188: $1$o7WssSRe$n7Dk4uUfcbJy2iLGSZ2yg/ | D188: =Sociétaires!E238 -> JEREMY | E188: =Sociétaires!M238 -> 0
A189: =(SUBSTITUTE(SUBSTITUTE(SUBSTITUTE(Sociétaires!E239,"é","e"),"è","e"),"ê","e"))&Sociétaires!A239 -> ELIOTT189 | B189: 41@free.fr | C189: $1$8TqfLDmD$yumLPpwzAvXugWiiSUNpb/ | D189: =Sociétaires!E239 -> ELIOTT | E189: =Sociétaires!M239 -> 0
A190: =(SUBSTITUTE(SUBSTITUTE(SUBSTITUTE(Sociétaires!E240,"é","e"),"è","e"),"ê","e"))&Sociétaires!A240 -> Anne-Marie190 | B190: noeureuil.anne-marie@orange.fr | C190: $1$iu2EfrwI$BIgv9.4tYULLDsT2SECr// | D190: =Sociétaires!E240 -> Anne-Marie | E190: =Sociétaires!M240 -> 0
A191: =(SUBSTITUTE(SUBSTITUTE(SUBSTITUTE(Sociétaires!E241,"é","e"),"è","e"),"ê","e"))&Sociétaires!A241 -> Anne191 | B191: annecotte@free.fr | C191: $1$dRk5GzVI$xjcI2H4HTdsQGNkDnqPfT1 | D191: =Sociétaires!E241 -> Anne | E191: =Sociétaires!M241 -> 0
A192: =(SUBSTITUTE(SUBSTITUTE(SUBSTITUTE(Sociétaires!E242,"é","e"),"è","e"),"ê","e"))&Sociétaires!A242 -> Helene192 | B192: laurent.gilard@laposte.net | C192: $1$STp6768M$13kSYM8mlRQRh9Gcwr3Rc/ | D192: =Sociétaires!E242 -> Hélène | E192: =Sociétaires!M242 -> 0
A193: =(SUBSTITUTE(SUBSTITUTE(SUBSTITUTE(Sociétaires!E243,"é","e"),"è","e"),"ê","e"))&Sociétaires!A243 -> Elodie193 | B193: elodie32@yahoo.com | C193: $1$MDO3S5aQ$Ad26rihgnZFbJCZ8t1TWj/ | D193: =Sociétaires!E243 -> Elodie | E193: =Sociétaires!M243 -> 0
A194: =(SUBSTITUTE(SUBSTITUTE(SUBSTITUTE(Sociétaires!E244,"é","e"),"è","e"),"ê","e"))&Sociétaires!A244 -> Jean Sebastien194 | B194: jssaulnier@gmail.com | C194: $1$ictK9oTk$CwJXxl6liP50Rf2CASpbx. | D194: =Sociétaires!E244 -> Jean Sébastien | E194: =Sociétaires!M244 -> 0
A195: =(SUBSTITUTE(SUBSTITUTE(SUBSTITUTE(Sociétaires!E245,"é","e"),"è","e"),"ê","e"))&Sociétaires!A245 -> Bernadette195 | B195: bernadette.messent@orange.fr | C195: $1$k2VjLKUm$lRkCzMeu.7rf1XfsaIn0o0 | D195: =Sociétaires!E245 -> Bernadette | E195: =Sociétaires!M245 -> 0
A196: =(SUBSTITUTE(SUBSTITUTE(SUBSTITUTE(Sociétaires!E246,"é","e"),"è","e"),"ê","e"))&Sociétaires!A246 -> Carole196 | B196: caro.aureda@gmail.com | C196: $1$SGgUO5hI$a5o/Mj7jYAXtrsDOyfKc/0 | D196: =Sociétaires!E246 -> Carole | E196: =Sociétaires!M246 -> 0
A197: =(SUBSTITUTE(SUBSTITUTE(SUBSTITUTE(Sociétaires!E248,"é","e"),"è","e"),"ê","e"))&Sociétaires!A248 -> JEAN LUC197 | B197: jl.deco@wanadoo.fr | C197: $1$2GizHRnA$pv2pFc2Gyeer6fOmfbpN4/ | D197: =Sociétaires!E248 -> JEAN LUC | E197: =Sociétaires!M248 -> 0
A198: =(SUBSTITUTE(SUBSTITUTE(SUBSTITUTE(Sociétaires!E249,"é","e"),"è","e"),"ê","e"))&Sociétaires!A249 -> Christophe198 | B198: c.hevin@free.fr | C198: $1$RwyhUkqy$Nq8gRNho5ZhjqjaKLugU.0 | D198: =Sociétaires!E249 -> Christophe | E198: =Sociétaires!M249 -> 0
A199: =(SUBSTITUTE(SUBSTITUTE(SUBSTITUTE(Sociétaires!E250,"é","e"),"è","e"),"ê","e"))&Sociétaires!A250 -> ANNE-CLAUDE199 | B199: acodz@orange.fr | C199: $1$2fJ6lfSM$0Wf4fWtm0itQ.eh4CIC8b0 | D199: =Sociétaires!E250 -> ANNE-CLAUDE | E199: =Sociétaires!M250 -> 0
A200: =(SUBSTITUTE(SUBSTITUTE(SUBSTITUTE(Sociétaires!E251,"é","e"),"è","e"),"ê","e"))&Sociétaires!A251 -> Bruno200 | B200: bdzed@orange.fr | C200: $1$MMCUOJhd$QraVmKwwf042dOuKDAPFQ0 | D200: =Sociétaires!E251 -> Bruno | E200: =Sociétaires!M251 -> 0
... 182 more rows

Sheet CCA
A1: N° | B1: Titre | C1: Nom | D1: Prénom | E1: Montant | F1: Date début | G1: Date fin
E2: =SUM(E3:E55) -> 38000
A3: 1 | B3: Monsieur | C3: Gardette | D3: Jean-Paul | E3: 5000 | F3: 2017-12-02 | G3: 2020-12-02
A4: 2 | B4: Monsieur | C4: Thil | D4: Christian | E4: 5000 | F4: 2017-12-02 | G4: 2020-12-01
A5: 3 | B5: Association | C5: GPPEP | D5: Monsieur le président | E5: 8000 | F5: 2017-12-01 | G5: 2020-11-30
A6: 4 | B6: Madame | C6: Lahaye | D6: Béatrice | E6: 2000 | F6: 2019-01-08 | G6: 2022-01-08
A7: 5 | B7: Madame | C7: Gomart-Massif | D7: Martine | E7: 500 | F7: 2019-01-08 | G7: 2022-01-08
A8: 6 | B8: Monsieur | C8: Depaux | D8: Jean Marie | E8: 500 | F8: 2019-01-08 | G8: 2022-01-08
A9: 7 | B9: Madame | C9: Laforge | D9: Aurelie | E9: 1000 | F9: 2019-01-12 | G9: 2022-01-12
A10: 8 | B10: Monsieur | C10: Laborde | D10: Bertrand | E10: 2000 | F10: 2019-01-12 | G10: 2022-01-12
A11: 9 | B11: Madame | C11: Thil | D11: Anne-Marie | E11: 3000 | F11: 2019-01-25 | G11: 2022-01-25
A12: 10 | B12: Monsieur | C12: Arevalo | D12: Henri | E12: 3000 | F12: 2019-01-15 | G12: 2022-01-15
A13: 11 | B13: Madame | C13: Irvoas | D13: Rozenn | E13: 4000 | F13: 2019-01-28 | G13: 2022-01-28
A14: 12 | B14: Monsieur | C14: Noeureuil | D14: Eric | E14: 4000 | F14: 2019-01-28 | G14: 2022-01-28

Sheet ancien adhérants
A1: N° | B1: Fd asso | C1: NB Parts | D1: Prénom | E1: Nom | F1: nom de JF | G1: date | H1: lieu naissance | I1: catégtorie | J1: Notes | K1: Adresse | L1: CP | M1: Ville | N1: Email | O1: Téléphone | P1: Année | Q1: Refus emailing | R1: Refus Ag/email
C2: =B2/50 -> 0 | D2: Laurent | E2: Cherubin | K2: 3 domaine du tricou | L2: 31670 | M2: Labège | N2: lcherubin@ville-labege.fr | O2: 06 80 31 68 47 | P2: 2016-10-03 | Q2: non | R2: non | W2: non
C3: =B3/50 -> 0 | D3: Gilles | E3: Baille | J3: ? | K3: Route de Corronsac | L3: 31810 | M3: Clermont Le Fort | N3: baille.fra@orange.fr | O3: 06 38 19 73 02 | P3: 2016-10-18 | Q3: non | R3: non | W3: non
C4: =B4/50 -> 0 | D4: Yves | E4: Dufrenne | J4: ? | K4: 26 avenue des Troubadours | L4: 31750 | M4: Escalquens | N4: tmp.duf@gmail.com | O4: 06 56 88 33 27 | P4: 2016-10-18 | Q4: non | R4: non | W4: non
C5: =B5/50 -> 0 | D5: Jean-Pascal | E5: Chabaud | K5: 17 rue du levant | L5: 31520 | M5: Ramonville | N5: jean-pascal.chabaud@orange.fr | O5: 06 86 77 93 03 | P5: 2016-11-10 | Q5: non | R5: non | W5: non
C6: 0 | D6: Dominique | E6: Fuentes | J6: Retraité | K6: 3, pl Romulus | L6: 31320 | M6: Castanet- Tolosan | N6: fuentes.dominique@laposte.net | O6: 06 07 58 65 44 | P6: 2016-12-02 | Q6: non | R6: non | W6: non
C7: 0 | D7: Claude | E7: Henry | J7: responsable Achat | K7: 2, passage Sainte Lucie | L7: 31320 | M7: Castanet Tolosan | N7: dncrh@free.fr | O7: 06 30 11 20 66 | P7: 2016-12-10 | Q7: non | R7: non | W7: oui
B8: 0 | C8: 0 | D8: Benoît | E8: Bonnet | G8: 1978-12-21 | H8: Bédarieux (34) | I8: 1 | K8: 10, rue des Fresnes Villa 4 | L8: 31400 | M8: Toulouse | N8: benoitbonnet31@gmail.com | O8: 06 88 68 59 90 | P8: 2017-01-05 | Q8: non | R8: non
C9: 0 | D9: Marie | E9: Dupré | K9: 9, impasse des meuniers | L9: 31320 | M9: Castanet-Tolosan | N9: sebelbalilu@orange.fr | O9: 06 67 54 92 54 | P9: 2017-01-25 | Q9: non | R9: non | S9: =E9 -> Dupré | T9: banque postale | U9: 3342216J033 | V9: La source | W9: oui
C10: 0 | D10: Bernard | E10: Dupré | K10: 9, impasse des meuniers | L10: 31320 | M10: Castanet-Tolosan | O10: 06 89 33 34 03 | P10: 2017-01-25 | Q10: non | R10: non | S10: XXXXX | W10: oui
C11: 0 | D11: Olivier | E11: Debellefontaine | K11: 12, rue du Pré Fleuri | L11: 31320 | M11: Castanet-Tolosan | N11: debellefontaine.o@gmail.com | O11: 06 77 24 49 64 | P11: 2017-01-26 | Q11: non | R11: non | S11: =E11 -> Debellefontaine | T11: LCL | V11: Toulouse | W11: oui
B12: 0 | C12: 0 | D12: Stéphanie | E12: Broussaud | G12: 1977-03-18 | H12: Limoges (87) | I12: 6 | K12: 10, rue des Fresnes Villa 4 | L12: 31400 | M12: Toulouse | N12: broussaudstephanie@gmail.com | O12: 06 64 21 27 47 | P12: 2017-01-05 | Q12: non | R12: non
